Body_Code,Body_Name,Service_Area,Responsible_Unit,Expense_Type,Expense_Code,Narrative,Date,Transaction_Number,Amount,Supplier_Name
http://statistics.data.gov.uk/id/local-authority/38,Oxfordshire County Council,SCS Other Cost Centres,Control Account Trojan Residential Care,Balance Sheet General,B2040,ABACUS Accounts Payable Control A/c,10/07/2012,3100037706,-6276.73,Reading Borough Council
http://statistics.data.gov.uk/id/local-authority/38,Oxfordshire County Council,Highways & Transport,"Special Transport, Trans Co-ordination",Transport Related,35100,Volunteer Travel Expenses,11/07/2012,3100045480,-1524.6,B Hicks
http://statistics.data.gov.uk/id/local-authority/38,Oxfordshire County Council,SCS Other Cost Centres,Control Account Trojan Residential Care,Balance Sheet General,B2040,ABACUS Accounts Payable Control A/c,12/07/2012,3100047586,-3214.29,Green Gates NH (BUPA)
http://statistics.data.gov.uk/id/local-authority/38,Oxfordshire County Council,SCS Other Cost Centres,Control Account Trojan Residential Care,Balance Sheet General,B2040,ABACUS Accounts Payable Control A/c,12/07/2012,3100047623,-12551.29,Carebase (Abingdon) Limited
http://statistics.data.gov.uk/id/local-authority/38,Oxfordshire County Council,SCS Other Cost Centres,Control Account Trojan Residential Care,Balance Sheet General,B2040,ABACUS Accounts Payable Control A/c,12/07/2012,3100047627,-3542.86,Fewcott Healthcare Ltd
http://statistics.data.gov.uk/id/local-authority/38,Oxfordshire County Council,SCS Other Cost Centres,Control Account Trojan Residential Care,Balance Sheet General,B2040,ABACUS Accounts Payable Control A/c,12/07/2012,3100047643,-59926.41,The Triangle Nursing Home
http://statistics.data.gov.uk/id/local-authority/38,Oxfordshire County Council,SCS Other Cost Centres,Control Account Trojan Residential Care,Balance Sheet General,B2040,ABACUS Accounts Payable Control A/c,12/07/2012,3100047721,-5348.57,Rosebank Care Home
http://statistics.data.gov.uk/id/local-authority/38,Oxfordshire County Council,Education & Early Intervention,Out of County,Transport Related,33101,Home to School Trans,11/07/2012,3100047741,-768,Electrovision UK Ltd
http://statistics.data.gov.uk/id/local-authority/38,Oxfordshire County Council,SCS Other Cost Centres,Control Account Trojan Residential Care,Balance Sheet General,B2040,ABACUS Accounts Payable Control A/c,12/07/2012,3100047834,-13698.57,Charnwood Residential Home
http://statistics.data.gov.uk/id/local-authority/38,Oxfordshire County Council,Education & Early Intervention,FE Special Trans,Transport Related,33101,Home to School Trans,06/07/2012,3100048027,-800,Grove Cabs
http://statistics.data.gov.uk/id/local-authority/38,Oxfordshire County Council,SCS Other Cost Centres,Home Support trading account for PBs,Other Agency and Contracted Services,57300,Home Support (Ext) OS&HCD,11/07/2012,3100048100,-512.27,Premier Personal Care
http://statistics.data.gov.uk/id/local-authority/38,Oxfordshire County Council,SCS Other Cost Centres,Home Support trading account for PBs,Other Agency and Contracted Services,57300,Home Support (Ext) OS&HCD,11/07/2012,3100048104,-1038.84,Secure Care
http://statistics.data.gov.uk/id/local-authority/38,Oxfordshire County Council,SCS Other Cost Centres,Home Support trading account for PBs,Other Agency and Contracted Services,57300,Home Support (Ext) OS&HCD,11/07/2012,3100048106,-1627.36,Sevacare (UK) Ltd
http://statistics.data.gov.uk/id/local-authority/38,Oxfordshire County Council,SCS Other Cost Centres,Home Support trading account for PBs,Other Agency and Contracted Services,57300,Home Support (Ext) OS&HCD,11/07/2012,3100048132,-686.3,Risborough Carers Ltd
http://statistics.data.gov.uk/id/local-authority/38,Oxfordshire County Council,SCS Other Cost Centres,Home Support trading account for PBs,Other Agency and Contracted Services,57300,Home Support (Ext) OS&HCD,11/07/2012,3100048133,-519.58,Risborough Carers Ltd
http://statistics.data.gov.uk/id/local-authority/38,Oxfordshire County Council,SCS Other Cost Centres,Home Support trading account for PBs,Other Agency and Contracted Services,57300,Home Support (Ext) OS&HCD,11/07/2012,3100048150,-688.37,Delight Care Ltd
http://statistics.data.gov.uk/id/local-authority/38,Oxfordshire County Council,Growth & Infrastructure,Corporate Landlord Utility Costs,Fuel,23100,Electricity,11/07/2012,3100048202,-484.77,Npower Ltd
http://statistics.data.gov.uk/id/local-authority/38,Oxfordshire County Council,Growth & Infrastructure,Surplus Property,Fuel,23100,Electricity,11/07/2012,3100048275,-650.91,Npower Ltd
http://statistics.data.gov.uk/id/local-authority/38,Oxfordshire County Council,Growth & Infrastructure,Surplus Property,Fuel,23100,Electricity,11/07/2012,3100048295,-648.81,Npower Ltd
http://statistics.data.gov.uk/id/local-authority/38,Oxfordshire County Council,Growth & Infrastructure,Surplus Property,Fuel,23100,Electricity,11/07/2012,3100048296,-657.19,Npower Ltd
http://statistics.data.gov.uk/id/local-authority/38,Oxfordshire County Council,Schools,Abbey Sch Swim Pool,Fuel,23100,Electricity,11/07/2012,3100048299,-730.2,Npower Ltd
http://statistics.data.gov.uk/id/local-authority/38,Oxfordshire County Council,Schools,Abbey Sch Swim Pool,Fuel,23100,Electricity,11/07/2012,3100048300,-2196.55,Npower Ltd
http://statistics.data.gov.uk/id/local-authority/38,Oxfordshire County Council,Schools,Abbey Sch Swim Pool,Fuel,23100,Electricity,11/07/2012,3100048301,-2828.31,Npower Ltd
http://statistics.data.gov.uk/id/local-authority/38,Oxfordshire County Council,Schools,Abbey Sch Swim Pool,Fuel,23100,Electricity,11/07/2012,3100048302,-2875.24,Npower Ltd
http://statistics.data.gov.uk/id/local-authority/38,Oxfordshire County Council,Schools,Abbey Sch Swim Pool,Fuel,23100,Electricity,11/07/2012,3100048303,-2971.19,Npower Ltd
http://statistics.data.gov.uk/id/local-authority/38,Oxfordshire County Council,Scheduled Bodies,Vale of White Horse District Council,Pension Fund Revenue,PR401,Transfers out,16/07/2012,3300002087,6648.28,BLKD: Thames Valley Police Authorit
http://statistics.data.gov.uk/id/local-authority/38,Oxfordshire County Council,In-House,Miscellaneous,Pension Fund Balance Sheet,PB810,Give As You Earn,11/07/2012,3300002168,642.18,Charities Aid Foundation
http://statistics.data.gov.uk/id/local-authority/38,Oxfordshire County Council,Scheduled Bodies,Oxfordshire County Council,Pension Fund Revenue,PR401,Transfers out,17/07/2012,3300002172,34073.84,NHS Pensions Scheme Account
http://statistics.data.gov.uk/id/local-authority/38,Oxfordshire County Council,Scheduled Bodies,West Oxfordshire District Council,Pension Fund Revenue,PR401,Transfers out,18/07/2012,3300002188,68234.41,London Pensions Fund Authorty
http://statistics.data.gov.uk/id/local-authority/38,Oxfordshire County Council,In-House,Miscellaneous,Pension Fund Balance Sheet,PB802,Payroll payments by cheque (net pay),31/07/2012,3300002213,538.89,REDACTED PERSONAL DATA
http://statistics.data.gov.uk/id/local-authority/38,Oxfordshire County Council,Scheduled Bodies,South Oxfordshire District Council,Pension Fund Revenue,PR507,Combined Benefits Basic Pension,25/07/2012,3300002216,1612.62,Dorset County Council
http://statistics.data.gov.uk/id/local-authority/38,Oxfordshire County Council,Scheduled Bodies,Oxfordshire County Council,Pension Fund Revenue,PR401,Transfers out,25/07/2012,3300002223,5701.71,North Yorkshire County Council Pens
http://statistics.data.gov.uk/id/local-authority/38,Oxfordshire County Council,Scheduled Bodies,Oxfordshire County Council,Pension Fund Revenue,PR401,Transfers out,26/07/2012,3300002226,14493.21,NHS Pensions Scheme Account
http://statistics.data.gov.uk/id/local-authority/38,Oxfordshire County Council,Scheduled Bodies,Vale of White Horse District Council,Pension Fund Revenue,PR401,Transfers out,25/07/2012,3300002227,119202.77,Berkeley Burke
http://statistics.data.gov.uk/id/local-authority/38,Oxfordshire County Council,Scheduled Bodies,South Oxfordshire District Council,Pension Fund Revenue,PR401,Transfers out,31/07/2012,3300002232,14082.79,Hampshire County Council
http://statistics.data.gov.uk/id/local-authority/38,Oxfordshire County Council,Scheduled Bodies,Oxfordshire County Council,Pension Fund Revenue,PR401,Transfers out,31/07/2012,3300002245,100775.67,NHS Pensions Scheme Account
http://statistics.data.gov.uk/id/local-authority/38,Oxfordshire County Council,SCS Other Cost Centres,Control Account Trojan Residential Care,Balance Sheet General,B2040,ABACUS Accounts Payable Control A/c,10/07/2012,3301343131,1863.44,Reading Borough Council
http://statistics.data.gov.uk/id/local-authority/38,Oxfordshire County Council,Education & Early Intervention,Leading the EYFS (Q&I),"Equipment, Furniture and Materials",41515,Educational Visits,05/07/2012,3301546569,1000,Kingfisher Playgroup
http://statistics.data.gov.uk/id/local-authority/38,Oxfordshire County Council,Education & Early Intervention,Leading the EYFS (Q&I),"Equipment, Furniture and Materials",41515,Educational Visits,11/07/2012,3301552398,1000,Bradmore Nursery
http://statistics.data.gov.uk/id/local-authority/38,Oxfordshire County Council,STD Insurance,Motor Fleet,Motor Insurance Fund Rev AC,Z5151,Motor IF Own Damage,06/07/2012,3301553158,1214.8,B P Rolls Ltd
http://statistics.data.gov.uk/id/local-authority/38,Oxfordshire County Council,Highways & Transport,Grass Cutting Districts/Parishes,Private Contractors,56400,Major Contracts,04/07/2012,3301553543,2081.4,Blackthorn Parish Council
http://statistics.data.gov.uk/id/local-authority/38,Oxfordshire County Council,Highways & Transport,Grass Cutting Districts/Parishes,Private Contractors,56400,Major Contracts,04/07/2012,3301553548,4832.8,Grove Parish Council
http://statistics.data.gov.uk/id/local-authority/38,Oxfordshire County Council,STD Insurance,Motor Fleet,Motor Insurance Fund Rev AC,Z5153,Motor IF TP Damage,02/07/2012,3301555684,571,AWP Body Repairs
http://statistics.data.gov.uk/id/local-authority/38,Oxfordshire County Council,STD Insurance,Motor Fleet,Motor Insurance Fund Rev AC,Z5151,Motor IF Own Damage,10/07/2012,3301555686,500,Isis Rescue and Repair
http://statistics.data.gov.uk/id/local-authority/38,Oxfordshire County Council,Education & Early Intervention,Leading the EYFS (Q&I),"Equipment, Furniture and Materials",41515,Educational Visits,05/07/2012,3301561222,1000,Longworth Pre-School
http://statistics.data.gov.uk/id/local-authority/38,Oxfordshire County Council,Education & Early Intervention,Leading the EYFS (Q&I),"Equipment, Furniture and Materials",41515,Educational Visits,05/07/2012,3301561223,1000,Lord Williams's School Day Nursery
http://statistics.data.gov.uk/id/local-authority/38,Oxfordshire County Council,Highways & Transport,S38 Inspections and Other Costs,Balance Sheet General,B2030,Goods Received not Invoiced,17/07/2012,3301561296,1012.5,Fusionpeople
http://statistics.data.gov.uk/id/local-authority/38,Oxfordshire County Council,Education & Early Intervention,Leading the EYFS (Q&I),"Equipment, Furniture and Materials",41515,Educational Visits,20/07/2012,3301561540,1000,Drayton Pre-School Playgroup
http://statistics.data.gov.uk/id/local-authority/38,Oxfordshire County Council,Children's Social Care,Service Agreements - Resource Centres,Other Agency and Contracted Services,57710,Children's Homes,11/07/2012,3301563842,163738.83,Barnardo's Midland
http://statistics.data.gov.uk/id/local-authority/38,Oxfordshire County Council,Children's Social Care,Service Agreements - Resource Centres,Voluntary Associations,55402,Service Agreements - Family Support,11/07/2012,3301563844,81037.5,Barnardo's Midland
http://statistics.data.gov.uk/id/local-authority/38,Oxfordshire County Council,Highways & Transport,"Electrical NP Rds, Street Lighting",Private Contractors,56400,Major Contracts,20/07/2012,3301564349,4700,Power Data Associates Ltd
http://statistics.data.gov.uk/id/local-authority/38,Oxfordshire County Council,Education & Early Intervention,Quality & Expansion 2 Year Olds,"Equipment, Furniture and Materials",41100,Educational Supplies,09/07/2012,3301564350,2000,Rush Common Pre-School
http://statistics.data.gov.uk/id/local-authority/38,Oxfordshire County Council,Highways & Transport,Rising Bollards,Private Contractors,56400,Major Contracts,17/07/2012,3301564364,580.91,ATG Access Ltd
http://statistics.data.gov.uk/id/local-authority/38,Oxfordshire County Council,Education & Early Intervention,Sufficiency & Access - Intervention Grnt,Grants and Subscriptions,47100,Grants to Voluntary,10/07/2012,3301564814,1665,Littlemore Playgroup
http://statistics.data.gov.uk/id/local-authority/38,Oxfordshire County Council,Children's Social Care,Service Agreements - Resource Centres,Voluntary Associations,55402,Service Agreements - Family Support,12/07/2012,3301564869,88278.75,Barnardo's Midland
http://statistics.data.gov.uk/id/local-authority/38,Oxfordshire County Council,Children's Social Care,Aim Higher Funding,Voluntary Associations,55402,Service Agreements - Family Support,02/07/2012,3301564870,4100,Flexicare
http://statistics.data.gov.uk/id/local-authority/38,Oxfordshire County Council,Oxfordshire Customer Services,Recruitment & Retention,Expenses,46512,Criminal Records Bureau Charges Invoiced,11/07/2012,3301564977,2085,Capita Education Resourcing
http://statistics.data.gov.uk/id/local-authority/38,Oxfordshire County Council,Highways & Transport,"Special Transport, Fleet Operations",Transport Related,33300,Transport (General),02/07/2012,3301565367,1083,Black and White Taxis
http://statistics.data.gov.uk/id/local-authority/38,Oxfordshire County Council,Social & Community Services,Community Support Budget - City East,Other Agency and Contracted Services,57300,Home Support (Ext) OS&HCD,02/07/2012,3301565448,880,Robert & Doris Watts
http://statistics.data.gov.uk/id/local-authority/38,Oxfordshire County Council,SCS Pooled Budgets,Community Support Budget - City,Other Agency and Contracted Services,57401,Direct Payments,02/07/2012,3301565466,550,A4e Management Ltd
http://statistics.data.gov.uk/id/local-authority/38,Oxfordshire County Council,SCS Pooled Budgets,Community Support Budget - Bicester,Other Agency and Contracted Services,57401,Direct Payments,02/07/2012,3301565468,1872,REDACTED PERSONAL DATA
http://statistics.data.gov.uk/id/local-authority/38,Oxfordshire County Council,SCS Pooled Budgets,Life Of Your Own Grant South,Other Agency and Contracted Services,57401,Direct Payments,02/07/2012,3301565469,600,REDACTED PERSONAL DATA
http://statistics.data.gov.uk/id/local-authority/38,Oxfordshire County Council,SCS Pooled Budgets,"CSDP, Aids and Adaptions - Cherwell",Other Agency and Contracted Services,57401,Direct Payments,02/07/2012,3301565470,624.7,REDACTED PERSONAL DATA
http://statistics.data.gov.uk/id/local-authority/38,Oxfordshire County Council,SCS Pooled Budgets,Life Of Your Own Grant City,Other Agency and Contracted Services,57401,Direct Payments,02/07/2012,3301565471,600,REDACTED PERSONAL DATA
http://statistics.data.gov.uk/id/local-authority/38,Oxfordshire County Council,SCS Pooled Budgets,Life Of Your Own Grant South,Other Agency and Contracted Services,57401,Direct Payments,02/07/2012,3301565473,600,REDACTED PERSONAL DATA
http://statistics.data.gov.uk/id/local-authority/38,Oxfordshire County Council,SCS Pooled Budgets,Life Of Your Own Grant City,Other Agency and Contracted Services,57401,Direct Payments,02/07/2012,3301565474,600,REDACTED PERSONAL DATA
http://statistics.data.gov.uk/id/local-authority/38,Oxfordshire County Council,SCS Other Cost Centres,Control Account Trojan Residential Care,Balance Sheet General,B2040,ABACUS Accounts Payable Control A/c,02/07/2012,3301565609,13698.57,Charnwood Residential Home
http://statistics.data.gov.uk/id/local-authority/38,Oxfordshire County Council,Education & Early Intervention,Zone 2 - East,Transport Related,33101,Home to School Trans,02/07/2012,3301565628,2222.88,Worths Motor Services Ltd
http://statistics.data.gov.uk/id/local-authority/38,Oxfordshire County Council,Education & Early Intervention,Zone 2 - East,Transport Related,33101,Home to School Trans,02/07/2012,3301565629,2306.4,Worths Motor Services Ltd
http://statistics.data.gov.uk/id/local-authority/38,Oxfordshire County Council,Education & Early Intervention,Zone 2 - East,Transport Related,33101,Home to School Trans,02/07/2012,3301565630,2473.6,Worths Motor Services Ltd
http://statistics.data.gov.uk/id/local-authority/38,Oxfordshire County Council,Education & Early Intervention,Zone 1 - North,Transport Related,33101,Home to School Trans,02/07/2012,3301565631,2985.92,Worths Motor Services Ltd
http://statistics.data.gov.uk/id/local-authority/38,Oxfordshire County Council,Education & Early Intervention,Zone 1 - North,Transport Related,33101,Home to School Trans,02/07/2012,3301565632,3431.36,Worths Motor Services Ltd
http://statistics.data.gov.uk/id/local-authority/38,Oxfordshire County Council,Education & Early Intervention,Zone 1 - North,Transport Related,33101,Home to School Trans,02/07/2012,3301565633,2377.6,Worths Motor Services Ltd
http://statistics.data.gov.uk/id/local-authority/38,Oxfordshire County Council,Education & Early Intervention,Zone 1 - North,Transport Related,33101,Home to School Trans,02/07/2012,3301565634,2711.84,Worths Motor Services Ltd
http://statistics.data.gov.uk/id/local-authority/38,Oxfordshire County Council,Education & Early Intervention,FE Special Trans,Transport Related,33101,Home to School Trans,02/07/2012,3301565635,550,Monarch Oxford
http://statistics.data.gov.uk/id/local-authority/38,Oxfordshire County Council,Education & Early Intervention,Oxford Sth SEN Trans,Transport Related,33101,Home to School Trans,02/07/2012,3301565639,971,Jackie's Services
http://statistics.data.gov.uk/id/local-authority/38,Oxfordshire County Council,Education & Early Intervention,Witney SEN Trans,Transport Related,33101,Home to School Trans,02/07/2012,3301565642,1472.85,Luxicars Ltd
http://statistics.data.gov.uk/id/local-authority/38,Oxfordshire County Council,Education & Early Intervention,FE Special Trans,Transport Related,33101,Home to School Trans,02/07/2012,3301565644,2240,Luxicars Ltd
http://statistics.data.gov.uk/id/local-authority/38,Oxfordshire County Council,Education & Early Intervention,Wantage SEN Trans,Transport Related,33101,Home to School Trans,02/07/2012,3301565646,2247.36,Luxicars Ltd
http://statistics.data.gov.uk/id/local-authority/38,Oxfordshire County Council,Education & Early Intervention,Zone 2 - East,Transport Related,33101,Home to School Trans,02/07/2012,3301565647,1046.08,Luxicars Ltd
http://statistics.data.gov.uk/id/local-authority/38,Oxfordshire County Council,Education & Early Intervention,Zone 2 - East,Transport Related,33101,Home to School Trans,02/07/2012,3301565648,1307.7,Luxicars Ltd
http://statistics.data.gov.uk/id/local-authority/38,Oxfordshire County Council,Education & Early Intervention,Oxford Sth SEN Trans,Transport Related,33101,Home to School Trans,02/07/2012,3301565649,2623.2,Luxicars Ltd
http://statistics.data.gov.uk/id/local-authority/38,Oxfordshire County Council,Education & Early Intervention,Oxford Sth SEN Trans,Transport Related,33300,Transport (General),02/07/2012,3301565650,454.72,Luxicars Ltd
http://statistics.data.gov.uk/id/local-authority/38,Oxfordshire County Council,Education & Early Intervention,Oxford Sth SEN Trans,Transport Related,33101,Home to School Trans,02/07/2012,3301565651,1534.65,Luxicars Ltd
http://statistics.data.gov.uk/id/local-authority/38,Oxfordshire County Council,Education & Early Intervention,Oxford Nth SEN Trans,Transport Related,33101,Home to School Trans,02/07/2012,3301565653,2440.96,Luxicars Ltd
http://statistics.data.gov.uk/id/local-authority/38,Oxfordshire County Council,Education & Early Intervention,Oxford Nth SEN Trans,Transport Related,33300,Transport (General),02/07/2012,3301565655,523.2,Luxicars Ltd
http://statistics.data.gov.uk/id/local-authority/38,Oxfordshire County Council,Education & Early Intervention,Oxford Nth SEN Trans,Transport Related,33101,Home to School Trans,02/07/2012,3301565656,2091.52,Luxicars Ltd
http://statistics.data.gov.uk/id/local-authority/38,Oxfordshire County Council,Education & Early Intervention,Oxford Sth SEN Trans,Transport Related,33101,Home to School Trans,02/07/2012,3301565658,1875.75,Luxicars Ltd
http://statistics.data.gov.uk/id/local-authority/38,Oxfordshire County Council,Education & Early Intervention,Oxford Sth SEN Trans,Transport Related,33300,Transport (General),02/07/2012,3301565659,511.65,Luxicars Ltd
http://statistics.data.gov.uk/id/local-authority/38,Oxfordshire County Council,Education & Early Intervention,Oxford Nth SEN Trans,Transport Related,33101,Home to School Trans,02/07/2012,3301565660,2182.56,Luxicars Ltd
http://statistics.data.gov.uk/id/local-authority/38,Oxfordshire County Council,Education & Early Intervention,Oxford Nth SEN Trans,Transport Related,33300,Transport (General),02/07/2012,3301565661,454.72,Luxicars Ltd
http://statistics.data.gov.uk/id/local-authority/38,Oxfordshire County Council,Education & Early Intervention,Bicester SEN Trans,Transport Related,33101,Home to School Trans,02/07/2012,3301565662,2353.76,Luxicars Ltd
http://statistics.data.gov.uk/id/local-authority/38,Oxfordshire County Council,Education & Early Intervention,Bicester SEN Trans,Transport Related,33101,Home to School Trans,02/07/2012,3301565664,2353.76,Luxicars Ltd
http://statistics.data.gov.uk/id/local-authority/38,Oxfordshire County Council,Education & Early Intervention,Bicester SEN Trans,Transport Related,33101,Home to School Trans,02/07/2012,3301565666,2179.52,Luxicars Ltd
http://statistics.data.gov.uk/id/local-authority/38,Oxfordshire County Council,Education & Early Intervention,Bicester SEN Trans,Transport Related,33300,Transport (General),02/07/2012,3301565667,523.2,Luxicars Ltd
http://statistics.data.gov.uk/id/local-authority/38,Oxfordshire County Council,Education & Early Intervention,Bicester SEN Trans,Transport Related,33101,Home to School Trans,02/07/2012,3301565668,2353.76,Luxicars Ltd
http://statistics.data.gov.uk/id/local-authority/38,Oxfordshire County Council,Education & Early Intervention,Abingdon SEN Trans,Transport Related,33101,Home to School Trans,02/07/2012,3301565670,2266.72,Luxicars Ltd
http://statistics.data.gov.uk/id/local-authority/38,Oxfordshire County Council,Education & Early Intervention,Abingdon SEN Trans,Transport Related,33300,Transport (General),02/07/2012,3301565671,523.2,Luxicars Ltd
http://statistics.data.gov.uk/id/local-authority/38,Oxfordshire County Council,Education & Early Intervention,Abingdon SEN Trans,Transport Related,33101,Home to School Trans,02/07/2012,3301565672,2092.16,Luxicars Ltd
http://statistics.data.gov.uk/id/local-authority/38,Oxfordshire County Council,Education & Early Intervention,Abingdon SEN Trans,Transport Related,33300,Transport (General),02/07/2012,3301565673,523.2,Luxicars Ltd
http://statistics.data.gov.uk/id/local-authority/38,Oxfordshire County Council,Education & Early Intervention,FE Special Trans,Transport Related,33101,Home to School Trans,02/07/2012,3301565674,1950,Luxicars Ltd
http://statistics.data.gov.uk/id/local-authority/38,Oxfordshire County Council,Education & Early Intervention,Witney SEN Trans,Transport Related,33101,Home to School Trans,02/07/2012,3301565676,2029.44,Luxicars Ltd
http://statistics.data.gov.uk/id/local-authority/38,Oxfordshire County Council,Education & Early Intervention,FE Special Trans,Transport Related,33101,Home to School Trans,02/07/2012,3301565678,1149.06,Express Travel Oxford Limited
http://statistics.data.gov.uk/id/local-authority/38,Oxfordshire County Council,Education & Early Intervention,Zone 4 - Vale,Transport Related,33101,Home to School Trans,02/07/2012,3301565680,2480,The School Bus Company
http://statistics.data.gov.uk/id/local-authority/38,Oxfordshire County Council,Education & Early Intervention,Zone 4 - Vale,Transport Related,33101,Home to School Trans,02/07/2012,3301565681,2400,The School Bus Company
http://statistics.data.gov.uk/id/local-authority/38,Oxfordshire County Council,Education & Early Intervention,Zone 4 - Vale,Transport Related,33101,Home to School Trans,02/07/2012,3301565682,2400,The School Bus Company
http://statistics.data.gov.uk/id/local-authority/38,Oxfordshire County Council,Education & Early Intervention,Zone 4 - Vale,Transport Related,33101,Home to School Trans,02/07/2012,3301565683,2480,The School Bus Company
http://statistics.data.gov.uk/id/local-authority/38,Oxfordshire County Council,Education & Early Intervention,Zone 4 - Vale,Transport Related,33101,Home to School Trans,02/07/2012,3301565684,2400,The School Bus Company
http://statistics.data.gov.uk/id/local-authority/38,Oxfordshire County Council,Education & Early Intervention,Zone 4 - Vale,Transport Related,33101,Home to School Trans,02/07/2012,3301565685,2480,The School Bus Company
http://statistics.data.gov.uk/id/local-authority/38,Oxfordshire County Council,Education & Early Intervention,Zone 4 - Vale,Transport Related,33101,Home to School Trans,02/07/2012,3301565686,2400,The School Bus Company
http://statistics.data.gov.uk/id/local-authority/38,Oxfordshire County Council,Education & Early Intervention,Zone 5 - South,Transport Related,33101,Home to School Trans,02/07/2012,3301565687,3392,The School Bus Company
http://statistics.data.gov.uk/id/local-authority/38,Oxfordshire County Council,Education & Early Intervention,Zone 3 - West,Transport Related,33101,Home to School Trans,02/07/2012,3301565688,2704,Chris Gilbert Travel
http://statistics.data.gov.uk/id/local-authority/38,Oxfordshire County Council,Education & Early Intervention,Zone 3 - West,Transport Related,33101,Home to School Trans,02/07/2012,3301565689,2928,Chris Gilbert Travel
http://statistics.data.gov.uk/id/local-authority/38,Oxfordshire County Council,Education & Early Intervention,Meadowbrook Transprt,Transport Related,33101,Home to School Trans,02/07/2012,3301565690,1182,Oxon Transport Services Limited t/a
http://statistics.data.gov.uk/id/local-authority/38,Oxfordshire County Council,Education & Early Intervention,Oxford Sth SEN Trans,Transport Related,33101,Home to School Trans,02/07/2012,3301565691,1447.2,W Lynch T/A N J Sarney
http://statistics.data.gov.uk/id/local-authority/38,Oxfordshire County Council,Education & Early Intervention,Oxford Sth SEN Trans,Transport Related,33101,Home to School Trans,02/07/2012,3301565692,1569.28,W Lynch T/A N J Sarney
http://statistics.data.gov.uk/id/local-authority/38,Oxfordshire County Council,Education & Early Intervention,Zone 1 - North,Transport Related,33101,Home to School Trans,02/07/2012,3301565693,2643.68,Bakers Commercial Services Ltd
http://statistics.data.gov.uk/id/local-authority/38,Oxfordshire County Council,Education & Early Intervention,Zone 3 - West,Transport Related,33101,Home to School Trans,02/07/2012,3301565694,2552,Rebound Coaches Ltd
http://statistics.data.gov.uk/id/local-authority/38,Oxfordshire County Council,Education & Early Intervention,Oxford Sth SEN Trans,Transport Related,33101,Home to School Trans,02/07/2012,3301565695,435.25,Lloyds TSB Commercial Financial
http://statistics.data.gov.uk/id/local-authority/38,Oxfordshire County Council,Education & Early Intervention,Zone 5 - South,Transport Related,33101,Home to School Trans,02/07/2012,3301565697,962.95,Lloyds TSB Commercial Financial
http://statistics.data.gov.uk/id/local-authority/38,Oxfordshire County Council,Education & Early Intervention,Zone 3 - West,Transport Related,33101,Home to School Trans,02/07/2012,3301565698,779.75,Lloyds TSB Commercial Financial
http://statistics.data.gov.uk/id/local-authority/38,Oxfordshire County Council,Education & Early Intervention,Zone 4 - Vale,Transport Related,33101,Home to School Trans,02/07/2012,3301565699,875,Lloyds TSB Commercial Financial
http://statistics.data.gov.uk/id/local-authority/38,Oxfordshire County Council,Education & Early Intervention,Zone 3 - West,Transport Related,33101,Home to School Trans,02/07/2012,3301565700,787.5,Lloyds TSB Commercial Financial
http://statistics.data.gov.uk/id/local-authority/38,Oxfordshire County Council,Education & Early Intervention,Zone 4 - Vale,Transport Related,33101,Home to School Trans,02/07/2012,3301565701,799.5,Lloyds TSB Commercial Financial
http://statistics.data.gov.uk/id/local-authority/38,Oxfordshire County Council,Education & Early Intervention,Zone 2 - East,Transport Related,33101,Home to School Trans,02/07/2012,3301565702,6290,Cab Co Britannia
http://statistics.data.gov.uk/id/local-authority/38,Oxfordshire County Council,Education & Early Intervention,FE Special Trans,Transport Related,33101,Home to School Trans,02/07/2012,3301565703,2720,Excel Cars
http://statistics.data.gov.uk/id/local-authority/38,Oxfordshire County Council,SCS Pooled Budgets,LD CMPB - North Transport,Transport Related,34200,Client Journeys,02/07/2012,3301565705,603.52,Excel Cars
http://statistics.data.gov.uk/id/local-authority/38,Oxfordshire County Council,Education & Early Intervention,FE Special Trans,Transport Related,33101,Home to School Trans,02/07/2012,3301565706,1727.95,Excel Cars
http://statistics.data.gov.uk/id/local-authority/38,Oxfordshire County Council,Education & Early Intervention,FE Special Trans,Transport Related,33101,Home to School Trans,02/07/2012,3301565709,2021.32,Excel Cars
http://statistics.data.gov.uk/id/local-authority/38,Oxfordshire County Council,Education & Early Intervention,Witney SEN Trans,Transport Related,33101,Home to School Trans,02/07/2012,3301565711,1062.45,Excel Cars
http://statistics.data.gov.uk/id/local-authority/38,Oxfordshire County Council,Education & Early Intervention,Witney SEN Trans,Transport Related,33101,Home to School Trans,02/07/2012,3301565714,980.7,Excel Cars
http://statistics.data.gov.uk/id/local-authority/38,Oxfordshire County Council,Education & Early Intervention,Witney SEN Trans,Transport Related,33101,Home to School Trans,02/07/2012,3301565716,1144.2,Excel Cars
http://statistics.data.gov.uk/id/local-authority/38,Oxfordshire County Council,Education & Early Intervention,Zone 2 - East,Transport Related,33101,Home to School Trans,02/07/2012,3301565718,1586.88,Excel Cars
http://statistics.data.gov.uk/id/local-authority/38,Oxfordshire County Council,Education & Early Intervention,Witney SEN Trans,Transport Related,33101,Home to School Trans,02/07/2012,3301565719,1375.95,Excel Cars
http://statistics.data.gov.uk/id/local-authority/38,Oxfordshire County Council,Education & Early Intervention,Witney SEN Trans,Transport Related,33101,Home to School Trans,02/07/2012,3301565721,1880.25,Excel Cars
http://statistics.data.gov.uk/id/local-authority/38,Oxfordshire County Council,Education & Early Intervention,Witney SEN Trans,Transport Related,33101,Home to School Trans,02/07/2012,3301565725,852,Excel Cars
http://statistics.data.gov.uk/id/local-authority/38,Oxfordshire County Council,Education & Early Intervention,Oxford Nth SEN Trans,Transport Related,33101,Home to School Trans,02/07/2012,3301565730,3024.32,Excel Cars
http://statistics.data.gov.uk/id/local-authority/38,Oxfordshire County Council,Education & Early Intervention,Oxford Nth SEN Trans,Transport Related,33300,Transport (General),02/07/2012,3301565731,649.12,Excel Cars
http://statistics.data.gov.uk/id/local-authority/38,Oxfordshire County Council,Education & Early Intervention,Witney SEN Trans,Transport Related,33101,Home to School Trans,02/07/2012,3301565737,541.2,Excel Cars
http://statistics.data.gov.uk/id/local-authority/38,Oxfordshire County Council,Education & Early Intervention,Zone 3 - West,Transport Related,33101,Home to School Trans,02/07/2012,3301565739,1559.52,Windrush Transport Ltd
http://statistics.data.gov.uk/id/local-authority/38,Oxfordshire County Council,Highways & Transport,"Electrical NP Rds, Street Lighting",Private Contractors,56400,Major Contracts,03/07/2012,3301565905,729.05,Southern Electric Contracting Ltd.
http://statistics.data.gov.uk/id/local-authority/38,Oxfordshire County Council,Highways & Transport,"Electrical NP Rds, Street Lighting",Private Contractors,56400,Major Contracts,03/07/2012,3301565906,1277.2,Southern Electric Contracting Ltd.
http://statistics.data.gov.uk/id/local-authority/38,Oxfordshire County Council,Highways & Transport,"Electrical NP Rds, illuminated Signs",Private Contractors,56400,Major Contracts,03/07/2012,3301565907,1452.48,Southern Electric Contracting Ltd.
http://statistics.data.gov.uk/id/local-authority/38,Oxfordshire County Council,Highways & Transport,"Electrical NP Rds, Street Lighting",Private Contractors,56400,Major Contracts,03/07/2012,3301565908,1795.95,Southern Electric Contracting Ltd.
http://statistics.data.gov.uk/id/local-authority/38,Oxfordshire County Council,Highways & Transport,"Electrical NP Rds, Street Lighting",Private Contractors,56400,Major Contracts,03/07/2012,3301565909,936.15,Southern Electric Contracting Ltd.
http://statistics.data.gov.uk/id/local-authority/38,Oxfordshire County Council,Highways & Transport,"Electrical Prin Rds, Street Lighting",Private Contractors,56400,Major Contracts,03/07/2012,3301565910,723.79,Southern Electric Contracting Ltd.
http://statistics.data.gov.uk/id/local-authority/38,Oxfordshire County Council,Highways & Transport,"Electrical NP Rds, Street Lighting",Private Contractors,56400,Major Contracts,03/07/2012,3301565911,522.56,Southern Electric Contracting Ltd.
http://statistics.data.gov.uk/id/local-authority/38,Oxfordshire County Council,SCS Pooled Budgets,Extra Care Housing -City,Other Agency and Contracted Services,57150,Extra Care Housing Personal Care Charges,03/07/2012,3301566239,31475.33,Allied Healthcare Group Ltd
http://statistics.data.gov.uk/id/local-authority/38,Oxfordshire County Council,SCS Pooled Budgets,Community Support Budget - City,Other Agency and Contracted Services,57401,Direct Payments,04/07/2012,3301566240,2064.8,REDACTED PERSONAL DATA
http://statistics.data.gov.uk/id/local-authority/38,Oxfordshire County Council,SCS Pooled Budgets,PD Comm Supp Purchasg Budget - Abingdon,Transport Related,34200,Client Journeys,03/07/2012,3301566254,472,Oxon Transport Services Limited t/a
http://statistics.data.gov.uk/id/local-authority/38,Oxfordshire County Council,Education & Early Intervention,Witney SEN Trans,Transport Related,33101,Home to School Trans,03/07/2012,3301566269,598,Corder Cabs
http://statistics.data.gov.uk/id/local-authority/38,Oxfordshire County Council,Education & Early Intervention,Oxford Nth SEN Trans,Transport Related,33101,Home to School Trans,03/07/2012,3301566271,919.2,John Cleaton Airport Cars Oxford
http://statistics.data.gov.uk/id/local-authority/38,Oxfordshire County Council,Education & Early Intervention,Zone 5 - South,Transport Related,33101,Home to School Trans,03/07/2012,3301566273,2960,Woottens Luxury Travel
http://statistics.data.gov.uk/id/local-authority/38,Oxfordshire County Council,Education & Early Intervention,Oxford Nth SEN Trans,Transport Related,33101,Home to School Trans,03/07/2012,3301566274,1360,C A Pittaway Transport
http://statistics.data.gov.uk/id/local-authority/38,Oxfordshire County Council,Education & Early Intervention,Oxford Sth SEN Trans,Transport Related,33101,Home to School Trans,03/07/2012,3301566276,1225.95,C A Pittaway Transport
http://statistics.data.gov.uk/id/local-authority/38,Oxfordshire County Council,Education & Early Intervention,FE Special Trans,Transport Related,33101,Home to School Trans,03/07/2012,3301566278,1600,Kit Mobility Taxis
http://statistics.data.gov.uk/id/local-authority/38,Oxfordshire County Council,Education & Early Intervention,Zone 1 - North,Transport Related,33101,Home to School Trans,03/07/2012,3301566282,1255.2,Get-a-Cab
http://statistics.data.gov.uk/id/local-authority/38,Oxfordshire County Council,Education & Early Intervention,Zone 3 - West,Transport Related,33101,Home to School Trans,03/07/2012,3301566283,1400,R H Transport Services
http://statistics.data.gov.uk/id/local-authority/38,Oxfordshire County Council,Education & Early Intervention,Zone 3 - West,Transport Related,33101,Home to School Trans,03/07/2012,3301566284,1400,R H Transport Services
http://statistics.data.gov.uk/id/local-authority/38,Oxfordshire County Council,Education & Early Intervention,Zone 3 - West,Transport Related,33101,Home to School Trans,03/07/2012,3301566285,1400,R H Transport Services
http://statistics.data.gov.uk/id/local-authority/38,Oxfordshire County Council,Education & Early Intervention,Zone 3 - West,Transport Related,33101,Home to School Trans,03/07/2012,3301566286,1400,R H Transport Services
http://statistics.data.gov.uk/id/local-authority/38,Oxfordshire County Council,Education & Early Intervention,Zone 3 - West,Transport Related,33101,Home to School Trans,03/07/2012,3301566287,1400,R H Transport Services
http://statistics.data.gov.uk/id/local-authority/38,Oxfordshire County Council,Education & Early Intervention,Zone 3 - West,Transport Related,33101,Home to School Trans,03/07/2012,3301566288,1680,R H Transport Services
http://statistics.data.gov.uk/id/local-authority/38,Oxfordshire County Council,Education & Early Intervention,Zone 3 - West,Transport Related,33101,Home to School Trans,03/07/2012,3301566289,1680,R H Transport Services
http://statistics.data.gov.uk/id/local-authority/38,Oxfordshire County Council,Education & Early Intervention,Zone 3 - West,Transport Related,33101,Home to School Trans,03/07/2012,3301566290,1680,R H Transport Services
http://statistics.data.gov.uk/id/local-authority/38,Oxfordshire County Council,Education & Early Intervention,Zone 1 - North,Transport Related,33101,Home to School Trans,03/07/2012,3301566291,1619.3,R H Transport Services
http://statistics.data.gov.uk/id/local-authority/38,Oxfordshire County Council,Education & Early Intervention,Zone 1 - North,Transport Related,33101,Home to School Trans,03/07/2012,3301566292,1619.3,R H Transport Services
http://statistics.data.gov.uk/id/local-authority/38,Oxfordshire County Council,Education & Early Intervention,Zone 1 - North,Transport Related,33101,Home to School Trans,03/07/2012,3301566293,1619.3,R H Transport Services
http://statistics.data.gov.uk/id/local-authority/38,Oxfordshire County Council,Education & Early Intervention,Zone 1 - North,Transport Related,33101,Home to School Trans,03/07/2012,3301566294,1619.3,R H Transport Services
http://statistics.data.gov.uk/id/local-authority/38,Oxfordshire County Council,Education & Early Intervention,Zone 1 - North,Transport Related,33101,Home to School Trans,03/07/2012,3301566295,1619.3,R H Transport Services
http://statistics.data.gov.uk/id/local-authority/38,Oxfordshire County Council,Education & Early Intervention,Zone 1 - North,Transport Related,33101,Home to School Trans,03/07/2012,3301566296,1619.3,R H Transport Services
http://statistics.data.gov.uk/id/local-authority/38,Oxfordshire County Council,Education & Early Intervention,Zone 1 - North,Transport Related,33101,Home to School Trans,03/07/2012,3301566297,1948.1,R H Transport Services
http://statistics.data.gov.uk/id/local-authority/38,Oxfordshire County Council,Education & Early Intervention,Zone 1 - North,Transport Related,33101,Home to School Trans,03/07/2012,3301566298,677.5,R H Transport Services
http://statistics.data.gov.uk/id/local-authority/38,Oxfordshire County Council,Education & Early Intervention,Zone 4 - Vale,Transport Related,33101,Home to School Trans,03/07/2012,3301566301,1450,R H Transport Services
http://statistics.data.gov.uk/id/local-authority/38,Oxfordshire County Council,Education & Early Intervention,Zone 4 - Vale,Transport Related,33101,Home to School Trans,03/07/2012,3301566302,1450,R H Transport Services
http://statistics.data.gov.uk/id/local-authority/38,Oxfordshire County Council,Education & Early Intervention,Zone 4 - Vale,Transport Related,33101,Home to School Trans,03/07/2012,3301566303,1450,R H Transport Services
http://statistics.data.gov.uk/id/local-authority/38,Oxfordshire County Council,Education & Early Intervention,Zone 3 - West,Transport Related,33101,Home to School Trans,03/07/2012,3301566304,1740,R H Transport Services
http://statistics.data.gov.uk/id/local-authority/38,Oxfordshire County Council,Education & Early Intervention,Zone 3 - West,Transport Related,33101,Home to School Trans,03/07/2012,3301566305,1400,R H Transport Services
http://statistics.data.gov.uk/id/local-authority/38,Oxfordshire County Council,Education & Early Intervention,Zone 3 - West,Transport Related,33101,Home to School Trans,03/07/2012,3301566306,1400,R H Transport Services
http://statistics.data.gov.uk/id/local-authority/38,Oxfordshire County Council,Education & Early Intervention,Zone 4 - Vale,Transport Related,33101,Home to School Trans,03/07/2012,3301566307,1950,R H Transport Services
http://statistics.data.gov.uk/id/local-authority/38,Oxfordshire County Council,Education & Early Intervention,Zone 2 - East,Transport Related,33101,Home to School Trans,03/07/2012,3301566308,1838.8,R H Transport Services
http://statistics.data.gov.uk/id/local-authority/38,Oxfordshire County Council,Education & Early Intervention,Zone 2 - East,Transport Related,33101,Home to School Trans,03/07/2012,3301566309,1209.6,R H Transport Services
http://statistics.data.gov.uk/id/local-authority/38,Oxfordshire County Council,Education & Early Intervention,Zone 3 - West,Transport Related,33101,Home to School Trans,03/07/2012,3301566310,1300,R H Transport Services
http://statistics.data.gov.uk/id/local-authority/38,Oxfordshire County Council,Education & Early Intervention,Zone 3 - West,Transport Related,33101,Home to School Trans,03/07/2012,3301566311,1300,R H Transport Services
http://statistics.data.gov.uk/id/local-authority/38,Oxfordshire County Council,Education & Early Intervention,Zone 3 - West,Transport Related,33101,Home to School Trans,03/07/2012,3301566312,1300,R H Transport Services
http://statistics.data.gov.uk/id/local-authority/38,Oxfordshire County Council,Education & Early Intervention,Zone 3 - West,Transport Related,33101,Home to School Trans,03/07/2012,3301566313,1680,R H Transport Services
http://statistics.data.gov.uk/id/local-authority/38,Oxfordshire County Council,Education & Early Intervention,Witney SEN Trans,Transport Related,33101,Home to School Trans,03/07/2012,3301566316,1364.25,Excel Cars
http://statistics.data.gov.uk/id/local-authority/38,Oxfordshire County Council,Education & Early Intervention,Witney SEN Trans,Transport Related,33101,Home to School Trans,03/07/2012,3301566318,1879.8,Windrush Transport Ltd
http://statistics.data.gov.uk/id/local-authority/38,Oxfordshire County Council,Education & Early Intervention,Witney SEN Trans,Transport Related,33300,Transport (General),03/07/2012,3301566319,817.35,Windrush Transport Ltd
http://statistics.data.gov.uk/id/local-authority/38,Oxfordshire County Council,Education & Early Intervention,Banbury SEN Trans,Transport Related,33101,Home to School Trans,03/07/2012,3301566320,2702.56,Windrush Transport Ltd
http://statistics.data.gov.uk/id/local-authority/38,Oxfordshire County Council,Education & Early Intervention,Banbury SEN Trans,Transport Related,33300,Transport (General),03/07/2012,3301566321,697.44,Windrush Transport Ltd
http://statistics.data.gov.uk/id/local-authority/38,Oxfordshire County Council,Education & Early Intervention,Witney SEN Trans,Transport Related,33101,Home to School Trans,03/07/2012,3301566322,1798.05,Windrush Transport Ltd
http://statistics.data.gov.uk/id/local-authority/38,Oxfordshire County Council,Education & Early Intervention,Witney SEN Trans,Transport Related,33300,Transport (General),03/07/2012,3301566323,572.1,Windrush Transport Ltd
http://statistics.data.gov.uk/id/local-authority/38,Oxfordshire County Council,Education & Early Intervention,Witney SEN Trans,Transport Related,33101,Home to School Trans,03/07/2012,3301566324,1650.9,Windrush Transport Ltd
http://statistics.data.gov.uk/id/local-authority/38,Oxfordshire County Council,Education & Early Intervention,Witney SEN Trans,Transport Related,33300,Transport (General),03/07/2012,3301566325,572.1,Windrush Transport Ltd
http://statistics.data.gov.uk/id/local-authority/38,Oxfordshire County Council,Education & Early Intervention,Zone 4 - Vale,Transport Related,33101,Home to School Trans,03/07/2012,3301566328,1495.52,Windrush Transport Ltd
http://statistics.data.gov.uk/id/local-authority/38,Oxfordshire County Council,Education & Early Intervention,Zone 3 - West,Transport Related,33101,Home to School Trans,03/07/2012,3301566329,1495.52,Windrush Transport Ltd
http://statistics.data.gov.uk/id/local-authority/38,Oxfordshire County Council,Education & Early Intervention,Zone 3 - West,Transport Related,33101,Home to School Trans,03/07/2012,3301566330,1511.52,Windrush Transport Ltd
http://statistics.data.gov.uk/id/local-authority/38,Oxfordshire County Council,Education & Early Intervention,Oxford Nth SEN Trans,Transport Related,33101,Home to School Trans,03/07/2012,3301566335,2924.96,Mr K Booker
http://statistics.data.gov.uk/id/local-authority/38,Oxfordshire County Council,Education & Early Intervention,Abingdon SEN Trans,Transport Related,33101,Home to School Trans,03/07/2012,3301566336,1202.64,Mr K Booker
http://statistics.data.gov.uk/id/local-authority/38,Oxfordshire County Council,Education & Early Intervention,Oxford Sth SEN Trans,Transport Related,33101,Home to School Trans,03/07/2012,3301566337,1500,Mr K Booker
http://statistics.data.gov.uk/id/local-authority/38,Oxfordshire County Council,Education & Early Intervention,Zone 2 - East,Transport Related,33101,Home to School Trans,03/07/2012,3301566339,800.85,PREMIER CARS
http://statistics.data.gov.uk/id/local-authority/38,Oxfordshire County Council,Education & Early Intervention,Zone 2 - East,Transport Related,33101,Home to School Trans,03/07/2012,3301566340,686.4,PREMIER CARS
http://statistics.data.gov.uk/id/local-authority/38,Oxfordshire County Council,Education & Early Intervention,Zone 2 - East,Transport Related,33101,Home to School Trans,03/07/2012,3301566341,1050,PREMIER CARS
http://statistics.data.gov.uk/id/local-authority/38,Oxfordshire County Council,Education & Early Intervention,Zone 1 - North,Transport Related,33101,Home to School Trans,03/07/2012,3301566342,1623.45,PREMIER CARS
http://statistics.data.gov.uk/id/local-authority/38,Oxfordshire County Council,Education & Early Intervention,Abingdon SEN Trans,Transport Related,33101,Home to School Trans,03/07/2012,3301566343,1823.36,Toot's Taxis
http://statistics.data.gov.uk/id/local-authority/38,Oxfordshire County Council,Education & Early Intervention,Abingdon SEN Trans,Transport Related,33300,Transport (General),03/07/2012,3301566344,467.2,Toot's Taxis
http://statistics.data.gov.uk/id/local-authority/38,Oxfordshire County Council,Education & Early Intervention,Oxford Nth SEN Trans,Transport Related,33101,Home to School Trans,03/07/2012,3301566345,2018.88,Toot's Taxis
http://statistics.data.gov.uk/id/local-authority/38,Oxfordshire County Council,SCS Pooled Budgets,PD Comm Supp Purchasg Budget - City,Other Agency and Contracted Services,57401,Direct Payments,06/07/2012,3301566383,4495,HM Revenue & Customs
http://statistics.data.gov.uk/id/local-authority/38,Oxfordshire County Council,SCS Pooled Budgets,Extra Care Housing -South,Other Agency and Contracted Services,57150,Extra Care Housing Personal Care Charges,10/07/2012,3301566385,10261.6,Housing 21
http://statistics.data.gov.uk/id/local-authority/38,Oxfordshire County Council,Children's Social Care,Childrens Home Care Fixed Costs,Communications and Computing,45100,Postage,03/07/2012,3301566396,1000,Neopost Ltd Credifon RCB Account
http://statistics.data.gov.uk/id/local-authority/38,Oxfordshire County Council,Subscriptions,MIS Payroll Workflow,Balance Sheet General,B7102,Local Government AVC,04/07/2012,3301566541,75018.21,Prudential Assurance Co. Ltd
http://statistics.data.gov.uk/id/local-authority/38,Oxfordshire County Council,Subscriptions,MIS Payroll Workflow,Balance Sheet General,B7103,Teachers AVC,04/07/2012,3301566551,46259.63,Prudential Assurance
http://statistics.data.gov.uk/id/local-authority/38,Oxfordshire County Council,SCS Pooled Budgets,PD Comm Supp Purchasg Budget - Didcot,Other Agency and Contracted Services,57401,Direct Payments,04/07/2012,3301566595,564.2,REDACTED PERSONAL DATA
http://statistics.data.gov.uk/id/local-authority/38,Oxfordshire County Council,SCS Pooled Budgets,Direct Payments South Team,Other Agency and Contracted Services,57401,Direct Payments,04/07/2012,3301566596,552,REDACTED PERSONAL DATA
http://statistics.data.gov.uk/id/local-authority/38,Oxfordshire County Council,SCS Pooled Budgets,Direct Payments South Team,Other Agency and Contracted Services,57401,Direct Payments,04/07/2012,3301566597,720,REDACTED PERSONAL DATA
http://statistics.data.gov.uk/id/local-authority/38,Oxfordshire County Council,SCS Pooled Budgets,PD Comm Supp Purchasg Budget - City,Other Agency and Contracted Services,57401,Direct Payments,04/07/2012,3301566598,1912.4,REDACTED PERSONAL DATA
http://statistics.data.gov.uk/id/local-authority/38,Oxfordshire County Council,SCS Pooled Budgets,PD CS Purch Budget - Health S28a JC,Other Agency and Contracted Services,57401,Direct Payments,04/07/2012,3301566598,1146.4,REDACTED PERSONAL DATA
http://statistics.data.gov.uk/id/local-authority/38,Oxfordshire County Council,SCS Pooled Budgets,Community Support Budget - Kidlington,Other Agency and Contracted Services,57401,Direct Payments,04/07/2012,3301566599,904,REDACTED PERSONAL DATA
http://statistics.data.gov.uk/id/local-authority/38,Oxfordshire County Council,SCS Pooled Budgets,Personal Health Budgets OP (PCT),Other Agency and Contracted Services,57401,Direct Payments,04/07/2012,3301566603,5682.72,REDACTED PERSONAL DATA
http://statistics.data.gov.uk/id/local-authority/38,Oxfordshire County Council,SCS Pooled Budgets,Community Support Budget - City,Other Agency and Contracted Services,57401,Direct Payments,04/07/2012,3301566605,1000,REDACTED PERSONAL DATA
http://statistics.data.gov.uk/id/local-authority/38,Oxfordshire County Council,SCS Pooled Budgets,Direct Payments North Team,Other Agency and Contracted Services,57401,Direct Payments,04/07/2012,3301566606,1141.24,REDACTED PERSONAL DATA
http://statistics.data.gov.uk/id/local-authority/38,Oxfordshire County Council,SCS Pooled Budgets,Community Support Budget - Henley,Other Agency and Contracted Services,57401,Direct Payments,04/07/2012,3301566607,712,REDACTED PERSONAL DATA
http://statistics.data.gov.uk/id/local-authority/38,Oxfordshire County Council,SCS Pooled Budgets,PD Comm Supp Purchasg Budget - Henley,Other Agency and Contracted Services,57401,Direct Payments,04/07/2012,3301566608,840,REDACTED PERSONAL DATA
http://statistics.data.gov.uk/id/local-authority/38,Oxfordshire County Council,SCS Pooled Budgets,Community Support Budget - Banbury,Other Agency and Contracted Services,57401,Direct Payments,04/07/2012,3301566609,668,REDACTED PERSONAL DATA
http://statistics.data.gov.uk/id/local-authority/38,Oxfordshire County Council,SCS Pooled Budgets,Community Support Budget - City,Other Agency and Contracted Services,57401,Direct Payments,04/07/2012,3301566610,2280.72,REDACTED PERSONAL DATA
http://statistics.data.gov.uk/id/local-authority/38,Oxfordshire County Council,SCS Pooled Budgets,Community Support Budget - Witney,Other Agency and Contracted Services,57401,Direct Payments,04/07/2012,3301566612,1859.2,REDACTED PERSONAL DATA
http://statistics.data.gov.uk/id/local-authority/38,Oxfordshire County Council,SCS Pooled Budgets,Community Support Budget - Chipping Nort,Other Agency and Contracted Services,57401,Direct Payments,04/07/2012,3301566613,504,REDACTED PERSONAL DATA
http://statistics.data.gov.uk/id/local-authority/38,Oxfordshire County Council,SCS Pooled Budgets,Community Support Budget - Witney,Other Agency and Contracted Services,57401,Direct Payments,04/07/2012,3301566614,2072,REDACTED PERSONAL DATA
http://statistics.data.gov.uk/id/local-authority/38,Oxfordshire County Council,SCS Pooled Budgets,Community Support Budget - Kidlington,Other Agency and Contracted Services,57401,Direct Payments,04/07/2012,3301566615,855.44,REDACTED PERSONAL DATA
http://statistics.data.gov.uk/id/local-authority/38,Oxfordshire County Council,SCS Pooled Budgets,PD Comm Supp Budget - Banbury,Other Agency and Contracted Services,57401,Direct Payments,04/07/2012,3301566617,528,REDACTED PERSONAL DATA
http://statistics.data.gov.uk/id/local-authority/38,Oxfordshire County Council,SCS Pooled Budgets,Community Support Budget - Banbury,Other Agency and Contracted Services,57401,Direct Payments,04/07/2012,3301566618,1528,REDACTED PERSONAL DATA
http://statistics.data.gov.uk/id/local-authority/38,Oxfordshire County Council,SCS Pooled Budgets,Direct Payments South Team,Other Agency and Contracted Services,57401,Direct Payments,04/07/2012,3301566620,579.6,REDACTED PERSONAL DATA
http://statistics.data.gov.uk/id/local-authority/38,Oxfordshire County Council,SCS Pooled Budgets,Community Support Budget - Abingdon,Other Agency and Contracted Services,57401,Direct Payments,04/07/2012,3301566621,6287.14,REDACTED PERSONAL DATA
http://statistics.data.gov.uk/id/local-authority/38,Oxfordshire County Council,SCS Pooled Budgets,Community Support Budget - Banbury,Other Agency and Contracted Services,57401,Direct Payments,04/07/2012,3301566622,996,REDACTED PERSONAL DATA
http://statistics.data.gov.uk/id/local-authority/38,Oxfordshire County Council,SCS Pooled Budgets,Community Support Budget - Wantage,Other Agency and Contracted Services,57401,Direct Payments,04/07/2012,3301566623,2692,REDACTED PERSONAL DATA
http://statistics.data.gov.uk/id/local-authority/38,Oxfordshire County Council,SCS Pooled Budgets,Community Support Budget - Witney,Other Agency and Contracted Services,57401,Direct Payments,04/07/2012,3301566624,1636.8,REDACTED PERSONAL DATA
http://statistics.data.gov.uk/id/local-authority/38,Oxfordshire County Council,SCS Pooled Budgets,OP Pool Continuing Care Delegated Health,Other Agency and Contracted Services,57401,Direct Payments,04/07/2012,3301566624,522.68,REDACTED PERSONAL DATA
http://statistics.data.gov.uk/id/local-authority/38,Oxfordshire County Council,SCS Pooled Budgets,Community Support Budget - Bicester,Other Agency and Contracted Services,57401,Direct Payments,04/07/2012,3301566625,1688.32,REDACTED PERSONAL DATA
http://statistics.data.gov.uk/id/local-authority/38,Oxfordshire County Council,SCS Pooled Budgets,Community Support Budget - Chipping Nort,Other Agency and Contracted Services,57401,Direct Payments,04/07/2012,3301566627,840,REDACTED PERSONAL DATA
http://statistics.data.gov.uk/id/local-authority/38,Oxfordshire County Council,SCS Pooled Budgets,Community Support Budget - Banbury,Other Agency and Contracted Services,57401,Direct Payments,04/07/2012,3301566629,1200,REDACTED PERSONAL DATA
http://statistics.data.gov.uk/id/local-authority/38,Oxfordshire County Council,SCS Pooled Budgets,Community Support Budget - Banbury,Other Agency and Contracted Services,57401,Direct Payments,04/07/2012,3301566630,684,REDACTED PERSONAL DATA
http://statistics.data.gov.uk/id/local-authority/38,Oxfordshire County Council,SCS Pooled Budgets,Personal Health Budgets OP (PCT),Other Agency and Contracted Services,57401,Direct Payments,04/07/2012,3301566632,3680,REDACTED PERSONAL DATA
http://statistics.data.gov.uk/id/local-authority/38,Oxfordshire County Council,SCS Pooled Budgets,PD CS Purch Budget - Health S28a JC,Other Agency and Contracted Services,57401,Direct Payments,04/07/2012,3301566634,547.84,REDACTED PERSONAL DATA
http://statistics.data.gov.uk/id/local-authority/38,Oxfordshire County Council,SCS Pooled Budgets,PD Comm Supp Purchasg Budget - Didcot,Other Agency and Contracted Services,57401,Direct Payments,04/07/2012,3301566634,1280,REDACTED PERSONAL DATA
http://statistics.data.gov.uk/id/local-authority/38,Oxfordshire County Council,SCS Pooled Budgets,Community Support Budget - Abingdon,Other Agency and Contracted Services,57401,Direct Payments,04/07/2012,3301566635,2000,REDACTED PERSONAL DATA
http://statistics.data.gov.uk/id/local-authority/38,Oxfordshire County Council,SCS Pooled Budgets,Direct Payments North Team,Other Agency and Contracted Services,57401,Direct Payments,04/07/2012,3301566636,916,REDACTED PERSONAL DATA
http://statistics.data.gov.uk/id/local-authority/38,Oxfordshire County Council,SCS Pooled Budgets,Direct Payments South Team,Other Agency and Contracted Services,57401,Direct Payments,04/07/2012,3301566637,6537.4,REDACTED PERSONAL DATA
http://statistics.data.gov.uk/id/local-authority/38,Oxfordshire County Council,SCS Pooled Budgets,Direct Payments South Team,Other Agency and Contracted Services,57401,Direct Payments,04/07/2012,3301566638,4491.6,REDACTED PERSONAL DATA
http://statistics.data.gov.uk/id/local-authority/38,Oxfordshire County Council,SCS Pooled Budgets,Direct Payments South Team,Other Agency and Contracted Services,57401,Direct Payments,04/07/2012,3301566639,2051.08,REDACTED PERSONAL DATA
http://statistics.data.gov.uk/id/local-authority/38,Oxfordshire County Council,SCS Pooled Budgets,Direct Payments South Team,Other Agency and Contracted Services,57401,Direct Payments,04/07/2012,3301566642,1956,REDACTED PERSONAL DATA
http://statistics.data.gov.uk/id/local-authority/38,Oxfordshire County Council,SCS Pooled Budgets,Direct Payments North Team,Other Agency and Contracted Services,57401,Direct Payments,04/07/2012,3301566643,573.84,REDACTED PERSONAL DATA
http://statistics.data.gov.uk/id/local-authority/38,Oxfordshire County Council,SCS Pooled Budgets,Community Support Budget - Bicester,Other Agency and Contracted Services,57401,Direct Payments,04/07/2012,3301566644,4408.14,REDACTED PERSONAL DATA
http://statistics.data.gov.uk/id/local-authority/38,Oxfordshire County Council,SCS Pooled Budgets,OP Pool Continuing Care Delegated Health,Other Agency and Contracted Services,57401,Direct Payments,04/07/2012,3301566644,2275.71,REDACTED PERSONAL DATA
http://statistics.data.gov.uk/id/local-authority/38,Oxfordshire County Council,SCS Pooled Budgets,Direct Payments South Team,Other Agency and Contracted Services,57401,Direct Payments,04/07/2012,3301566646,1246.08,REDACTED PERSONAL DATA
http://statistics.data.gov.uk/id/local-authority/38,Oxfordshire County Council,SCS Pooled Budgets,Personal Health Budgets OP (PCT),Other Agency and Contracted Services,57401,Direct Payments,04/07/2012,3301566648,4008,REDACTED PERSONAL DATA
http://statistics.data.gov.uk/id/local-authority/38,Oxfordshire County Council,SCS Pooled Budgets,Direct Payments North Team,Other Agency and Contracted Services,57401,Direct Payments,04/07/2012,3301566649,546.92,REDACTED PERSONAL DATA
http://statistics.data.gov.uk/id/local-authority/38,Oxfordshire County Council,SCS Pooled Budgets,Community Support Budget - Banbury,Other Agency and Contracted Services,57401,Direct Payments,04/07/2012,3301566650,520,REDACTED PERSONAL DATA
http://statistics.data.gov.uk/id/local-authority/38,Oxfordshire County Council,SCS Pooled Budgets,Direct Payments South Team,Other Agency and Contracted Services,57401,Direct Payments,04/07/2012,3301566651,1197.45,REDACTED PERSONAL DATA
http://statistics.data.gov.uk/id/local-authority/38,Oxfordshire County Council,SCS Pooled Budgets,Continuing Health Care,Other Agency and Contracted Services,57401,Direct Payments,04/07/2012,3301566652,800,REDACTED PERSONAL DATA
http://statistics.data.gov.uk/id/local-authority/38,Oxfordshire County Council,SCS Pooled Budgets,Direct Payments City Team,Other Agency and Contracted Services,57401,Direct Payments,04/07/2012,3301566653,509.68,REDACTED PERSONAL DATA
http://statistics.data.gov.uk/id/local-authority/38,Oxfordshire County Council,SCS Pooled Budgets,Direct Payments South Team,Other Agency and Contracted Services,57401,Direct Payments,04/07/2012,3301566655,1458,REDACTED PERSONAL DATA
http://statistics.data.gov.uk/id/local-authority/38,Oxfordshire County Council,SCS Pooled Budgets,Direct Payments South Team,Other Agency and Contracted Services,57401,Direct Payments,04/07/2012,3301566655,-659.34,REDACTED PERSONAL DATA
http://statistics.data.gov.uk/id/local-authority/38,Oxfordshire County Council,SCS Pooled Budgets,Direct Payments South Team,Other Agency and Contracted Services,57401,Direct Payments,04/07/2012,3301566656,762.6,REDACTED PERSONAL DATA
http://statistics.data.gov.uk/id/local-authority/38,Oxfordshire County Council,SCS Pooled Budgets,PD Comm Supp Purchasg Budget - Witney,Other Agency and Contracted Services,57401,Direct Payments,04/07/2012,3301566657,1280.3,REDACTED PERSONAL DATA
http://statistics.data.gov.uk/id/local-authority/38,Oxfordshire County Council,SCS Pooled Budgets,Community Support Budget - Witney,Other Agency and Contracted Services,57401,Direct Payments,04/07/2012,3301566659,1244,REDACTED PERSONAL DATA
http://statistics.data.gov.uk/id/local-authority/38,Oxfordshire County Council,SCS Pooled Budgets,Direct Payments North Team,Other Agency and Contracted Services,57401,Direct Payments,04/07/2012,3301566660,3881.52,REDACTED PERSONAL DATA
http://statistics.data.gov.uk/id/local-authority/38,Oxfordshire County Council,SCS Pooled Budgets,Direct Payments North Team,Other Agency and Contracted Services,57401,Direct Payments,04/07/2012,3301566661,880,REDACTED PERSONAL DATA
http://statistics.data.gov.uk/id/local-authority/38,Oxfordshire County Council,SCS Pooled Budgets,PD Community Support Budget - Faringdon,Other Agency and Contracted Services,57401,Direct Payments,04/07/2012,3301566662,1158.2,REDACTED PERSONAL DATA
http://statistics.data.gov.uk/id/local-authority/38,Oxfordshire County Council,SCS Pooled Budgets,PD CS Purch Budget - Health S28a JC,Other Agency and Contracted Services,57401,Direct Payments,04/07/2012,3301566662,505.6,REDACTED PERSONAL DATA
http://statistics.data.gov.uk/id/local-authority/38,Oxfordshire County Council,SCS Pooled Budgets,PD Community Support Budget - Faringdon,Other Agency and Contracted Services,57401,Direct Payments,04/07/2012,3301566663,1410.4,REDACTED PERSONAL DATA
http://statistics.data.gov.uk/id/local-authority/38,Oxfordshire County Council,SCS Pooled Budgets,PD Comm Supp Purchasg Budget - Wantage,Other Agency and Contracted Services,57401,Direct Payments,04/07/2012,3301566664,981,REDACTED PERSONAL DATA
http://statistics.data.gov.uk/id/local-authority/38,Oxfordshire County Council,SCS Pooled Budgets,PD Community Support Budget - Faringdon,Other Agency and Contracted Services,57401,Direct Payments,04/07/2012,3301566666,1071.88,REDACTED PERSONAL DATA
http://statistics.data.gov.uk/id/local-authority/38,Oxfordshire County Council,SCS Pooled Budgets,PD Comm Supp Purchasg Budget - City,Other Agency and Contracted Services,57401,Direct Payments,04/07/2012,3301566667,1624,REDACTED PERSONAL DATA
http://statistics.data.gov.uk/id/local-authority/38,Oxfordshire County Council,SCS Pooled Budgets,PD Comm Supp Purchasg Budget - City,Other Agency and Contracted Services,57401,Direct Payments,04/07/2012,3301566668,3788.8,REDACTED PERSONAL DATA
http://statistics.data.gov.uk/id/local-authority/38,Oxfordshire County Council,SCS Pooled Budgets,Direct Payments South Team,Other Agency and Contracted Services,57401,Direct Payments,04/07/2012,3301566669,6690.24,REDACTED PERSONAL DATA
http://statistics.data.gov.uk/id/local-authority/38,Oxfordshire County Council,SCS Pooled Budgets,Direct Payments City Team,Other Agency and Contracted Services,57401,Direct Payments,04/07/2012,3301566672,2360.48,REDACTED PERSONAL DATA
http://statistics.data.gov.uk/id/local-authority/38,Oxfordshire County Council,SCS Pooled Budgets,PD Comm Supp Purchasg Budget - City,Other Agency and Contracted Services,57401,Direct Payments,04/07/2012,3301566673,2034.72,REDACTED PERSONAL DATA
http://statistics.data.gov.uk/id/local-authority/38,Oxfordshire County Council,SCS Pooled Budgets,Community Support Budget - City,Other Agency and Contracted Services,57401,Direct Payments,04/07/2012,3301566674,2372.16,REDACTED PERSONAL DATA
http://statistics.data.gov.uk/id/local-authority/38,Oxfordshire County Council,SCS Pooled Budgets,OP Pool Continuing Care Delegated Health,Other Agency and Contracted Services,57401,Direct Payments,04/07/2012,3301566674,822.48,REDACTED PERSONAL DATA
http://statistics.data.gov.uk/id/local-authority/38,Oxfordshire County Council,SCS Pooled Budgets,Direct Payments City Team,Other Agency and Contracted Services,57401,Direct Payments,04/07/2012,3301566675,1360,REDACTED PERSONAL DATA
http://statistics.data.gov.uk/id/local-authority/38,Oxfordshire County Council,SCS Pooled Budgets,Direct Payments City Team,Other Agency and Contracted Services,57401,Direct Payments,04/07/2012,3301566676,1360,REDACTED PERSONAL DATA
http://statistics.data.gov.uk/id/local-authority/38,Oxfordshire County Council,SCS Pooled Budgets,PD Comm Supp Purchasg Budget - City,Other Agency and Contracted Services,57401,Direct Payments,04/07/2012,3301566677,976.36,REDACTED PERSONAL DATA
http://statistics.data.gov.uk/id/local-authority/38,Oxfordshire County Council,SCS Pooled Budgets,PD Comm Supp Purchasg Budget - City,Other Agency and Contracted Services,57401,Direct Payments,04/07/2012,3301566678,1320,REDACTED PERSONAL DATA
http://statistics.data.gov.uk/id/local-authority/38,Oxfordshire County Council,SCS Pooled Budgets,Direct Payments City Team,Other Agency and Contracted Services,57401,Direct Payments,04/07/2012,3301566679,611.24,REDACTED PERSONAL DATA
http://statistics.data.gov.uk/id/local-authority/38,Oxfordshire County Council,SCS Pooled Budgets,PD Comm Supp Purchasg Budget - City,Other Agency and Contracted Services,57401,Direct Payments,04/07/2012,3301566680,3104,REDACTED PERSONAL DATA
http://statistics.data.gov.uk/id/local-authority/38,Oxfordshire County Council,SCS Pooled Budgets,PD CS Purch Budget - Health S28a JC,Other Agency and Contracted Services,57401,Direct Payments,04/07/2012,3301566680,508,REDACTED PERSONAL DATA
http://statistics.data.gov.uk/id/local-authority/38,Oxfordshire County Council,SCS Pooled Budgets,Direct Payments South Team,Other Agency and Contracted Services,57401,Direct Payments,04/07/2012,3301566682,835.68,REDACTED PERSONAL DATA
http://statistics.data.gov.uk/id/local-authority/38,Oxfordshire County Council,SCS Pooled Budgets,Direct Payments North Team,Other Agency and Contracted Services,57401,Direct Payments,04/07/2012,3301566683,1614.16,REDACTED PERSONAL DATA
http://statistics.data.gov.uk/id/local-authority/38,Oxfordshire County Council,SCS Pooled Budgets,Direct Payments North Team,Other Agency and Contracted Services,57401,Direct Payments,04/07/2012,3301566685,900,REDACTED PERSONAL DATA
http://statistics.data.gov.uk/id/local-authority/38,Oxfordshire County Council,SCS Pooled Budgets,Direct Payments South Team,Other Agency and Contracted Services,57401,Direct Payments,04/07/2012,3301566687,1735.84,REDACTED PERSONAL DATA
http://statistics.data.gov.uk/id/local-authority/38,Oxfordshire County Council,SCS Pooled Budgets,Direct Payments South Team,Other Agency and Contracted Services,57401,Direct Payments,04/07/2012,3301566688,1787.12,REDACTED PERSONAL DATA
http://statistics.data.gov.uk/id/local-authority/38,Oxfordshire County Council,SCS Pooled Budgets,PD Comm Supp Purchasg Budget - Thame,Other Agency and Contracted Services,57401,Direct Payments,04/07/2012,3301566689,1171.56,REDACTED PERSONAL DATA
http://statistics.data.gov.uk/id/local-authority/38,Oxfordshire County Council,SCS Pooled Budgets,Direct Payments South Team,Other Agency and Contracted Services,57401,Direct Payments,04/07/2012,3301566690,5777.2,REDACTED PERSONAL DATA
http://statistics.data.gov.uk/id/local-authority/38,Oxfordshire County Council,SCS Pooled Budgets,Direct Payments South Team,Other Agency and Contracted Services,57401,Direct Payments,04/07/2012,3301566691,1008,REDACTED PERSONAL DATA
http://statistics.data.gov.uk/id/local-authority/38,Oxfordshire County Council,SCS Pooled Budgets,PD Comm Supp Purchasg Budget - Thame,Other Agency and Contracted Services,57401,Direct Payments,04/07/2012,3301566692,1236,REDACTED PERSONAL DATA
http://statistics.data.gov.uk/id/local-authority/38,Oxfordshire County Council,SCS Pooled Budgets,Direct Payments South Team,Other Agency and Contracted Services,57401,Direct Payments,04/07/2012,3301566693,4428.4,REDACTED PERSONAL DATA
http://statistics.data.gov.uk/id/local-authority/38,Oxfordshire County Council,SCS Pooled Budgets,Direct Payments South Team,Other Agency and Contracted Services,57401,Direct Payments,04/07/2012,3301566693,6642.6,REDACTED PERSONAL DATA
http://statistics.data.gov.uk/id/local-authority/38,Oxfordshire County Council,SCS Pooled Budgets,Direct Payments South Team,Other Agency and Contracted Services,57401,Direct Payments,04/07/2012,3301566693,-6574.38,REDACTED PERSONAL DATA
http://statistics.data.gov.uk/id/local-authority/38,Oxfordshire County Council,SCS Pooled Budgets,Direct Payments South Team,Other Agency and Contracted Services,57401,Direct Payments,04/07/2012,3301566694,1886.76,REDACTED PERSONAL DATA
http://statistics.data.gov.uk/id/local-authority/38,Oxfordshire County Council,SCS Pooled Budgets,Direct Payments City Team,Other Agency and Contracted Services,57401,Direct Payments,04/07/2012,3301566695,7014.68,REDACTED PERSONAL DATA
http://statistics.data.gov.uk/id/local-authority/38,Oxfordshire County Council,SCS Pooled Budgets,Direct Payments City Team,Other Agency and Contracted Services,57401,Direct Payments,04/07/2012,3301566695,-3723.1,REDACTED PERSONAL DATA
http://statistics.data.gov.uk/id/local-authority/38,Oxfordshire County Council,SCS Pooled Budgets,Direct Payments City Team,Other Agency and Contracted Services,57401,Direct Payments,04/07/2012,3301566695,3167.92,REDACTED PERSONAL DATA
http://statistics.data.gov.uk/id/local-authority/38,Oxfordshire County Council,SCS Pooled Budgets,Direct Payments City Team,Other Agency and Contracted Services,57401,Direct Payments,04/07/2012,3301566695,3377.57,REDACTED PERSONAL DATA
http://statistics.data.gov.uk/id/local-authority/38,Oxfordshire County Council,SCS Pooled Budgets,Direct Payments City Team,Other Agency and Contracted Services,57401,Direct Payments,04/07/2012,3301566695,-2221.85,REDACTED PERSONAL DATA
http://statistics.data.gov.uk/id/local-authority/38,Oxfordshire County Council,SCS Pooled Budgets,Direct Payments North Team,Other Agency and Contracted Services,57401,Direct Payments,04/07/2012,3301566696,600,REDACTED PERSONAL DATA
http://statistics.data.gov.uk/id/local-authority/38,Oxfordshire County Council,SCS Pooled Budgets,PD Comm Supp Purchasg Budget - Witney,Other Agency and Contracted Services,57401,Direct Payments,04/07/2012,3301566697,1217.8,REDACTED PERSONAL DATA
http://statistics.data.gov.uk/id/local-authority/38,Oxfordshire County Council,SCS Pooled Budgets,PD Comm Supp Purchasg Budget - Witney,Other Agency and Contracted Services,57401,Direct Payments,04/07/2012,3301566697,1696.22,REDACTED PERSONAL DATA
http://statistics.data.gov.uk/id/local-authority/38,Oxfordshire County Council,SCS Pooled Budgets,PD Comm Supp Budgt - Bicester/Kidlington,Other Agency and Contracted Services,57401,Direct Payments,04/07/2012,3301566697,-1503.28,REDACTED PERSONAL DATA
http://statistics.data.gov.uk/id/local-authority/38,Oxfordshire County Council,SCS Pooled Budgets,Community Support Budget - Banbury,Other Agency and Contracted Services,57401,Direct Payments,04/07/2012,3301566699,968,REDACTED PERSONAL DATA
http://statistics.data.gov.uk/id/local-authority/38,Oxfordshire County Council,SCS Pooled Budgets,Community Support Budget - Banbury,Other Agency and Contracted Services,57401,Direct Payments,04/07/2012,3301566699,2904,REDACTED PERSONAL DATA
http://statistics.data.gov.uk/id/local-authority/38,Oxfordshire County Council,SCS Pooled Budgets,Community Support Budget - Banbury,Other Agency and Contracted Services,57401,Direct Payments,04/07/2012,3301566699,-2160,REDACTED PERSONAL DATA
http://statistics.data.gov.uk/id/local-authority/38,Oxfordshire County Council,SCS Pooled Budgets,Direct Payments North Team,Other Agency and Contracted Services,57401,Direct Payments,04/07/2012,3301566700,3426.16,REDACTED PERSONAL DATA
http://statistics.data.gov.uk/id/local-authority/38,Oxfordshire County Council,SCS Pooled Budgets,PD Comm Supp Budget - Banbury,Other Agency and Contracted Services,57401,Direct Payments,04/07/2012,3301566701,2139.4,REDACTED PERSONAL DATA
http://statistics.data.gov.uk/id/local-authority/38,Oxfordshire County Council,SCS Pooled Budgets,PD CS Purch Budget - Health S28a JC,Other Agency and Contracted Services,57401,Direct Payments,04/07/2012,3301566701,627.2,REDACTED PERSONAL DATA
http://statistics.data.gov.uk/id/local-authority/38,Oxfordshire County Council,SCS Pooled Budgets,PD Comm Supp Budget - Banbury,Other Agency and Contracted Services,57401,Direct Payments,04/07/2012,3301566702,1992,REDACTED PERSONAL DATA
http://statistics.data.gov.uk/id/local-authority/38,Oxfordshire County Council,SCS Pooled Budgets,Community Support Budget - Banbury,Other Agency and Contracted Services,57401,Direct Payments,04/07/2012,3301566703,1392,REDACTED PERSONAL DATA
http://statistics.data.gov.uk/id/local-authority/38,Oxfordshire County Council,SCS Pooled Budgets,Direct Payments North Team,Other Agency and Contracted Services,57401,Direct Payments,04/07/2012,3301566704,12203.64,REDACTED PERSONAL DATA
http://statistics.data.gov.uk/id/local-authority/38,Oxfordshire County Council,SCS Pooled Budgets,Direct Payments North Team,Other Agency and Contracted Services,57401,Direct Payments,04/07/2012,3301566705,800,REDACTED PERSONAL DATA
http://statistics.data.gov.uk/id/local-authority/38,Oxfordshire County Council,SCS Pooled Budgets,LD Carers Grants,Other Agency and Contracted Services,57401,Direct Payments,04/07/2012,3301566706,682.26,REDACTED PERSONAL DATA
http://statistics.data.gov.uk/id/local-authority/38,Oxfordshire County Council,SCS Pooled Budgets,Community Support Budget - Abingdon,Other Agency and Contracted Services,57401,Direct Payments,04/07/2012,3301566708,775.76,REDACTED PERSONAL DATA
http://statistics.data.gov.uk/id/local-authority/38,Oxfordshire County Council,SCS Pooled Budgets,Community Support Budget - Banbury,Other Agency and Contracted Services,57401,Direct Payments,04/07/2012,3301566711,1312,REDACTED PERSONAL DATA
http://statistics.data.gov.uk/id/local-authority/38,Oxfordshire County Council,SCS Pooled Budgets,Direct Payments South Team,Other Agency and Contracted Services,57401,Direct Payments,04/07/2012,3301566712,600,REDACTED PERSONAL DATA
http://statistics.data.gov.uk/id/local-authority/38,Oxfordshire County Council,SCS Pooled Budgets,Community Support Budget - City,Other Agency and Contracted Services,57401,Direct Payments,04/07/2012,3301566713,1092,REDACTED PERSONAL DATA
http://statistics.data.gov.uk/id/local-authority/38,Oxfordshire County Council,SCS Pooled Budgets,PD Comm Supp Purchasg Budget - City,Other Agency and Contracted Services,57401,Direct Payments,04/07/2012,3301566714,760.64,Citibank NA London
http://statistics.data.gov.uk/id/local-authority/38,Oxfordshire County Council,SCS Pooled Budgets,PD Comm Supp Purchasg Budget - Didcot,Other Agency and Contracted Services,57401,Direct Payments,04/07/2012,3301566722,605.61,A4e Management Ltd Week 4
http://statistics.data.gov.uk/id/local-authority/38,Oxfordshire County Council,SCS Pooled Budgets,PD CS Purch Budget - Health S28a JC,Other Agency and Contracted Services,57401,Direct Payments,04/07/2012,3301566722,750.39,A4e Management Ltd Week 4
http://statistics.data.gov.uk/id/local-authority/38,Oxfordshire County Council,SCS Pooled Budgets,Community Support Budget - Didcot,Other Agency and Contracted Services,57401,Direct Payments,04/07/2012,3301566724,540,A4e Management Ltd Week 4
http://statistics.data.gov.uk/id/local-authority/38,Oxfordshire County Council,SCS Pooled Budgets,Community Support Budget - Bicester,Other Agency and Contracted Services,57401,Direct Payments,04/07/2012,3301566729,558,A4e Management Ltd Week 4
http://statistics.data.gov.uk/id/local-authority/38,Oxfordshire County Council,SCS Pooled Budgets,Community Support Budget - Banbury,Other Agency and Contracted Services,57401,Direct Payments,04/07/2012,3301566731,665.43,A4e Management Ltd Week 4
http://statistics.data.gov.uk/id/local-authority/38,Oxfordshire County Council,SCS Pooled Budgets,Community Support Budget - Chipping Nort,Other Agency and Contracted Services,57401,Direct Payments,04/07/2012,3301566734,768,A4e Management Ltd Week 4
http://statistics.data.gov.uk/id/local-authority/38,Oxfordshire County Council,SCS Pooled Budgets,Community Support Budget - Witney,Other Agency and Contracted Services,57401,Direct Payments,04/07/2012,3301566737,738,A4e Management Ltd Week 4
http://statistics.data.gov.uk/id/local-authority/38,Oxfordshire County Council,SCS Pooled Budgets,Community Support Budget - Banbury,Other Agency and Contracted Services,57401,Direct Payments,04/07/2012,3301566739,1905,A4e Management Ltd Week 4
http://statistics.data.gov.uk/id/local-authority/38,Oxfordshire County Council,SCS Pooled Budgets,Community Support Budget - Banbury,Other Agency and Contracted Services,57401,Direct Payments,04/07/2012,3301566739,635,A4e Management Ltd Week 4
http://statistics.data.gov.uk/id/local-authority/38,Oxfordshire County Council,SCS Pooled Budgets,Direct Payments South Team,Other Agency and Contracted Services,57401,Direct Payments,04/07/2012,3301566740,1272,A4e Management Ltd Week 4
http://statistics.data.gov.uk/id/local-authority/38,Oxfordshire County Council,SCS Pooled Budgets,PD Comm Supp Purchasg Budget - Wantage,Other Agency and Contracted Services,57401,Direct Payments,04/07/2012,3301566741,815.07,A4e Management Ltd Week 4
http://statistics.data.gov.uk/id/local-authority/38,Oxfordshire County Council,SCS Pooled Budgets,PD Comm Supp Purchasg Budget - Abingdon,Other Agency and Contracted Services,57401,Direct Payments,04/07/2012,3301566742,1455,A4e Management Ltd Week 4
http://statistics.data.gov.uk/id/local-authority/38,Oxfordshire County Council,SCS Pooled Budgets,Community Support Budget - Chipping Nort,Other Agency and Contracted Services,57401,Direct Payments,04/07/2012,3301566744,1083,A4e Management Ltd Week 4
http://statistics.data.gov.uk/id/local-authority/38,Oxfordshire County Council,SCS Pooled Budgets,Community Support Budget - Chipping Nort,Other Agency and Contracted Services,57401,Direct Payments,04/07/2012,3301566747,8900.57,A4e Management Ltd Week 4
http://statistics.data.gov.uk/id/local-authority/38,Oxfordshire County Council,SCS Pooled Budgets,Community Support Budget - Witney,Other Agency and Contracted Services,57401,Direct Payments,04/07/2012,3301566747,-2427.43,A4e Management Ltd Week 4
http://statistics.data.gov.uk/id/local-authority/38,Oxfordshire County Council,SCS Pooled Budgets,Community Support Budget - Chipping Nort,Other Agency and Contracted Services,57401,Direct Payments,04/07/2012,3301566747,1584,A4e Management Ltd Week 4
http://statistics.data.gov.uk/id/local-authority/38,Oxfordshire County Council,SCS Pooled Budgets,Community Support Budget - Chipping Nort,Other Agency and Contracted Services,57401,Direct Payments,04/07/2012,3301566747,528,A4e Management Ltd Week 4
http://statistics.data.gov.uk/id/local-authority/38,Oxfordshire County Council,SCS Pooled Budgets,Community Support Budget - Kidlington,Other Agency and Contracted Services,57401,Direct Payments,04/07/2012,3301566750,4098.07,A4e Management Ltd Week 4
http://statistics.data.gov.uk/id/local-authority/38,Oxfordshire County Council,SCS Pooled Budgets,Community Support Budget - Kidlington,Other Agency and Contracted Services,57401,Direct Payments,04/07/2012,3301566750,-2376.97,A4e Management Ltd Week 4
http://statistics.data.gov.uk/id/local-authority/38,Oxfordshire County Council,SCS Pooled Budgets,Direct Payments North Team,Other Agency and Contracted Services,57401,Direct Payments,04/07/2012,3301566752,838.08,A4e Management Ltd Week 4
http://statistics.data.gov.uk/id/local-authority/38,Oxfordshire County Council,SCS Pooled Budgets,PD Community Support Budget - Kidlington,Other Agency and Contracted Services,57401,Direct Payments,04/07/2012,3301566754,1425,A4e Management Ltd Week 4
http://statistics.data.gov.uk/id/local-authority/38,Oxfordshire County Council,SCS Pooled Budgets,Community Support Budget - Bicester,Other Agency and Contracted Services,57401,Direct Payments,04/07/2012,3301566759,570,A4e Management Ltd Week 4
http://statistics.data.gov.uk/id/local-authority/38,Oxfordshire County Council,SCS Pooled Budgets,PD Comm Supp Budget - Banbury,Other Agency and Contracted Services,57401,Direct Payments,04/07/2012,3301566761,768,A4e Management Ltd Week 4
http://statistics.data.gov.uk/id/local-authority/38,Oxfordshire County Council,SCS Pooled Budgets,PD Community Support Budget - Faringdon,Other Agency and Contracted Services,57401,Direct Payments,04/07/2012,3301566762,911.4,A4e Management Ltd Week 4
http://statistics.data.gov.uk/id/local-authority/38,Oxfordshire County Council,SCS Pooled Budgets,PD Comm Supp Purchasg Budget - City,Other Agency and Contracted Services,57401,Direct Payments,04/07/2012,3301566763,7579.14,A4e Management Ltd Week 4
http://statistics.data.gov.uk/id/local-authority/38,Oxfordshire County Council,SCS Pooled Budgets,PD Comm Supp Purchasg Budget - Henley,Other Agency and Contracted Services,57401,Direct Payments,04/07/2012,3301566763,-5738.95,A4e Management Ltd Week 4
http://statistics.data.gov.uk/id/local-authority/38,Oxfordshire County Council,SCS Pooled Budgets,PD Comm Supp Purchasg Budget - Henley,Other Agency and Contracted Services,57401,Direct Payments,04/07/2012,3301566763,1469.73,A4e Management Ltd Week 4
http://statistics.data.gov.uk/id/local-authority/38,Oxfordshire County Council,SCS Pooled Budgets,PD Comm Supp Purchasg Budget - Didcot,Other Agency and Contracted Services,57401,Direct Payments,04/07/2012,3301566764,1428,A4e Management Ltd Week 4
http://statistics.data.gov.uk/id/local-authority/38,Oxfordshire County Council,SCS Pooled Budgets,Community Support Budget - Chipping Nort,Other Agency and Contracted Services,57401,Direct Payments,04/07/2012,3301566765,840,A4e Management Ltd Week 4
http://statistics.data.gov.uk/id/local-authority/38,Oxfordshire County Council,SCS Pooled Budgets,PD Comm Supp Purchasg Budget - Abingdon,Other Agency and Contracted Services,57401,Direct Payments,04/07/2012,3301566766,531,A4e Management Ltd Week 4
http://statistics.data.gov.uk/id/local-authority/38,Oxfordshire County Council,SCS Pooled Budgets,Direct Payments North Team,Other Agency and Contracted Services,57401,Direct Payments,04/07/2012,3301566768,1500,A4e Management Ltd Week 4
http://statistics.data.gov.uk/id/local-authority/38,Oxfordshire County Council,SCS Pooled Budgets,Direct Payments North Team,Other Agency and Contracted Services,57401,Direct Payments,04/07/2012,3301566768,500,A4e Management Ltd Week 4
http://statistics.data.gov.uk/id/local-authority/38,Oxfordshire County Council,SCS Pooled Budgets,PD Comm Supp Purchasg Budget - City,Other Agency and Contracted Services,57401,Direct Payments,04/07/2012,3301566769,683.55,A4e Management Ltd Week 4
http://statistics.data.gov.uk/id/local-authority/38,Oxfordshire County Council,SCS Pooled Budgets,Community Support Budget - Banbury,Other Agency and Contracted Services,57401,Direct Payments,04/07/2012,3301566770,903,A4e Management Ltd Week 4
http://statistics.data.gov.uk/id/local-authority/38,Oxfordshire County Council,SCS Pooled Budgets,Community Support Budget - Banbury,Other Agency and Contracted Services,57401,Direct Payments,04/07/2012,3301566772,611.4,A4e Management Ltd Week 4
http://statistics.data.gov.uk/id/local-authority/38,Oxfordshire County Council,SCS Pooled Budgets,Community Support Budget - Abingdon,Other Agency and Contracted Services,57401,Direct Payments,04/07/2012,3301566773,729,A4e Management Ltd Week 4
http://statistics.data.gov.uk/id/local-authority/38,Oxfordshire County Council,SCS Pooled Budgets,PD Comm Supp Purchasg Budget - Witney,Other Agency and Contracted Services,57401,Direct Payments,04/07/2012,3301566775,695.76,A4e Management Ltd Week 4
http://statistics.data.gov.uk/id/local-authority/38,Oxfordshire County Council,SCS Pooled Budgets,Community Support Budget - Bicester,Other Agency and Contracted Services,57401,Direct Payments,04/07/2012,3301566780,765,A4e Management Ltd Week 4
http://statistics.data.gov.uk/id/local-authority/38,Oxfordshire County Council,SCS Pooled Budgets,Community Support Budget - Banbury,Other Agency and Contracted Services,57401,Direct Payments,04/07/2012,3301566782,512.76,A4e Management Ltd Week 4
http://statistics.data.gov.uk/id/local-authority/38,Oxfordshire County Council,SCS Pooled Budgets,Community Support Budget - Didcot,Other Agency and Contracted Services,57401,Direct Payments,04/07/2012,3301566783,570.54,A4e Management Ltd Week 4
http://statistics.data.gov.uk/id/local-authority/38,Oxfordshire County Council,SCS Pooled Budgets,Personal Health Budgets PD (PCT),Other Agency and Contracted Services,57401,Direct Payments,04/07/2012,3301566788,1933.2,A4e Management Ltd Week 4
http://statistics.data.gov.uk/id/local-authority/38,Oxfordshire County Council,SCS Pooled Budgets,Personal Health Budgets PD (PCT),Other Agency and Contracted Services,57401,Direct Payments,04/07/2012,3301566788,644.4,A4e Management Ltd Week 4
http://statistics.data.gov.uk/id/local-authority/38,Oxfordshire County Council,SCS Pooled Budgets,PD Community Support Budget - Kidlington,Other Agency and Contracted Services,57401,Direct Payments,04/07/2012,3301566789,1331.09,A4e Management Ltd Week 4
http://statistics.data.gov.uk/id/local-authority/38,Oxfordshire County Council,SCS Pooled Budgets,Direct Payments South Team,Other Agency and Contracted Services,57401,Direct Payments,04/07/2012,3301566790,602.18,A4e Management Ltd Week 4
http://statistics.data.gov.uk/id/local-authority/38,Oxfordshire County Council,SCS Pooled Budgets,Community Support Budget - Banbury,Other Agency and Contracted Services,57401,Direct Payments,04/07/2012,3301566792,753,A4e Management Ltd Week 4
http://statistics.data.gov.uk/id/local-authority/38,Oxfordshire County Council,SCS Pooled Budgets,Community Support Budget - City,Other Agency and Contracted Services,57401,Direct Payments,04/07/2012,3301566793,712.14,A4e Management Ltd Week 4
http://statistics.data.gov.uk/id/local-authority/38,Oxfordshire County Council,SCS Pooled Budgets,PD Comm Supp Purchasg Budget - Witney,Other Agency and Contracted Services,57401,Direct Payments,04/07/2012,3301566795,807.3,A4e Management Ltd Week 4
http://statistics.data.gov.uk/id/local-authority/38,Oxfordshire County Council,SCS Pooled Budgets,Community Support Budget - Witney,Other Agency and Contracted Services,57401,Direct Payments,04/07/2012,3301566796,789,A4e Management Ltd Week 4
http://statistics.data.gov.uk/id/local-authority/38,Oxfordshire County Council,SCS Pooled Budgets,Community Support Budget - Witney,Other Agency and Contracted Services,57401,Direct Payments,04/07/2012,3301566797,1019.13,A4e Management Ltd Week 4
http://statistics.data.gov.uk/id/local-authority/38,Oxfordshire County Council,SCS Pooled Budgets,Community Support Budget - Banbury,Other Agency and Contracted Services,57401,Direct Payments,04/07/2012,3301566803,1467,A4e Management Ltd Week 4
http://statistics.data.gov.uk/id/local-authority/38,Oxfordshire County Council,SCS Pooled Budgets,Community Support Budget - Bicester,Other Agency and Contracted Services,57401,Direct Payments,04/07/2012,3301566804,795,A4e Management Ltd Week 4
http://statistics.data.gov.uk/id/local-authority/38,Oxfordshire County Council,SCS Pooled Budgets,Community Support Budget - Witney,Other Agency and Contracted Services,57401,Direct Payments,04/07/2012,3301566806,651,A4e Management Ltd Week 4
http://statistics.data.gov.uk/id/local-authority/38,Oxfordshire County Council,SCS Pooled Budgets,Community Support Budget - Banbury,Other Agency and Contracted Services,57401,Direct Payments,04/07/2012,3301566807,791.4,A4e Management Ltd Week 4
http://statistics.data.gov.uk/id/local-authority/38,Oxfordshire County Council,SCS Pooled Budgets,Community Support Budget - Banbury,Other Agency and Contracted Services,57401,Direct Payments,04/07/2012,3301566809,945,A4e Management Ltd Week 4
http://statistics.data.gov.uk/id/local-authority/38,Oxfordshire County Council,SCS Pooled Budgets,Community Support Budget - Banbury,Other Agency and Contracted Services,57401,Direct Payments,04/07/2012,3301566809,2947.57,A4e Management Ltd Week 4
http://statistics.data.gov.uk/id/local-authority/38,Oxfordshire County Council,SCS Pooled Budgets,Community Support Budget - Banbury,Other Agency and Contracted Services,57401,Direct Payments,04/07/2012,3301566809,-2115,A4e Management Ltd Week 4
http://statistics.data.gov.uk/id/local-authority/38,Oxfordshire County Council,SCS Pooled Budgets,Community Support Budget - Wantage,Other Agency and Contracted Services,57401,Direct Payments,04/07/2012,3301566810,1120,A4e Management Ltd Week 4
http://statistics.data.gov.uk/id/local-authority/38,Oxfordshire County Council,SCS Pooled Budgets,Community Support Budget - Bicester,Other Agency and Contracted Services,57401,Direct Payments,04/07/2012,3301566811,1536.45,A4e Management Ltd Week 4
http://statistics.data.gov.uk/id/local-authority/38,Oxfordshire County Council,SCS Pooled Budgets,Community Support Budget - Bicester,Other Agency and Contracted Services,57401,Direct Payments,04/07/2012,3301566811,512.15,A4e Management Ltd Week 4
http://statistics.data.gov.uk/id/local-authority/38,Oxfordshire County Council,SCS Pooled Budgets,Community Support Budget - Henley,Other Agency and Contracted Services,57401,Direct Payments,04/07/2012,3301566814,609,A4e Management Ltd Week 4
http://statistics.data.gov.uk/id/local-authority/38,Oxfordshire County Council,SCS Pooled Budgets,Community Support Budget - Chipping Nort,Other Agency and Contracted Services,57401,Direct Payments,04/07/2012,3301566816,1074,A4e Management Ltd Week 4
http://statistics.data.gov.uk/id/local-authority/38,Oxfordshire County Council,SCS Pooled Budgets,Community Support Budget - Banbury,Other Agency and Contracted Services,57401,Direct Payments,04/07/2012,3301566817,660,A4e Management Ltd Week 4
http://statistics.data.gov.uk/id/local-authority/38,Oxfordshire County Council,SCS Pooled Budgets,Community Support Budget - Witney,Other Agency and Contracted Services,57401,Direct Payments,04/07/2012,3301566821,718.38,A4e Management Ltd Week 4
http://statistics.data.gov.uk/id/local-authority/38,Oxfordshire County Council,SCS Pooled Budgets,Community Support Budget - Witney,Other Agency and Contracted Services,57401,Direct Payments,04/07/2012,3301566821,-665.38,A4e Management Ltd Week 4
http://statistics.data.gov.uk/id/local-authority/38,Oxfordshire County Council,SCS Pooled Budgets,Community Support Budget - Witney,Other Agency and Contracted Services,57401,Direct Payments,04/07/2012,3301566824,707.01,A4e Management Ltd Week 4
http://statistics.data.gov.uk/id/local-authority/38,Oxfordshire County Council,SCS Pooled Budgets,Community Support Budget - Bicester,Other Agency and Contracted Services,57401,Direct Payments,04/07/2012,3301566830,771,A4e Management Ltd Week 4
http://statistics.data.gov.uk/id/local-authority/38,Oxfordshire County Council,SCS Pooled Budgets,Direct Payments City Team,Other Agency and Contracted Services,57401,Direct Payments,04/07/2012,3301566831,6246,A4e Management Ltd Week 4
http://statistics.data.gov.uk/id/local-authority/38,Oxfordshire County Council,SCS Pooled Budgets,Direct Payments City Team,Other Agency and Contracted Services,57401,Direct Payments,04/07/2012,3301566831,2082,A4e Management Ltd Week 4
http://statistics.data.gov.uk/id/local-authority/38,Oxfordshire County Council,SCS Pooled Budgets,Community Support Budget - Faringdon,Other Agency and Contracted Services,57401,Direct Payments,04/07/2012,3301566833,849,A4e Management Ltd Week 4
http://statistics.data.gov.uk/id/local-authority/38,Oxfordshire County Council,SCS Pooled Budgets,PD Community Support Budget - Faringdon,Other Agency and Contracted Services,57401,Direct Payments,04/07/2012,3301566834,849,A4e Management Ltd Week 4
http://statistics.data.gov.uk/id/local-authority/38,Oxfordshire County Council,SCS Pooled Budgets,Community Support Budget - Bicester,Other Agency and Contracted Services,57401,Direct Payments,04/07/2012,3301566837,534,A4e Management Ltd Week 4
http://statistics.data.gov.uk/id/local-authority/38,Oxfordshire County Council,SCS Pooled Budgets,Community Support Budget - Abingdon,Other Agency and Contracted Services,57401,Direct Payments,04/07/2012,3301566840,519,A4e Management Ltd Week 4
http://statistics.data.gov.uk/id/local-authority/38,Oxfordshire County Council,SCS Pooled Budgets,Community Support Budget - Abingdon,Other Agency and Contracted Services,57401,Direct Payments,04/07/2012,3301566842,1000,A4e Management Ltd Week 4
http://statistics.data.gov.uk/id/local-authority/38,Oxfordshire County Council,SCS Pooled Budgets,Community Support Budget - Abingdon,Other Agency and Contracted Services,57401,Direct Payments,04/07/2012,3301566842,600,A4e Management Ltd Week 4
http://statistics.data.gov.uk/id/local-authority/38,Oxfordshire County Council,SCS Pooled Budgets,PD Comm Supp Purchasg Budget - Witney,Other Agency and Contracted Services,57401,Direct Payments,04/07/2012,3301566847,957,A4e Management Ltd Week 4
http://statistics.data.gov.uk/id/local-authority/38,Oxfordshire County Council,SCS Pooled Budgets,Community Support Budget - Witney,Other Agency and Contracted Services,57401,Direct Payments,04/07/2012,3301566850,614.1,A4e Management Ltd Week 4
http://statistics.data.gov.uk/id/local-authority/38,Oxfordshire County Council,SCS Pooled Budgets,Direct Payments South Team,Other Agency and Contracted Services,57401,Direct Payments,04/07/2012,3301566851,894.69,A4e Management Ltd Week 4
http://statistics.data.gov.uk/id/local-authority/38,Oxfordshire County Council,SCS Pooled Budgets,Community Support Budget - Witney,Other Agency and Contracted Services,57401,Direct Payments,04/07/2012,3301566854,613.53,A4e Management Ltd Week 4
http://statistics.data.gov.uk/id/local-authority/38,Oxfordshire County Council,SCS Pooled Budgets,PD Comm Supp Purchasg Budget - City,Other Agency and Contracted Services,57401,Direct Payments,04/07/2012,3301566859,3369,A4e Management Ltd Week 4
http://statistics.data.gov.uk/id/local-authority/38,Oxfordshire County Council,SCS Pooled Budgets,PD Comm Supp Purchasg Budget - City,Other Agency and Contracted Services,57401,Direct Payments,04/07/2012,3301566859,1123,A4e Management Ltd Week 4
http://statistics.data.gov.uk/id/local-authority/38,Oxfordshire County Council,SCS Pooled Budgets,PD Comm Supp Purchasg Budget - Witney,Other Agency and Contracted Services,57401,Direct Payments,04/07/2012,3301566862,911.4,A4e Management Ltd Week 4
http://statistics.data.gov.uk/id/local-authority/38,Oxfordshire County Council,SCS Pooled Budgets,Community Support Budget - Witney,Other Agency and Contracted Services,57401,Direct Payments,04/07/2012,3301566863,573,A4e Management Ltd Week 4
http://statistics.data.gov.uk/id/local-authority/38,Oxfordshire County Council,SCS Pooled Budgets,Community Support Budget - Witney,Other Agency and Contracted Services,57401,Direct Payments,04/07/2012,3301566864,693,A4e Management Ltd Week 4
http://statistics.data.gov.uk/id/local-authority/38,Oxfordshire County Council,SCS Pooled Budgets,Direct Payments North Team,Other Agency and Contracted Services,57401,Direct Payments,04/07/2012,3301566866,855.51,A4e Management Ltd Week 4
http://statistics.data.gov.uk/id/local-authority/38,Oxfordshire County Council,SCS Pooled Budgets,Direct Payments North Team,Other Agency and Contracted Services,57401,Direct Payments,04/07/2012,3301566867,532.62,A4e Management Ltd Week 4
http://statistics.data.gov.uk/id/local-authority/38,Oxfordshire County Council,SCS Pooled Budgets,Community Support Budget - Wantage,Other Agency and Contracted Services,57401,Direct Payments,04/07/2012,3301566870,604.11,A4e Management Ltd Week 4
http://statistics.data.gov.uk/id/local-authority/38,Oxfordshire County Council,SCS Pooled Budgets,Direct Payments South Team,Other Agency and Contracted Services,57401,Direct Payments,04/07/2012,3301566871,760.62,A4e Management Ltd Week 4
http://statistics.data.gov.uk/id/local-authority/38,Oxfordshire County Council,SCS Pooled Budgets,Community Support Budget - Abingdon,Other Agency and Contracted Services,57401,Direct Payments,04/07/2012,3301566872,1065,A4e Management Ltd Week 4
http://statistics.data.gov.uk/id/local-authority/38,Oxfordshire County Council,SCS Pooled Budgets,Community Support Budget - Abingdon,Other Agency and Contracted Services,57401,Direct Payments,04/07/2012,3301566874,807,A4e Management Ltd Week 4
http://statistics.data.gov.uk/id/local-authority/38,Oxfordshire County Council,SCS Pooled Budgets,Community Support Budget - City,Other Agency and Contracted Services,57401,Direct Payments,04/07/2012,3301566875,954.99,A4e Management Ltd Week 4
http://statistics.data.gov.uk/id/local-authority/38,Oxfordshire County Council,SCS Pooled Budgets,PD Comm Supp Purchasg Budget - City,Other Agency and Contracted Services,57401,Direct Payments,04/07/2012,3301566878,1422.15,A4e Management Ltd Week 4
http://statistics.data.gov.uk/id/local-authority/38,Oxfordshire County Council,SCS Pooled Budgets,Direct Payments City Team,Other Agency and Contracted Services,57401,Direct Payments,04/07/2012,3301566879,1071.54,A4e Management Ltd Week 4
http://statistics.data.gov.uk/id/local-authority/38,Oxfordshire County Council,SCS Pooled Budgets,Direct Payments South Team,Other Agency and Contracted Services,57401,Direct Payments,04/07/2012,3301566880,2379.09,A4e Management Ltd Week 4
http://statistics.data.gov.uk/id/local-authority/38,Oxfordshire County Council,SCS Pooled Budgets,Direct Payments South Team,Other Agency and Contracted Services,57401,Direct Payments,04/07/2012,3301566880,793.03,A4e Management Ltd Week 4
http://statistics.data.gov.uk/id/local-authority/38,Oxfordshire County Council,SCS Pooled Budgets,PD Comm Supp Purchasg Budget - Didcot,Other Agency and Contracted Services,57401,Direct Payments,04/07/2012,3301566881,1194,A4e Management Ltd Week 4
http://statistics.data.gov.uk/id/local-authority/38,Oxfordshire County Council,SCS Pooled Budgets,Personal Health Budgets PD (PCT),Other Agency and Contracted Services,57401,Direct Payments,04/07/2012,3301566882,7421.73,A4e Management Ltd Week 4
http://statistics.data.gov.uk/id/local-authority/38,Oxfordshire County Council,SCS Pooled Budgets,Personal Health Budgets PD (PCT),Other Agency and Contracted Services,57401,Direct Payments,04/07/2012,3301566882,2473.91,A4e Management Ltd Week 4
http://statistics.data.gov.uk/id/local-authority/38,Oxfordshire County Council,SCS Pooled Budgets,Direct Payments South Team,Other Agency and Contracted Services,57401,Direct Payments,04/07/2012,3301566883,805.92,A4e Management Ltd Week 4
http://statistics.data.gov.uk/id/local-authority/38,Oxfordshire County Council,SCS Pooled Budgets,Community Support Budget - Bicester,Other Agency and Contracted Services,57401,Direct Payments,04/07/2012,3301566884,762,A4e Management Ltd Week 4
http://statistics.data.gov.uk/id/local-authority/38,Oxfordshire County Council,SCS Pooled Budgets,Direct Payments City Team,Other Agency and Contracted Services,57401,Direct Payments,04/07/2012,3301566885,4761.18,A4e Management Ltd Week 4
http://statistics.data.gov.uk/id/local-authority/38,Oxfordshire County Council,SCS Pooled Budgets,Direct Payments City Team,Other Agency and Contracted Services,57401,Direct Payments,04/07/2012,3301566885,1587.06,A4e Management Ltd Week 4
http://statistics.data.gov.uk/id/local-authority/38,Oxfordshire County Council,SCS Pooled Budgets,Community Support Budget - Witney,Other Agency and Contracted Services,57401,Direct Payments,04/07/2012,3301566887,732.36,A4e Management Ltd Week 4
http://statistics.data.gov.uk/id/local-authority/38,Oxfordshire County Council,SCS Pooled Budgets,Community Support Budget - Banbury,Other Agency and Contracted Services,57401,Direct Payments,04/07/2012,3301566888,972,A4e Management Ltd Week 4
http://statistics.data.gov.uk/id/local-authority/38,Oxfordshire County Council,SCS Pooled Budgets,Community Support Budget - Banbury,Other Agency and Contracted Services,57401,Direct Payments,04/07/2012,3301566889,990,A4e Management Ltd Week 4
http://statistics.data.gov.uk/id/local-authority/38,Oxfordshire County Council,SCS Pooled Budgets,Community Support Budget - Banbury,Other Agency and Contracted Services,57401,Direct Payments,04/07/2012,3301566890,1074.15,A4e Management Ltd Week 4
http://statistics.data.gov.uk/id/local-authority/38,Oxfordshire County Council,SCS Pooled Budgets,Community Support Budget - Banbury,Other Agency and Contracted Services,57401,Direct Payments,04/07/2012,3301566890,5099.43,A4e Management Ltd Week 4
http://statistics.data.gov.uk/id/local-authority/38,Oxfordshire County Council,SCS Pooled Budgets,Community Support Budget - Banbury,Other Agency and Contracted Services,57401,Direct Payments,04/07/2012,3301566890,-4961.55,A4e Management Ltd Week 4
http://statistics.data.gov.uk/id/local-authority/38,Oxfordshire County Council,SCS Pooled Budgets,OP Pool Continuing Care Delegated Health,Other Agency and Contracted Services,57401,Direct Payments,04/07/2012,3301566891,551.61,A4e Management Ltd Week 4
http://statistics.data.gov.uk/id/local-authority/38,Oxfordshire County Council,SCS Pooled Budgets,Community Support Budget - Banbury,Other Agency and Contracted Services,57401,Direct Payments,04/07/2012,3301566891,2688.39,A4e Management Ltd Week 4
http://statistics.data.gov.uk/id/local-authority/38,Oxfordshire County Council,SCS Pooled Budgets,Community Support Budget - Banbury,Other Agency and Contracted Services,57401,Direct Payments,04/07/2012,3301566891,896.13,A4e Management Ltd Week 4
http://statistics.data.gov.uk/id/local-authority/38,Oxfordshire County Council,SCS Pooled Budgets,Direct Payments North Team,Other Agency and Contracted Services,57401,Direct Payments,04/07/2012,3301566892,3748.08,A4e Management Ltd Week 4
http://statistics.data.gov.uk/id/local-authority/38,Oxfordshire County Council,SCS Pooled Budgets,Direct Payments North Team,Other Agency and Contracted Services,57401,Direct Payments,04/07/2012,3301566892,-1744.05,A4e Management Ltd Week 4
http://statistics.data.gov.uk/id/local-authority/38,Oxfordshire County Council,SCS Pooled Budgets,Direct Payments North Team,Other Agency and Contracted Services,57401,Direct Payments,04/07/2012,3301566892,747.45,A4e Management Ltd Week 4
http://statistics.data.gov.uk/id/local-authority/38,Oxfordshire County Council,SCS Pooled Budgets,Community Support Budget - Bicester,Other Agency and Contracted Services,57401,Direct Payments,04/07/2012,3301566894,516,A4e Management Ltd Week 4
http://statistics.data.gov.uk/id/local-authority/38,Oxfordshire County Council,SCS Pooled Budgets,Community Support Budget - Bicester,Other Agency and Contracted Services,57401,Direct Payments,04/07/2012,3301566895,1387.2,A4e Management Ltd Week 4
http://statistics.data.gov.uk/id/local-authority/38,Oxfordshire County Council,SCS Pooled Budgets,PD Comm Supp Purchasg Budget - Witney,Other Agency and Contracted Services,57401,Direct Payments,04/07/2012,3301566898,510.18,A4e Management Ltd Week 4
http://statistics.data.gov.uk/id/local-authority/38,Oxfordshire County Council,SCS Pooled Budgets,Direct Payments North Team,Other Agency and Contracted Services,57401,Direct Payments,04/07/2012,3301566899,778.05,A4e Management Ltd Week 4
http://statistics.data.gov.uk/id/local-authority/38,Oxfordshire County Council,SCS Pooled Budgets,PD Comm Supp Purchasg Budget - City,Other Agency and Contracted Services,57401,Direct Payments,04/07/2012,3301566904,879,A4e Management Ltd Week 4
http://statistics.data.gov.uk/id/local-authority/38,Oxfordshire County Council,SCS Pooled Budgets,PD Comm Supp Purchasg Budget - City,Other Agency and Contracted Services,57401,Direct Payments,04/07/2012,3301566904,1590.57,A4e Management Ltd Week 4
http://statistics.data.gov.uk/id/local-authority/38,Oxfordshire County Council,SCS Pooled Budgets,PD Comm Supp Purchasg Budget - City,Other Agency and Contracted Services,57401,Direct Payments,04/07/2012,3301566904,-1060.2,A4e Management Ltd Week 4
http://statistics.data.gov.uk/id/local-authority/38,Oxfordshire County Council,SCS Pooled Budgets,LD Team budget (CMPB) - City,Transport Related,33300,Transport (General),04/07/2012,3301567542,459.62,Express Travel Oxford Limited
http://statistics.data.gov.uk/id/local-authority/38,Oxfordshire County Council,Children's Social Care,Looked After South,Transport Related,33101,Home to School Trans,04/07/2012,3301567550,1050,Oxon Transport Services Limited t/a
http://statistics.data.gov.uk/id/local-authority/38,Oxfordshire County Council,SCS Pooled Budgets,Personal Health Budgets OP (PCT),Other Agency and Contracted Services,57401,Direct Payments,04/07/2012,3301567563,8482.5,A4e Management Ltd Week 3
http://statistics.data.gov.uk/id/local-authority/38,Oxfordshire County Council,Education & Early Intervention,Oxford Nth SEN Trans,Transport Related,33101,Home to School Trans,04/07/2012,3301567597,1650.24,Abingdon Taxis
http://statistics.data.gov.uk/id/local-authority/38,Oxfordshire County Council,Education & Early Intervention,Oxford Nth SEN Trans,Transport Related,33300,Transport (General),04/07/2012,3301567598,537.6,Abingdon Taxis
http://statistics.data.gov.uk/id/local-authority/38,Oxfordshire County Council,Education & Early Intervention,Wantage SEN Trans,Transport Related,33101,Home to School Trans,04/07/2012,3301567599,1336.96,Abingdon Taxis
http://statistics.data.gov.uk/id/local-authority/38,Oxfordshire County Council,Education & Early Intervention,Oxford Sth SEN Trans,Transport Related,33101,Home to School Trans,04/07/2012,3301567601,576,Abingdon Taxis
http://statistics.data.gov.uk/id/local-authority/38,Oxfordshire County Council,Education & Early Intervention,Oxford Nth SEN Trans,Transport Related,33101,Home to School Trans,04/07/2012,3301567602,960,Abingdon Taxis
http://statistics.data.gov.uk/id/local-authority/38,Oxfordshire County Council,Education & Early Intervention,Oxford Nth SEN Trans,Transport Related,33101,Home to School Trans,04/07/2012,3301567605,1253.44,Abingdon Taxis
http://statistics.data.gov.uk/id/local-authority/38,Oxfordshire County Council,Education & Early Intervention,Oxford Nth SEN Trans,Transport Related,33300,Transport (General),04/07/2012,3301567606,528.8,Abingdon Taxis
http://statistics.data.gov.uk/id/local-authority/38,Oxfordshire County Council,Education & Early Intervention,Zone 5 - South,Transport Related,33101,Home to School Trans,04/07/2012,3301567608,2536.5,Destinations Luxury Travel
http://statistics.data.gov.uk/id/local-authority/38,Oxfordshire County Council,Education & Early Intervention,Banbury SEN Trans,Transport Related,33101,Home to School Trans,04/07/2012,3301567609,5802.24,Cheney Coaches Limited
http://statistics.data.gov.uk/id/local-authority/38,Oxfordshire County Council,Education & Early Intervention,Zone 1 - North,Transport Related,33101,Home to School Trans,04/07/2012,3301567610,3520,Cheney Coaches Limited
http://statistics.data.gov.uk/id/local-authority/38,Oxfordshire County Council,Education & Early Intervention,Zone 1 - North,Transport Related,33101,Home to School Trans,04/07/2012,3301567611,3618.75,Jeffs Coaches Limited
http://statistics.data.gov.uk/id/local-authority/38,Oxfordshire County Council,Education & Early Intervention,Zone 1 - North,Transport Related,33101,Home to School Trans,04/07/2012,3301567612,3949.2,Jeffs Coaches Limited
http://statistics.data.gov.uk/id/local-authority/38,Oxfordshire County Council,Education & Early Intervention,Zone 2 - East,Transport Related,33101,Home to School Trans,04/07/2012,3301567613,604.32,Jeffs Coaches Limited
http://statistics.data.gov.uk/id/local-authority/38,Oxfordshire County Council,Education & Early Intervention,Zone 1 - North,Transport Related,33101,Home to School Trans,04/07/2012,3301567614,3949.2,Jeffs Coaches Limited
http://statistics.data.gov.uk/id/local-authority/38,Oxfordshire County Council,Education & Early Intervention,Zone 1 - North,Transport Related,33101,Home to School Trans,04/07/2012,3301567615,5632.16,Jeffs Coaches Limited
http://statistics.data.gov.uk/id/local-authority/38,Oxfordshire County Council,Education & Early Intervention,Zone 1 - North,Transport Related,33101,Home to School Trans,04/07/2012,3301567616,3348.64,Jeffs Coaches Limited
http://statistics.data.gov.uk/id/local-authority/38,Oxfordshire County Council,Education & Early Intervention,Zone 5 - South,Transport Related,33101,Home to School Trans,04/07/2012,3301567624,687.72,Lloyds TSB Commercial Financial
http://statistics.data.gov.uk/id/local-authority/38,Oxfordshire County Council,Education & Early Intervention,Wantage SEN Trans,Transport Related,33101,Home to School Trans,04/07/2012,3301567626,1704.32,Abingdon Taxis
http://statistics.data.gov.uk/id/local-authority/38,Oxfordshire County Council,Education & Early Intervention,Zone 4 - Vale,Transport Related,33101,Home to School Trans,04/07/2012,3301567628,480,Abingdon Taxis
http://statistics.data.gov.uk/id/local-authority/38,Oxfordshire County Council,Education & Early Intervention,Respite Care,Transport Related,33101,Home to School Trans,04/07/2012,3301567630,836.8,Excel Cars
http://statistics.data.gov.uk/id/local-authority/38,Oxfordshire County Council,Education & Early Intervention,Oxford Sth SEN Trans,Transport Related,33101,Home to School Trans,04/07/2012,3301567632,2083.99,Express Travel Oxford Limited
http://statistics.data.gov.uk/id/local-authority/38,Oxfordshire County Council,Education & Early Intervention,Oxford Sth SEN Trans,Transport Related,33300,Transport (General),04/07/2012,3301567633,417.76,Express Travel Oxford Limited
http://statistics.data.gov.uk/id/local-authority/38,Oxfordshire County Council,Education & Early Intervention,FE Special Trans,Transport Related,33101,Home to School Trans,04/07/2012,3301567634,800,ABC Radio Cars
http://statistics.data.gov.uk/id/local-authority/38,Oxfordshire County Council,Education & Early Intervention,FE Special Trans,Transport Related,33101,Home to School Trans,04/07/2012,3301567635,700,ABC Radio Cars
http://statistics.data.gov.uk/id/local-authority/38,Oxfordshire County Council,Education & Early Intervention,Oxford Sth SEN Trans,Transport Related,33101,Home to School Trans,04/07/2012,3301567638,2172.06,Toot's Taxis
http://statistics.data.gov.uk/id/local-authority/38,Oxfordshire County Council,Education & Early Intervention,Oxford Sth SEN Trans,Transport Related,33300,Transport (General),04/07/2012,3301567639,1035.1,Toot's Taxis
http://statistics.data.gov.uk/id/local-authority/38,Oxfordshire County Council,Education & Early Intervention,FE Special Trans,Transport Related,33101,Home to School Trans,04/07/2012,3301567640,550,Monarch Oxford
http://statistics.data.gov.uk/id/local-authority/38,Oxfordshire County Council,Education & Early Intervention,Zone 3 - West,Transport Related,33101,Home to School Trans,04/07/2012,3301567643,823.8,Ace Taxis (West Oxfordshire) Ltd
http://statistics.data.gov.uk/id/local-authority/38,Oxfordshire County Council,Education & Early Intervention,Zone 1 - North,Transport Related,33101,Home to School Trans,04/07/2012,3301567644,604,Ace Taxis (West Oxfordshire) Ltd
http://statistics.data.gov.uk/id/local-authority/38,Oxfordshire County Council,Education & Early Intervention,Zone 3 - West,Transport Related,33101,Home to School Trans,04/07/2012,3301567645,956,Ace Taxis (West Oxfordshire) Ltd
http://statistics.data.gov.uk/id/local-authority/38,Oxfordshire County Council,Education & Early Intervention,Zone 3 - West,Transport Related,33101,Home to School Trans,04/07/2012,3301567646,448.05,Ace Taxis (West Oxfordshire) Ltd
http://statistics.data.gov.uk/id/local-authority/38,Oxfordshire County Council,Education & Early Intervention,Zone 3 - West,Transport Related,33101,Home to School Trans,04/07/2012,3301567647,716,Ace Taxis (West Oxfordshire) Ltd
http://statistics.data.gov.uk/id/local-authority/38,Oxfordshire County Council,Education & Early Intervention,Zone 3 - West,Transport Related,33101,Home to School Trans,04/07/2012,3301567649,636,Ace Taxis (West Oxfordshire) Ltd
http://statistics.data.gov.uk/id/local-authority/38,Oxfordshire County Council,Education & Early Intervention,Oxford Nth SEN Trans,Transport Related,33101,Home to School Trans,04/07/2012,3301567650,1764,Ash Cars (UK) Ltd
http://statistics.data.gov.uk/id/local-authority/38,Oxfordshire County Council,Education & Early Intervention,Oxford Nth SEN Trans,Transport Related,33300,Transport (General),04/07/2012,3301567651,506.24,Ash Cars (UK) Ltd
http://statistics.data.gov.uk/id/local-authority/38,Oxfordshire County Council,Education & Early Intervention,Oxford Nth SEN Trans,Transport Related,33101,Home to School Trans,04/07/2012,3301567652,2129.6,Ash Cars (UK) Ltd
http://statistics.data.gov.uk/id/local-authority/38,Oxfordshire County Council,Education & Early Intervention,Oxford Nth SEN Trans,Transport Related,33300,Transport (General),04/07/2012,3301567653,500.8,Ash Cars (UK) Ltd
http://statistics.data.gov.uk/id/local-authority/38,Oxfordshire County Council,Education & Early Intervention,Oxford Nth SEN Trans,Transport Related,33101,Home to School Trans,04/07/2012,3301567654,1852.69,Ash Cars (UK) Ltd
http://statistics.data.gov.uk/id/local-authority/38,Oxfordshire County Council,Education & Early Intervention,Oxford Nth SEN Trans,Transport Related,33300,Transport (General),04/07/2012,3301567655,469.95,Ash Cars (UK) Ltd
http://statistics.data.gov.uk/id/local-authority/38,Oxfordshire County Council,Education & Early Intervention,Banbury SEN Trans,Transport Related,33101,Home to School Trans,04/07/2012,3301567656,1307.52,Ash Cars (UK) Ltd
http://statistics.data.gov.uk/id/local-authority/38,Oxfordshire County Council,Education & Early Intervention,Oxford Sth SEN Trans,Transport Related,33101,Home to School Trans,04/07/2012,3301567658,2288.1,Ash Cars (UK) Ltd
http://statistics.data.gov.uk/id/local-authority/38,Oxfordshire County Council,Education & Early Intervention,Banbury SEN Trans,Transport Related,33101,Home to School Trans,04/07/2012,3301567659,1005.72,Ash Cars (UK) Ltd
http://statistics.data.gov.uk/id/local-authority/38,Oxfordshire County Council,Education & Early Intervention,Oxford Sth SEN Trans,Transport Related,33101,Home to School Trans,04/07/2012,3301567661,940.1,Ash Cars (UK) Ltd
http://statistics.data.gov.uk/id/local-authority/38,Oxfordshire County Council,Education & Early Intervention,Oxford Sth SEN Trans,Transport Related,33300,Transport (General),04/07/2012,3301567662,417.8,Ash Cars (UK) Ltd
http://statistics.data.gov.uk/id/local-authority/38,Oxfordshire County Council,Education & Early Intervention,FE Special Trans,Transport Related,33101,Home to School Trans,04/07/2012,3301567663,1086.28,Ash Cars (UK) Ltd
http://statistics.data.gov.uk/id/local-authority/38,Oxfordshire County Council,Education & Early Intervention,Bicester SEN Trans,Transport Related,33101,Home to School Trans,04/07/2012,3301567664,2080,Ash Cars (UK) Ltd
http://statistics.data.gov.uk/id/local-authority/38,Oxfordshire County Council,Education & Early Intervention,Oxford Nth SEN Trans,Transport Related,33101,Home to School Trans,04/07/2012,3301567665,1152,Ash Cars (UK) Ltd
http://statistics.data.gov.uk/id/local-authority/38,Oxfordshire County Council,Education & Early Intervention,Oxford Nth SEN Trans,Transport Related,33300,Transport (General),04/07/2012,3301567666,480,Ash Cars (UK) Ltd
http://statistics.data.gov.uk/id/local-authority/38,Oxfordshire County Council,Education & Early Intervention,Meadowbrook Transprt,Transport Related,33101,Home to School Trans,04/07/2012,3301567668,1688,Ash Cars (UK) Ltd
http://statistics.data.gov.uk/id/local-authority/38,Oxfordshire County Council,Education & Early Intervention,Oxford Sth SEN Trans,Transport Related,33101,Home to School Trans,04/07/2012,3301567669,417.8,Monarch Oxford
http://statistics.data.gov.uk/id/local-authority/38,Oxfordshire County Council,Growth & Infrastructure,Witney CP,Catering,42106,CFM Catering Food & Consumables,04/07/2012,3301568431,701.31,3663 CARD ACCOUNT
http://statistics.data.gov.uk/id/local-authority/38,Oxfordshire County Council,Highways & Transport,Localities,Private Contractors,56400,Major Contracts,05/07/2012,3301569572,762.25,Southern Electric Contracting Ltd.
http://statistics.data.gov.uk/id/local-authority/38,Oxfordshire County Council,Highways & Transport,"Electrical NP Rds, Street Lighting",Private Contractors,56400,Major Contracts,05/07/2012,3301569576,479.62,Southern Electric Contracting Ltd.
http://statistics.data.gov.uk/id/local-authority/38,Oxfordshire County Council,Highways & Transport,"Electrical NP Rds, Street Lighting",Private Contractors,56400,Major Contracts,05/07/2012,3301569580,1290,Southern Electric Contracting Ltd.
http://statistics.data.gov.uk/id/local-authority/38,Oxfordshire County Council,Highways & Transport,Signs/Lines/LSS,Private Contractors,56400,Major Contracts,05/07/2012,3301569595,1984.51,Southern Electric Contracting Ltd.
http://statistics.data.gov.uk/id/local-authority/38,Oxfordshire County Council,Highways & Transport,"Electrical NP Rds, illuminated Signs",Private Contractors,56202,Maint Costs 2nd Sche,05/07/2012,3301569596,2943.9,Southern Electric Contracting Ltd.
http://statistics.data.gov.uk/id/local-authority/38,Oxfordshire County Council,Highways & Transport,"Electrical Prin Rds, illuminated Signs",Private Contractors,56202,Maint Costs 2nd Sche,05/07/2012,3301569596,999.05,Southern Electric Contracting Ltd.
http://statistics.data.gov.uk/id/local-authority/38,Oxfordshire County Council,Highways & Transport,"Electrical NP Rds, Street Lighting",Private Contractors,56202,Maint Costs 2nd Sche,05/07/2012,3301569596,24067.68,Southern Electric Contracting Ltd.
http://statistics.data.gov.uk/id/local-authority/38,Oxfordshire County Council,Highways & Transport,"Electrical Prin Rds, Street Lighting",Private Contractors,56202,Maint Costs 2nd Sche,05/07/2012,3301569596,1131.94,Southern Electric Contracting Ltd.
http://statistics.data.gov.uk/id/local-authority/38,Oxfordshire County Council,SCS Pooled Budgets,Carers Break / Respite Project,Other Agency and Contracted Services,57401,Direct Payments,05/07/2012,3301569883,750,REDACTED PERSONAL DATA
http://statistics.data.gov.uk/id/local-authority/38,Oxfordshire County Council,SCS Pooled Budgets,Life Of Your Own Grant Cherwell,Other Agency and Contracted Services,57401,Direct Payments,05/07/2012,3301569885,600,REDACTED PERSONAL DATA
http://statistics.data.gov.uk/id/local-authority/38,Oxfordshire County Council,SCS Pooled Budgets,Life Of Your Own Grant Cherwell,Other Agency and Contracted Services,57401,Direct Payments,05/07/2012,3301569887,500,REDACTED PERSONAL DATA
http://statistics.data.gov.uk/id/local-authority/38,Oxfordshire County Council,SCS Pooled Budgets,Carers Break / Respite Project,Other Agency and Contracted Services,57401,Direct Payments,05/07/2012,3301569888,750,REDACTED PERSONAL DATA
http://statistics.data.gov.uk/id/local-authority/38,Oxfordshire County Council,SCS Pooled Budgets,Carers Break / Respite Project,Other Agency and Contracted Services,57401,Direct Payments,05/07/2012,3301569889,750,REDACTED PERSONAL DATA
http://statistics.data.gov.uk/id/local-authority/38,Oxfordshire County Council,SCS Pooled Budgets,Life Of Your Own Grant South,Other Agency and Contracted Services,57401,Direct Payments,05/07/2012,3301569891,500,REDACTED PERSONAL DATA
http://statistics.data.gov.uk/id/local-authority/38,Oxfordshire County Council,SCS Pooled Budgets,Carers Break / Respite Project,Other Agency and Contracted Services,57401,Direct Payments,05/07/2012,3301569892,750,REDACTED PERSONAL DATA
http://statistics.data.gov.uk/id/local-authority/38,Oxfordshire County Council,SCS Pooled Budgets,Life Of Your Own Grant Vale,Other Agency and Contracted Services,57401,Direct Payments,05/07/2012,3301569892,600,REDACTED PERSONAL DATA
http://statistics.data.gov.uk/id/local-authority/38,Oxfordshire County Council,SCS Pooled Budgets,Life Of Your Own Grant West,Other Agency and Contracted Services,57401,Direct Payments,05/07/2012,3301569893,600,REDACTED PERSONAL DATA
http://statistics.data.gov.uk/id/local-authority/38,Oxfordshire County Council,SCS Pooled Budgets,Life Of Your Own Grant City,Other Agency and Contracted Services,57401,Direct Payments,05/07/2012,3301569895,600,REDACTED PERSONAL DATA
http://statistics.data.gov.uk/id/local-authority/38,Oxfordshire County Council,Social & Community Services,PCT Carers GP Breaks Funding,Other Agency and Contracted Services,57401,Direct Payments,05/07/2012,3301569896,750,REDACTED PERSONAL DATA
http://statistics.data.gov.uk/id/local-authority/38,Oxfordshire County Council,SCS Pooled Budgets,Community Support Budget - Didcot,Other Agency and Contracted Services,57401,Direct Payments,05/07/2012,3301569898,750,REDACTED PERSONAL DATA
http://statistics.data.gov.uk/id/local-authority/38,Oxfordshire County Council,SCS Pooled Budgets,Community Support Budget - Banbury,Other Agency and Contracted Services,57401,Direct Payments,05/07/2012,3301569899,507.5,REDACTED PERSONAL DATA
http://statistics.data.gov.uk/id/local-authority/38,Oxfordshire County Council,SCS Pooled Budgets,Life Of Your Own Grant Vale,Other Agency and Contracted Services,57401,Direct Payments,05/07/2012,3301569901,600,REDACTED PERSONAL DATA
http://statistics.data.gov.uk/id/local-authority/38,Oxfordshire County Council,SCS Pooled Budgets,Life Of Your Own Grant South,Other Agency and Contracted Services,57401,Direct Payments,05/07/2012,3301569907,600,REDACTED PERSONAL DATA
http://statistics.data.gov.uk/id/local-authority/38,Oxfordshire County Council,SCS Pooled Budgets,Carers Break / Respite Project,Other Agency and Contracted Services,57401,Direct Payments,05/07/2012,3301569908,750,REDACTED PERSONAL DATA
http://statistics.data.gov.uk/id/local-authority/38,Oxfordshire County Council,Social & Community Services,PCT Carers GP Breaks Funding,Other Agency and Contracted Services,57401,Direct Payments,05/07/2012,3301569910,750,REDACTED PERSONAL DATA
http://statistics.data.gov.uk/id/local-authority/38,Oxfordshire County Council,SCS Pooled Budgets,Carers Break / Respite Project,Other Agency and Contracted Services,57401,Direct Payments,05/07/2012,3301569911,750,REDACTED PERSONAL DATA
http://statistics.data.gov.uk/id/local-authority/38,Oxfordshire County Council,Highways & Transport,"Electrical NP Rds, illuminated Signs",Private Contractors,56400,Major Contracts,05/07/2012,3301569958,559.91,Southern Electric Contracting Ltd.
http://statistics.data.gov.uk/id/local-authority/38,Oxfordshire County Council,Highways & Transport,Localities,Private Contractors,56400,Major Contracts,05/07/2012,3301569960,762.25,Southern Electric Contracting Ltd.
http://statistics.data.gov.uk/id/local-authority/38,Oxfordshire County Council,Highways & Transport,Localities,Private Contractors,56400,Major Contracts,13/07/2012,3301569965,2750,Westcotec Ltd
http://statistics.data.gov.uk/id/local-authority/38,Oxfordshire County Council,Highways & Transport,Localities,Private Contractors,56400,Major Contracts,13/07/2012,3301569966,4200,Westcotec Ltd
http://statistics.data.gov.uk/id/local-authority/38,Oxfordshire County Council,Highways & Transport,Localities,Private Contractors,56400,Major Contracts,13/07/2012,3301569967,4200,Westcotec Ltd
http://statistics.data.gov.uk/id/local-authority/38,Oxfordshire County Council,Education & Early Intervention,Quality & Expansion 2 Year Olds,"Equipment, Furniture and Materials",41100,Educational Supplies,17/07/2012,3301570015,1888.45,Begbroke Playgroup
http://statistics.data.gov.uk/id/local-authority/38,Oxfordshire County Council,Education & Early Intervention,Oxford Sth SEN Trans,Transport Related,33101,Home to School Trans,05/07/2012,3301570039,2125.76,Mills Transport Ltd
http://statistics.data.gov.uk/id/local-authority/38,Oxfordshire County Council,Education & Early Intervention,Oxford Sth SEN Trans,Transport Related,33101,Home to School Trans,05/07/2012,3301570041,1659.52,Mills Transport Ltd
http://statistics.data.gov.uk/id/local-authority/38,Oxfordshire County Council,Education & Early Intervention,Oxford Sth SEN Trans,Transport Related,33101,Home to School Trans,05/07/2012,3301570043,1437.44,Mills Transport Ltd
http://statistics.data.gov.uk/id/local-authority/38,Oxfordshire County Council,Education & Early Intervention,Oxford Sth SEN Trans,Transport Related,33101,Home to School Trans,05/07/2012,3301570045,1917.92,Mills Transport Ltd
http://statistics.data.gov.uk/id/local-authority/38,Oxfordshire County Council,Education & Early Intervention,Oxford Sth SEN Trans,Transport Related,33101,Home to School Trans,05/07/2012,3301570048,1569.28,Mills Transport Ltd
http://statistics.data.gov.uk/id/local-authority/38,Oxfordshire County Council,Education & Early Intervention,Oxford Sth SEN Trans,Transport Related,33101,Home to School Trans,05/07/2012,3301570050,1394.88,Mills Transport Ltd
http://statistics.data.gov.uk/id/local-authority/38,Oxfordshire County Council,Education & Early Intervention,Out of County,Transport Related,33101,Home to School Trans,05/07/2012,3301570054,755.79,Ken's Taxis
http://statistics.data.gov.uk/id/local-authority/38,Oxfordshire County Council,Education & Early Intervention,Oxford Nth SEN Trans,Transport Related,33101,Home to School Trans,05/07/2012,3301570055,1120,Ken's Taxis
http://statistics.data.gov.uk/id/local-authority/38,Oxfordshire County Council,Education & Early Intervention,Zone 2 - East,Transport Related,33101,Home to School Trans,05/07/2012,3301570056,2590.4,Grayline Coaches
http://statistics.data.gov.uk/id/local-authority/38,Oxfordshire County Council,Education & Early Intervention,Zone 2 - East,Transport Related,33101,Home to School Trans,05/07/2012,3301570057,2416,Grayline Coaches
http://statistics.data.gov.uk/id/local-authority/38,Oxfordshire County Council,Education & Early Intervention,Zone 2 - East,Transport Related,33101,Home to School Trans,05/07/2012,3301570058,2416,Grayline Coaches
http://statistics.data.gov.uk/id/local-authority/38,Oxfordshire County Council,Education & Early Intervention,Zone 2 - East,Transport Related,33101,Home to School Trans,05/07/2012,3301570059,2253.76,Grayline Coaches
http://statistics.data.gov.uk/id/local-authority/38,Oxfordshire County Council,Education & Early Intervention,Zone 2 - East,Transport Related,33101,Home to School Trans,05/07/2012,3301570060,2416,Grayline Coaches
http://statistics.data.gov.uk/id/local-authority/38,Oxfordshire County Council,Education & Early Intervention,Zone 2 - East,Transport Related,33101,Home to School Trans,05/07/2012,3301570061,2188.96,Grayline Coaches
http://statistics.data.gov.uk/id/local-authority/38,Oxfordshire County Council,Education & Early Intervention,Zone 2 - East,Transport Related,33101,Home to School Trans,05/07/2012,3301570062,2265,Grayline Coaches
http://statistics.data.gov.uk/id/local-authority/38,Oxfordshire County Council,Education & Early Intervention,Zone 2 - East,Transport Related,33101,Home to School Trans,05/07/2012,3301570063,2112.9,Grayline Coaches
http://statistics.data.gov.uk/id/local-authority/38,Oxfordshire County Council,Education & Early Intervention,Zone 2 - East,Transport Related,33101,Home to School Trans,05/07/2012,3301570064,2358.15,Grayline Coaches
http://statistics.data.gov.uk/id/local-authority/38,Oxfordshire County Council,Education & Early Intervention,Zone 2 - East,Transport Related,33101,Home to School Trans,05/07/2012,3301570065,2416,Grayline Coaches
http://statistics.data.gov.uk/id/local-authority/38,Oxfordshire County Council,Education & Early Intervention,Zone 2 - East,Transport Related,33101,Home to School Trans,05/07/2012,3301570066,2597.92,Grayline Coaches
http://statistics.data.gov.uk/id/local-authority/38,Oxfordshire County Council,Education & Early Intervention,Zone 3 - West,Transport Related,33101,Home to School Trans,05/07/2012,3301570067,2960,Grayline Coaches
http://statistics.data.gov.uk/id/local-authority/38,Oxfordshire County Council,Education & Early Intervention,Zone 2 - East,Transport Related,33101,Home to School Trans,05/07/2012,3301570069,860.7,Airport Transfers Banbury
http://statistics.data.gov.uk/id/local-authority/38,Oxfordshire County Council,Education & Early Intervention,Zone 1 - North,Transport Related,33101,Home to School Trans,05/07/2012,3301570070,775.05,Airport Transfers Banbury
http://statistics.data.gov.uk/id/local-authority/38,Oxfordshire County Council,Education & Early Intervention,Zone 1 - North,Transport Related,33101,Home to School Trans,05/07/2012,3301570071,1161.92,Airport Transfers Banbury
http://statistics.data.gov.uk/id/local-authority/38,Oxfordshire County Council,Education & Early Intervention,Zone 1 - North,Transport Related,33101,Home to School Trans,05/07/2012,3301570072,1668.8,Airport Transfers Banbury
http://statistics.data.gov.uk/id/local-authority/38,Oxfordshire County Council,Education & Early Intervention,Zone 2 - East,Transport Related,33101,Home to School Trans,05/07/2012,3301570073,480,Oxford Taxis Ltd
http://statistics.data.gov.uk/id/local-authority/38,Oxfordshire County Council,Education & Early Intervention,Zone 3 - West,Transport Related,33101,Home to School Trans,05/07/2012,3301570074,1120,Oxford Taxis Ltd
http://statistics.data.gov.uk/id/local-authority/38,Oxfordshire County Council,Education & Early Intervention,Zone 5 - South,Transport Related,33101,Home to School Trans,05/07/2012,3301570075,1440,Oxford Taxis Ltd
http://statistics.data.gov.uk/id/local-authority/38,Oxfordshire County Council,Education & Early Intervention,Zone 2 - East,Transport Related,33101,Home to School Trans,05/07/2012,3301570076,420,Oxford Taxis Ltd
http://statistics.data.gov.uk/id/local-authority/38,Oxfordshire County Council,Education & Early Intervention,Oxford Sth SEN Trans,Transport Related,33101,Home to School Trans,05/07/2012,3301570077,1337.44,Diverse Travel
http://statistics.data.gov.uk/id/local-authority/38,Oxfordshire County Council,Education & Early Intervention,Zone 3 - West,Transport Related,33101,Home to School Trans,05/07/2012,3301570080,1120,EXPRESS TRAVEL
http://statistics.data.gov.uk/id/local-authority/38,Oxfordshire County Council,Education & Early Intervention,Banbury SEN Trans,Transport Related,33101,Home to School Trans,05/07/2012,3301570081,1290.24,M J Cars
http://statistics.data.gov.uk/id/local-authority/38,Oxfordshire County Council,Education & Early Intervention,Oxford Sth SEN Trans,Transport Related,33101,Home to School Trans,05/07/2012,3301570082,1353.78,M J Cars
http://statistics.data.gov.uk/id/local-authority/38,Oxfordshire County Council,Education & Early Intervention,Zone 3 - West,Transport Related,33101,Home to School Trans,05/07/2012,3301570083,881.25,M & W Grantham
http://statistics.data.gov.uk/id/local-authority/38,Oxfordshire County Council,Education & Early Intervention,Zone 3 - West,Transport Related,33101,Home to School Trans,05/07/2012,3301570084,551.25,M & W Grantham
http://statistics.data.gov.uk/id/local-authority/38,Oxfordshire County Council,Education & Early Intervention,Zone 1 - North,Transport Related,33101,Home to School Trans,05/07/2012,3301570087,1136,Cherwell Cars
http://statistics.data.gov.uk/id/local-authority/38,Oxfordshire County Council,Education & Early Intervention,Zone 1 - North,Transport Related,33101,Home to School Trans,05/07/2012,3301570089,810,Cherwell Cars
http://statistics.data.gov.uk/id/local-authority/38,Oxfordshire County Council,Education & Early Intervention,Zone 2 - East,Transport Related,33101,Home to School Trans,05/07/2012,3301570094,800,Cherwell Cars
http://statistics.data.gov.uk/id/local-authority/38,Oxfordshire County Council,Education & Early Intervention,Oxford Nth SEN Trans,Transport Related,33101,Home to School Trans,05/07/2012,3301570095,1914.72,001 Taxis & Minibuses
http://statistics.data.gov.uk/id/local-authority/38,Oxfordshire County Council,Education & Early Intervention,Oxford Nth SEN Trans,Transport Related,33101,Home to School Trans,05/07/2012,3301570097,1147.52,001 Taxis & Minibuses
http://statistics.data.gov.uk/id/local-authority/38,Oxfordshire County Council,Education & Early Intervention,Oxford Nth SEN Trans,Transport Related,33101,Home to School Trans,05/07/2012,3301570099,1006.44,001 Taxis & Minibuses
http://statistics.data.gov.uk/id/local-authority/38,Oxfordshire County Council,Education & Early Intervention,Oxford Nth SEN Trans,Transport Related,33101,Home to School Trans,05/07/2012,3301570100,1054.44,001 Taxis & Minibuses
http://statistics.data.gov.uk/id/local-authority/38,Oxfordshire County Council,Education & Early Intervention,Oxford Nth SEN Trans,Transport Related,33101,Home to School Trans,05/07/2012,3301570102,1115.84,001 Taxis & Minibuses
http://statistics.data.gov.uk/id/local-authority/38,Oxfordshire County Council,Education & Early Intervention,Oxford Nth SEN Trans,Transport Related,33101,Home to School Trans,05/07/2012,3301570104,1049.44,001 Taxis & Minibuses
http://statistics.data.gov.uk/id/local-authority/38,Oxfordshire County Council,Education & Early Intervention,Oxford Nth SEN Trans,Transport Related,33101,Home to School Trans,05/07/2012,3301570106,992,001 Taxis & Minibuses
http://statistics.data.gov.uk/id/local-authority/38,Oxfordshire County Council,Education & Early Intervention,Oxford Nth SEN Trans,Transport Related,33101,Home to School Trans,05/07/2012,3301570107,667.68,001 Taxis & Minibuses
http://statistics.data.gov.uk/id/local-authority/38,Oxfordshire County Council,Education & Early Intervention,Oxford Nth SEN Trans,Transport Related,33101,Home to School Trans,05/07/2012,3301570108,1584.27,001 Taxis & Minibuses
http://statistics.data.gov.uk/id/local-authority/38,Oxfordshire County Council,Education & Early Intervention,Oxford Nth SEN Trans,Transport Related,33101,Home to School Trans,05/07/2012,3301570109,1577.31,001 Taxis & Minibuses
http://statistics.data.gov.uk/id/local-authority/38,Oxfordshire County Council,Education & Early Intervention,Oxford Sth SEN Trans,Transport Related,33101,Home to School Trans,05/07/2012,3301570110,708.24,001 Taxis & Minibuses
http://statistics.data.gov.uk/id/local-authority/38,Oxfordshire County Council,Education & Early Intervention,Oxford Sth SEN Trans,Transport Related,33101,Home to School Trans,05/07/2012,3301570111,1328.74,001 Taxis & Minibuses
http://statistics.data.gov.uk/id/local-authority/38,Oxfordshire County Council,Education & Early Intervention,Oxford Sth SEN Trans,Transport Related,33101,Home to School Trans,05/07/2012,3301570112,520,001 Taxis & Minibuses
http://statistics.data.gov.uk/id/local-authority/38,Oxfordshire County Council,Education & Early Intervention,Oxford Sth SEN Trans,Transport Related,33101,Home to School Trans,05/07/2012,3301570114,2371.2,001 Taxis & Minibuses
http://statistics.data.gov.uk/id/local-authority/38,Oxfordshire County Council,Education & Early Intervention,Oxford Sth SEN Trans,Transport Related,33300,Transport (General),05/07/2012,3301570115,557.92,001 Taxis & Minibuses
http://statistics.data.gov.uk/id/local-authority/38,Oxfordshire County Council,Education & Early Intervention,Oxford Sth SEN Trans,Transport Related,33101,Home to School Trans,05/07/2012,3301570118,849.9,001 Taxis & Minibuses
http://statistics.data.gov.uk/id/local-authority/38,Oxfordshire County Council,Children's Social Care,"Children Looked After Team, City 1",Transport Related,33101,Home to School Trans,05/07/2012,3301570123,820,Oxon Transport Services Limited t/a
http://statistics.data.gov.uk/id/local-authority/38,Oxfordshire County Council,Children's Social Care,Fam Supp City 2,Transport Related,33101,Home to School Trans,05/07/2012,3301570129,672,Oxon Transport Services Limited t/a
http://statistics.data.gov.uk/id/local-authority/38,Oxfordshire County Council,SCS Pooled Budgets,LD Team budget (CMPB) - City,Transport Related,33300,Transport (General),05/07/2012,3301570132,1096.62,Luxicars Ltd
http://statistics.data.gov.uk/id/local-authority/38,Oxfordshire County Council,Social & Community Services,"LD Day Services, Greenwood Centre",Transport Related,33103,Transport to Centres,05/07/2012,3301570140,798,Prestige Cars
http://statistics.data.gov.uk/id/local-authority/38,Oxfordshire County Council,SCS Pooled Budgets,LD Team budget (CMPB) South,Transport Related,33300,Transport (General),05/07/2012,3301570144,558,Mr Jonathan Summers
http://statistics.data.gov.uk/id/local-authority/38,Oxfordshire County Council,SCS Pooled Budgets,LD Team budget (CMPB) South,Transport Related,33300,Transport (General),05/07/2012,3301570145,1071,Mr Jonathan Summers
http://statistics.data.gov.uk/id/local-authority/38,Oxfordshire County Council,Education & Early Intervention,Leading the EYFS (Q&I),"Equipment, Furniture and Materials",41515,Educational Visits,06/07/2012,3301570362,1000,Balliol Day Nursery
http://statistics.data.gov.uk/id/local-authority/38,Oxfordshire County Council,Education & Early Intervention,Leading the EYFS (Q&I),"Equipment, Furniture and Materials",41515,Educational Visits,06/07/2012,3301570363,1000,Benson Community Pre-School
http://statistics.data.gov.uk/id/local-authority/38,Oxfordshire County Council,Education & Early Intervention,Leading the EYFS (Q&I),"Equipment, Furniture and Materials",41515,Educational Visits,06/07/2012,3301570364,1000,Brize Norton Village Pre-School
http://statistics.data.gov.uk/id/local-authority/38,Oxfordshire County Council,Education & Early Intervention,Leading the EYFS (Q&I),"Equipment, Furniture and Materials",41515,Educational Visits,18/07/2012,3301570366,1000,St Hugh of Lincoln Nursery School
http://statistics.data.gov.uk/id/local-authority/38,Oxfordshire County Council,Children's Social Care,Childrens Home Support,Other Agency and Contracted Services,57401,Direct Payments,06/07/2012,3301570400,564.2,REDACTED PERSONAL DATA
http://statistics.data.gov.uk/id/local-authority/38,Oxfordshire County Council,Education & Early Intervention,Quality & Expansion 2 Year Olds,"Equipment, Furniture and Materials",41100,Educational Supplies,18/07/2012,3301570402,2000,Chadlington Playgroup
http://statistics.data.gov.uk/id/local-authority/38,Oxfordshire County Council,Children's Social Care,Childrens Home Support,Other Agency and Contracted Services,57401,Direct Payments,06/07/2012,3301570403,1414.15,REDACTED PERSONAL DATA
http://statistics.data.gov.uk/id/local-authority/38,Oxfordshire County Council,Highways & Transport,"Electrical Prin Rds, Street Lighting",Private Contractors,56201,Maint Costs 1st Sche,06/07/2012,3301570410,3811.56,Southern Electric Contracting Ltd.
http://statistics.data.gov.uk/id/local-authority/38,Oxfordshire County Council,Highways & Transport,"Electrical NP Rds, Street Lighting",Private Contractors,56201,Maint Costs 1st Sche,06/07/2012,3301570410,23744.89,Southern Electric Contracting Ltd.
http://statistics.data.gov.uk/id/local-authority/38,Oxfordshire County Council,Highways & Transport,"Electrical Prin Rds, illuminated Signs",Private Contractors,56201,Maint Costs 1st Sche,06/07/2012,3301570410,1322.32,Southern Electric Contracting Ltd.
http://statistics.data.gov.uk/id/local-authority/38,Oxfordshire County Council,Highways & Transport,"Electrical NP Rds, illuminated Signs",Private Contractors,56201,Maint Costs 1st Sche,06/07/2012,3301570410,2227.23,Southern Electric Contracting Ltd.
http://statistics.data.gov.uk/id/local-authority/38,Oxfordshire County Council,Highways & Transport,"Electrical NP Rds, Street Lighting",Private Contractors,56400,Major Contracts,06/07/2012,3301570417,898.15,Southern Electric Contracting Ltd.
http://statistics.data.gov.uk/id/local-authority/38,Oxfordshire County Council,Highways & Transport,"Electrical NP Rds, Street Lighting",Private Contractors,56400,Major Contracts,06/07/2012,3301570418,4005,WPD Midlands Networks Services Ltd
http://statistics.data.gov.uk/id/local-authority/38,Oxfordshire County Council,Education & Early Intervention,Mainstream Misc,Transport Related,34101,Pupils Season Ticket,06/07/2012,3301570452,2414.56,Thames Travel (Wallingford) Ltd
http://statistics.data.gov.uk/id/local-authority/38,Oxfordshire County Council,Education & Early Intervention,Zone 5 - South,Transport Related,33101,Home to School Trans,06/07/2012,3301570453,5309,W Zaman T/A Vale Travel.
http://statistics.data.gov.uk/id/local-authority/38,Oxfordshire County Council,Education & Early Intervention,Zone 5 - South,Transport Related,33101,Home to School Trans,06/07/2012,3301570454,11679.8,W Zaman T/A Vale Travel.
http://statistics.data.gov.uk/id/local-authority/38,Oxfordshire County Council,Education & Early Intervention,Oxford Sth SEN Trans,Transport Related,33101,Home to School Trans,06/07/2012,3301570455,600,001 Taxis & Minibuses
http://statistics.data.gov.uk/id/local-authority/38,Oxfordshire County Council,Education & Early Intervention,Wantage SEN Trans,Transport Related,33101,Home to School Trans,06/07/2012,3301570457,980.7,Grove Cabs
http://statistics.data.gov.uk/id/local-authority/38,Oxfordshire County Council,Education & Early Intervention,Wantage SEN Trans,Transport Related,33101,Home to School Trans,06/07/2012,3301570459,1307.55,Grove Cabs
http://statistics.data.gov.uk/id/local-authority/38,Oxfordshire County Council,Education & Early Intervention,FE Special Trans,Transport Related,33101,Home to School Trans,06/07/2012,3301570462,967.98,Grove Cabs
http://statistics.data.gov.uk/id/local-authority/38,Oxfordshire County Council,Education & Early Intervention,Wantage SEN Trans,Transport Related,33101,Home to School Trans,06/07/2012,3301570465,783.45,Grove Cabs
http://statistics.data.gov.uk/id/local-authority/38,Oxfordshire County Council,Education & Early Intervention,Oxford Sth SEN Trans,Transport Related,33101,Home to School Trans,06/07/2012,3301570474,1480.95,Toot's Taxis
http://statistics.data.gov.uk/id/local-authority/38,Oxfordshire County Council,Education & Early Intervention,Oxford Sth SEN Trans,Transport Related,33300,Transport (General),06/07/2012,3301570475,705.75,Toot's Taxis
http://statistics.data.gov.uk/id/local-authority/38,Oxfordshire County Council,Education & Early Intervention,Abingdon SEN Trans,Transport Related,33101,Home to School Trans,06/07/2012,3301570476,1674.24,Toot's Taxis
http://statistics.data.gov.uk/id/local-authority/38,Oxfordshire County Council,Education & Early Intervention,Abingdon SEN Trans,Transport Related,33300,Transport (General),06/07/2012,3301570477,528.48,Toot's Taxis
http://statistics.data.gov.uk/id/local-authority/38,Oxfordshire County Council,Education & Early Intervention,Banbury SEN Trans,Transport Related,33300,Transport (General),06/07/2012,3301570478,912.16,Cheney Coaches Limited
http://statistics.data.gov.uk/id/local-authority/38,Oxfordshire County Council,Education & Early Intervention,Banbury SEN Trans,Transport Related,33300,Transport (General),06/07/2012,3301570479,696.64,Cheney Coaches Limited
http://statistics.data.gov.uk/id/local-authority/38,Oxfordshire County Council,Education & Early Intervention,Banbury SEN Trans,Transport Related,33101,Home to School Trans,06/07/2012,3301570480,3272.96,Cheney Coaches Limited
http://statistics.data.gov.uk/id/local-authority/38,Oxfordshire County Council,Education & Early Intervention,Banbury SEN Trans,Transport Related,33300,Transport (General),06/07/2012,3301570481,870.88,Cheney Coaches Limited
http://statistics.data.gov.uk/id/local-authority/38,Oxfordshire County Council,Education & Early Intervention,Banbury SEN Trans,Transport Related,33101,Home to School Trans,06/07/2012,3301570482,2873.92,Cheney Coaches Limited
http://statistics.data.gov.uk/id/local-authority/38,Oxfordshire County Council,Education & Early Intervention,Banbury SEN Trans,Transport Related,33300,Transport (General),06/07/2012,3301570483,696.64,Cheney Coaches Limited
http://statistics.data.gov.uk/id/local-authority/38,Oxfordshire County Council,Education & Early Intervention,Banbury SEN Trans,Transport Related,33101,Home to School Trans,06/07/2012,3301570484,902.56,Cheney Coaches Limited
http://statistics.data.gov.uk/id/local-authority/38,Oxfordshire County Council,Education & Early Intervention,Banbury SEN Trans,Transport Related,33300,Transport (General),06/07/2012,3301570485,422.24,Cheney Coaches Limited
http://statistics.data.gov.uk/id/local-authority/38,Oxfordshire County Council,Education & Early Intervention,Banbury SEN Trans,Transport Related,33101,Home to School Trans,06/07/2012,3301570486,2823.84,Cheney Coaches Limited
http://statistics.data.gov.uk/id/local-authority/38,Oxfordshire County Council,Education & Early Intervention,Banbury SEN Trans,Transport Related,33300,Transport (General),06/07/2012,3301570487,697.28,Cheney Coaches Limited
http://statistics.data.gov.uk/id/local-authority/38,Oxfordshire County Council,Education & Early Intervention,Banbury SEN Trans,Transport Related,33101,Home to School Trans,06/07/2012,3301570488,2667.2,Cheney Coaches Limited
http://statistics.data.gov.uk/id/local-authority/38,Oxfordshire County Council,Education & Early Intervention,Banbury SEN Trans,Transport Related,33300,Transport (General),06/07/2012,3301570489,760.48,Cheney Coaches Limited
http://statistics.data.gov.uk/id/local-authority/38,Oxfordshire County Council,Education & Early Intervention,Respite Care,Transport Related,33101,Home to School Trans,06/07/2012,3301570490,2819.84,Cheney Coaches Limited
http://statistics.data.gov.uk/id/local-authority/38,Oxfordshire County Council,Education & Early Intervention,Banbury SEN Trans,Transport Related,33101,Home to School Trans,06/07/2012,3301570491,592.64,Cheney Coaches Limited
http://statistics.data.gov.uk/id/local-authority/38,Oxfordshire County Council,Education & Early Intervention,Banbury SEN Trans,Transport Related,33101,Home to School Trans,06/07/2012,3301570492,2074.72,Cheney Coaches Limited
http://statistics.data.gov.uk/id/local-authority/38,Oxfordshire County Council,Education & Early Intervention,Out of County,Transport Related,33101,Home to School Trans,06/07/2012,3301570494,655.41,001 Taxis & Minibuses
http://statistics.data.gov.uk/id/local-authority/38,Oxfordshire County Council,Education & Early Intervention,Zone 2 - East,Transport Related,33101,Home to School Trans,06/07/2012,3301570496,876.3,Airport Transfers Banbury
http://statistics.data.gov.uk/id/local-authority/38,Oxfordshire County Council,Education & Early Intervention,Zone 2 - East,Transport Related,33101,Home to School Trans,06/07/2012,3301570497,1114.95,Airport Transfers Banbury
http://statistics.data.gov.uk/id/local-authority/38,Oxfordshire County Council,Education & Early Intervention,Zone 1 - North,Transport Related,33101,Home to School Trans,06/07/2012,3301570498,1401.75,Airport Transfers Banbury
http://statistics.data.gov.uk/id/local-authority/38,Oxfordshire County Council,Education & Early Intervention,Zone 1 - North,Transport Related,33101,Home to School Trans,06/07/2012,3301570499,503.81,Prestige Cars
http://statistics.data.gov.uk/id/local-authority/38,Oxfordshire County Council,Education & Early Intervention,Oxford Sth SEN Trans,Transport Related,33101,Home to School Trans,06/07/2012,3301570501,1372,Prestige Cars
http://statistics.data.gov.uk/id/local-authority/38,Oxfordshire County Council,Education & Early Intervention,Oxford Sth SEN Trans,Transport Related,33101,Home to School Trans,06/07/2012,3301570505,1780.96,Diverse Travel
http://statistics.data.gov.uk/id/local-authority/38,Oxfordshire County Council,Education & Early Intervention,Oxford Sth SEN Trans,Transport Related,33101,Home to School Trans,06/07/2012,3301570506,1253.55,001 Taxis & Minibuses
http://statistics.data.gov.uk/id/local-authority/38,Oxfordshire County Council,Education & Early Intervention,Oxford Nth SEN Trans,Transport Related,33101,Home to School Trans,06/07/2012,3301570508,817.8,001 Taxis & Minibuses
http://statistics.data.gov.uk/id/local-authority/38,Oxfordshire County Council,Education & Early Intervention,Oxford Sth SEN Trans,Transport Related,33101,Home to School Trans,06/07/2012,3301570510,960,001 Taxis & Minibuses
http://statistics.data.gov.uk/id/local-authority/38,Oxfordshire County Council,Education & Early Intervention,Oxford Sth SEN Trans,Transport Related,33101,Home to School Trans,06/07/2012,3301570511,526.4,001 Taxis & Minibuses
http://statistics.data.gov.uk/id/local-authority/38,Oxfordshire County Council,Education & Early Intervention,Oxford Sth SEN Trans,Transport Related,33101,Home to School Trans,06/07/2012,3301570512,502,001 Taxis & Minibuses
http://statistics.data.gov.uk/id/local-authority/38,Oxfordshire County Council,Education & Early Intervention,Oxford Sth SEN Trans,Transport Related,33101,Home to School Trans,06/07/2012,3301570513,771.6,001 Taxis & Minibuses
http://statistics.data.gov.uk/id/local-authority/38,Oxfordshire County Council,Education & Early Intervention,Oxford Nth SEN Trans,Transport Related,33101,Home to School Trans,06/07/2012,3301570514,936,001 Taxis & Minibuses
http://statistics.data.gov.uk/id/local-authority/38,Oxfordshire County Council,Education & Early Intervention,Banbury SEN Trans,Transport Related,33101,Home to School Trans,06/07/2012,3301570515,945,001 Taxis & Minibuses
http://statistics.data.gov.uk/id/local-authority/38,Oxfordshire County Council,Education & Early Intervention,Zone 1 - North,Transport Related,33101,Home to School Trans,06/07/2012,3301570520,1120,Cherwell Cars
http://statistics.data.gov.uk/id/local-authority/38,Oxfordshire County Council,Children's Social Care,Looked After North,Transport Related,33101,Home to School Trans,06/07/2012,3301570662,856.49,Oxon Transport Services Limited t/a
http://statistics.data.gov.uk/id/local-authority/38,Oxfordshire County Council,Education & Early Intervention,Leading the EYFS (Q&I),"Equipment, Furniture and Materials",41515,Educational Visits,19/07/2012,3301570729,1000,Bradmore Nursery
http://statistics.data.gov.uk/id/local-authority/38,Oxfordshire County Council,Education & Early Intervention,Leading the EYFS (Q&I),"Equipment, Furniture and Materials",41515,Educational Visits,19/07/2012,3301570754,1000,Freeland Playgroup Association
http://statistics.data.gov.uk/id/local-authority/38,Oxfordshire County Council,Education & Early Intervention,Leading the EYFS (Q&I),"Equipment, Furniture and Materials",41515,Educational Visits,06/07/2012,3301570755,1000,Grimsbury Family Association
http://statistics.data.gov.uk/id/local-authority/38,Oxfordshire County Council,Education & Early Intervention,Leading the EYFS (Q&I),"Equipment, Furniture and Materials",41515,Educational Visits,06/07/2012,3301570767,1000,Our Lady's Convent Junior School
http://statistics.data.gov.uk/id/local-authority/38,Oxfordshire County Council,SCS Pooled Budgets,Carers Break / Respite Project,Other Agency and Contracted Services,57401,Direct Payments,09/07/2012,3301570924,750,REDACTED PERSONAL DATA
http://statistics.data.gov.uk/id/local-authority/38,Oxfordshire County Council,Children's Social Care,Disability Family placement,Other Agency and Contracted Services,57401,Direct Payments,09/07/2012,3301571459,1035.72,REDACTED PERSONAL DATA
http://statistics.data.gov.uk/id/local-authority/38,Oxfordshire County Council,Highways & Transport,Rising Bollards,Private Contractors,56400,Major Contracts,09/07/2012,3301571461,590,ADT Fire & Security PLC
http://statistics.data.gov.uk/id/local-authority/38,Oxfordshire County Council,Highways & Transport,Rising Bollards,Private Contractors,56400,Major Contracts,09/07/2012,3301571462,728,ADT Fire & Security PLC
http://statistics.data.gov.uk/id/local-authority/38,Oxfordshire County Council,Highways & Transport,Grass Cutting Districts/Parishes,Private Contractors,56400,Major Contracts,09/07/2012,3301571463,3067.26,Sutton Courtenay Parish Council
http://statistics.data.gov.uk/id/local-authority/38,Oxfordshire County Council,Education & Early Intervention,Zone 2 - East,Transport Related,33101,Home to School Trans,09/07/2012,3301571545,1011.2,L. Sarbatta
http://statistics.data.gov.uk/id/local-authority/38,Oxfordshire County Council,Education & Early Intervention,Oxford Nth SEN Trans,Transport Related,33101,Home to School Trans,09/07/2012,3301571547,1315.68,AKR LTD
http://statistics.data.gov.uk/id/local-authority/38,Oxfordshire County Council,Education & Early Intervention,Oxford Nth SEN Trans,Transport Related,33101,Home to School Trans,09/07/2012,3301571549,1370.56,AKR LTD
http://statistics.data.gov.uk/id/local-authority/38,Oxfordshire County Council,Education & Early Intervention,Abingdon SEN Trans,Transport Related,33101,Home to School Trans,09/07/2012,3301571551,1203.36,AKR LTD
http://statistics.data.gov.uk/id/local-authority/38,Oxfordshire County Council,Education & Early Intervention,Zone 3 - West,Transport Related,33101,Home to School Trans,09/07/2012,3301571553,880,AKR LTD
http://statistics.data.gov.uk/id/local-authority/38,Oxfordshire County Council,Education & Early Intervention,Zone 4 - Vale,Transport Related,33101,Home to School Trans,09/07/2012,3301571554,1440,AKR LTD
http://statistics.data.gov.uk/id/local-authority/38,Oxfordshire County Council,Education & Early Intervention,Zone 2 - East,Transport Related,33101,Home to School Trans,09/07/2012,3301571555,2256.32,AKR LTD
http://statistics.data.gov.uk/id/local-authority/38,Oxfordshire County Council,Education & Early Intervention,Zone 2 - East,Transport Related,33101,Home to School Trans,09/07/2012,3301571556,2440.96,AKR LTD
http://statistics.data.gov.uk/id/local-authority/38,Oxfordshire County Council,Education & Early Intervention,Zone 1 - North,Transport Related,33101,Home to School Trans,09/07/2012,3301571557,2160,Charlbury Travel
http://statistics.data.gov.uk/id/local-authority/38,Oxfordshire County Council,Education & Early Intervention,Zone 3 - West,Transport Related,33101,Home to School Trans,09/07/2012,3301571558,2640,Charlbury Travel
http://statistics.data.gov.uk/id/local-authority/38,Oxfordshire County Council,Education & Early Intervention,S'Common SEN Trans,Transport Related,33101,Home to School Trans,09/07/2012,3301571559,1653.76,Transpiration Limited
http://statistics.data.gov.uk/id/local-authority/38,Oxfordshire County Council,Education & Early Intervention,S'Common SEN Trans,Transport Related,33300,Transport (General),09/07/2012,3301571560,528.48,Transpiration Limited
http://statistics.data.gov.uk/id/local-authority/38,Oxfordshire County Council,Education & Early Intervention,Zone 3 - West,Transport Related,33101,Home to School Trans,09/07/2012,3301571562,2625.6,Blunsdon's Coach Travel
http://statistics.data.gov.uk/id/local-authority/38,Oxfordshire County Council,Education & Early Intervention,Zone 3 - West,Transport Related,33101,Home to School Trans,09/07/2012,3301571563,2543.84,Blunsdon's Coach Travel
http://statistics.data.gov.uk/id/local-authority/38,Oxfordshire County Council,Education & Early Intervention,Zone 2 - East,Transport Related,33101,Home to School Trans,09/07/2012,3301571564,1162.56,Lynkcabs
http://statistics.data.gov.uk/id/local-authority/38,Oxfordshire County Council,Education & Early Intervention,Oxford Nth SEN Trans,Transport Related,33101,Home to School Trans,09/07/2012,3301571565,2467.52,Lynkcabs
http://statistics.data.gov.uk/id/local-authority/38,Oxfordshire County Council,Education & Early Intervention,Zone 5 - South,Transport Related,33101,Home to School Trans,09/07/2012,3301571566,1813.44,Lynkcabs
http://statistics.data.gov.uk/id/local-authority/38,Oxfordshire County Council,Education & Early Intervention,Zone 5 - South,Transport Related,33101,Home to School Trans,09/07/2012,3301571567,1952.16,Lynkcabs
http://statistics.data.gov.uk/id/local-authority/38,Oxfordshire County Council,Education & Early Intervention,Zone 5 - South,Transport Related,33101,Home to School Trans,09/07/2012,3301571568,1660,Lynkcabs
http://statistics.data.gov.uk/id/local-authority/38,Oxfordshire County Council,Education & Early Intervention,Zone 2 - East,Transport Related,33101,Home to School Trans,09/07/2012,3301571569,1783.68,Lynkcabs
http://statistics.data.gov.uk/id/local-authority/38,Oxfordshire County Council,Education & Early Intervention,Zone 5 - South,Transport Related,33101,Home to School Trans,09/07/2012,3301571570,1241.44,Lynkcabs
http://statistics.data.gov.uk/id/local-authority/38,Oxfordshire County Council,Education & Early Intervention,Abingdon SEN Trans,Transport Related,33101,Home to School Trans,09/07/2012,3301571571,784.48,Mark's Taxis
http://statistics.data.gov.uk/id/local-authority/38,Oxfordshire County Council,Education & Early Intervention,Zone 4 - Vale,Transport Related,33101,Home to School Trans,09/07/2012,3301571573,1840,Chapel Cars Kevin B Cross
http://statistics.data.gov.uk/id/local-authority/38,Oxfordshire County Council,Education & Early Intervention,Zone 4 - Vale,Transport Related,33101,Home to School Trans,09/07/2012,3301571574,672,Chapel Cars Kevin B Cross
http://statistics.data.gov.uk/id/local-authority/38,Oxfordshire County Council,SCS Pooled Budgets,LD CMPB - South Transport,Transport Related,34200,Client Journeys,09/07/2012,3301571575,2006.06,Transpiration Limited
http://statistics.data.gov.uk/id/local-authority/38,Oxfordshire County Council,SCS Pooled Budgets,LD CMPB - South Transport,Transport Related,34200,Client Journeys,09/07/2012,3301571578,607.74,Transpiration Limited
http://statistics.data.gov.uk/id/local-authority/38,Oxfordshire County Council,Education & Early Intervention,FE Special Trans,Transport Related,33101,Home to School Trans,09/07/2012,3301571579,1444.91,Transpiration Limited
http://statistics.data.gov.uk/id/local-authority/38,Oxfordshire County Council,Education & Early Intervention,FE Special Trans,Transport Related,33300,Transport (General),09/07/2012,3301571580,456.35,Transpiration Limited
http://statistics.data.gov.uk/id/local-authority/38,Oxfordshire County Council,Education & Early Intervention,Oxford Sth SEN Trans,Transport Related,33101,Home to School Trans,09/07/2012,3301571583,1763.28,Transpiration Limited
http://statistics.data.gov.uk/id/local-authority/38,Oxfordshire County Council,Education & Early Intervention,S'Common SEN Trans,Transport Related,33101,Home to School Trans,09/07/2012,3301571584,1768.2,Transpiration Limited
http://statistics.data.gov.uk/id/local-authority/38,Oxfordshire County Council,Education & Early Intervention,Oxford Sth SEN Trans,Transport Related,33101,Home to School Trans,09/07/2012,3301571585,1880.25,Transpiration Limited
http://statistics.data.gov.uk/id/local-authority/38,Oxfordshire County Council,Education & Early Intervention,Oxford Sth SEN Trans,Transport Related,33300,Transport (General),09/07/2012,3301571586,617.85,Transpiration Limited
http://statistics.data.gov.uk/id/local-authority/38,Oxfordshire County Council,Education & Early Intervention,FE Special Trans,Transport Related,33101,Home to School Trans,09/07/2012,3301571588,2142,Transpiration Limited
http://statistics.data.gov.uk/id/local-authority/38,Oxfordshire County Council,Education & Early Intervention,FE Special Trans,Transport Related,33300,Transport (General),09/07/2012,3301571589,546,Transpiration Limited
http://statistics.data.gov.uk/id/local-authority/38,Oxfordshire County Council,Education & Early Intervention,Oxford Sth SEN Trans,Transport Related,33101,Home to School Trans,09/07/2012,3301571590,2692.48,Transpiration Limited
http://statistics.data.gov.uk/id/local-authority/38,Oxfordshire County Council,Education & Early Intervention,Oxford Sth SEN Trans,Transport Related,33300,Transport (General),09/07/2012,3301571591,667.36,Transpiration Limited
http://statistics.data.gov.uk/id/local-authority/38,Oxfordshire County Council,Education & Early Intervention,Oxford Sth SEN Trans,Transport Related,33101,Home to School Trans,09/07/2012,3301571596,2043.2,Transpiration Limited
http://statistics.data.gov.uk/id/local-authority/38,Oxfordshire County Council,Education & Early Intervention,Oxford Sth SEN Trans,Transport Related,33300,Transport (General),09/07/2012,3301571597,634,Transpiration Limited
http://statistics.data.gov.uk/id/local-authority/38,Oxfordshire County Council,Education & Early Intervention,Zone 2 - East,Transport Related,33101,Home to School Trans,09/07/2012,3301571599,490,Charlie's Taxis Ltd
http://statistics.data.gov.uk/id/local-authority/38,Oxfordshire County Council,Education & Early Intervention,Oxford Sth SEN Trans,Transport Related,33101,Home to School Trans,09/07/2012,3301571601,676.8,Charlie's Taxis Ltd
http://statistics.data.gov.uk/id/local-authority/38,Oxfordshire County Council,Education & Early Intervention,Temporary Transport,Transport Related,33101,Home to School Trans,09/07/2012,3301571603,501.12,Crown Cabs Travel Ltd
http://statistics.data.gov.uk/id/local-authority/38,Oxfordshire County Council,Education & Early Intervention,Out of County,Transport Related,33101,Home to School Trans,09/07/2012,3301571605,2266.56,Crown Cabs Travel Ltd
http://statistics.data.gov.uk/id/local-authority/38,Oxfordshire County Council,Education & Early Intervention,Out of County,Transport Related,33300,Transport (General),09/07/2012,3301571606,522.88,Crown Cabs Travel Ltd
http://statistics.data.gov.uk/id/local-authority/38,Oxfordshire County Council,Education & Early Intervention,Out of County,Transport Related,33101,Home to School Trans,09/07/2012,3301571607,835.52,Crown Cabs Travel Ltd
http://statistics.data.gov.uk/id/local-authority/38,Oxfordshire County Council,Education & Early Intervention,Banbury SEN Trans,Transport Related,33101,Home to School Trans,09/07/2012,3301571608,3419.2,Pages Taxis
http://statistics.data.gov.uk/id/local-authority/38,Oxfordshire County Council,Education & Early Intervention,Banbury SEN Trans,Transport Related,33300,Transport (General),09/07/2012,3301571609,699,Pages Taxis
http://statistics.data.gov.uk/id/local-authority/38,Oxfordshire County Council,Education & Early Intervention,Bicester SEN Trans,Transport Related,33101,Home to School Trans,09/07/2012,3301571610,2592.96,Pages Taxis
http://statistics.data.gov.uk/id/local-authority/38,Oxfordshire County Council,Education & Early Intervention,Bicester SEN Trans,Transport Related,33300,Transport (General),09/07/2012,3301571611,683.36,Pages Taxis
http://statistics.data.gov.uk/id/local-authority/38,Oxfordshire County Council,Education & Early Intervention,Oxford Nth SEN Trans,Transport Related,33101,Home to School Trans,09/07/2012,3301571612,2886.56,Pages Taxis
http://statistics.data.gov.uk/id/local-authority/38,Oxfordshire County Council,Education & Early Intervention,Oxford Nth SEN Trans,Transport Related,33300,Transport (General),09/07/2012,3301571613,746.72,Pages Taxis
http://statistics.data.gov.uk/id/local-authority/38,Oxfordshire County Council,Education & Early Intervention,Bicester SEN Trans,Transport Related,33101,Home to School Trans,09/07/2012,3301571614,1641.9,Banbury Private Ambulance Serv Ltd
http://statistics.data.gov.uk/id/local-authority/38,Oxfordshire County Council,Education & Early Intervention,Bicester SEN Trans,Transport Related,33101,Home to School Trans,09/07/2012,3301571615,2196.64,Banbury Private Ambulance Serv Ltd
http://statistics.data.gov.uk/id/local-authority/38,Oxfordshire County Council,Education & Early Intervention,Zone 1 - North,Transport Related,33101,Home to School Trans,09/07/2012,3301571618,2115.04,The Claydon Fox
http://statistics.data.gov.uk/id/local-authority/38,Oxfordshire County Council,Education & Early Intervention,Zone 1 - North,Transport Related,33101,Home to School Trans,09/07/2012,3301571619,640,Ambassador Taxis
http://statistics.data.gov.uk/id/local-authority/38,Oxfordshire County Council,Education & Early Intervention,Zone 1 - North,Transport Related,33101,Home to School Trans,09/07/2012,3301571620,639.68,Ambassador Taxis
http://statistics.data.gov.uk/id/local-authority/38,Oxfordshire County Council,Children's Social Care,Looked After City 2,Transport Related,33101,Home to School Trans,09/07/2012,3301571649,528,Oxon Transport Services Limited t/a
http://statistics.data.gov.uk/id/local-authority/38,Oxfordshire County Council,SCS Pooled Budgets,LD Team budget (CMPB) South,Transport Related,33300,Transport (General),09/07/2012,3301571652,1432,O B Cars
http://statistics.data.gov.uk/id/local-authority/38,Oxfordshire County Council,SCS Pooled Budgets,LD Team budget (CMPB) South,Transport Related,33300,Transport (General),09/07/2012,3301571654,586.5,O B Cars
http://statistics.data.gov.uk/id/local-authority/38,Oxfordshire County Council,Social & Community Services,"LD Day Services, Abingdon Day Servs",Transport Related,33103,Transport to Centres,09/07/2012,3301571664,1242.22,Abingdon Taxis
http://statistics.data.gov.uk/id/local-authority/38,Oxfordshire County Council,Social & Community Services,"LD Day Services, Abingdon Day Servs",Transport Related,33103,Transport to Centres,09/07/2012,3301571665,621.11,Abingdon Taxis
http://statistics.data.gov.uk/id/local-authority/38,Oxfordshire County Council,Education & Early Intervention,Help with Childcare Costs (South),Grants and Subscriptions,47150,Grants to Individuals,10/07/2012,3301571862,500,Oxford Active Ltd
http://statistics.data.gov.uk/id/local-authority/38,Oxfordshire County Council,Social & Community Services,PCT SDS Funding,Other Agency and Contracted Services,57300,Home Support (Ext) OS&HCD,13/07/2012,3301571891,1875,Brook House Residential
http://statistics.data.gov.uk/id/local-authority/38,Oxfordshire County Council,Social & Community Services,Community Support Budget - City East,Other Agency and Contracted Services,57850,Rented Accomodation,10/07/2012,3301571892,1386,F Aziz
http://statistics.data.gov.uk/id/local-authority/38,Oxfordshire County Council,Highways & Transport,Grass Cutting Districts/Parishes,Private Contractors,56400,Major Contracts,10/07/2012,3301572215,26194,Didcot Town Council
http://statistics.data.gov.uk/id/local-authority/38,Oxfordshire County Council,Strategy & Communications,Grants incl Voluntary Sector,Grants and Subscriptions,47100,Grants to Voluntary,10/07/2012,3301572218,7497.5,Dovecote Voluntary Parent Committee
http://statistics.data.gov.uk/id/local-authority/38,Oxfordshire County Council,Strategy & Communications,Performance & Improvement,Grants and Subscriptions,47100,Grants to Voluntary,10/07/2012,3301572220,15000,Vale of White Horse District Counci
http://statistics.data.gov.uk/id/local-authority/38,Oxfordshire County Council,SCS Pooled Budgets,LD Team budget (CMPB) - City,Transport Related,33300,Transport (General),10/07/2012,3301572254,1140,K Cars Kidlington
http://statistics.data.gov.uk/id/local-authority/38,Oxfordshire County Council,Social & Community Services,LD Day Services West Oxon Day Servs,Transport Related,33103,Transport to Centres,10/07/2012,3301572256,1710,R H Transport Services
http://statistics.data.gov.uk/id/local-authority/38,Oxfordshire County Council,Social & Community Services,Older People  Service Agreements (Base),Transport Related,33103,Transport to Centres,10/07/2012,3301572261,10315.16,British Red Cross Society
http://statistics.data.gov.uk/id/local-authority/38,Oxfordshire County Council,SCS Pooled Budgets,LD Team budget (CMPB) - City,Transport Related,33300,Transport (General),10/07/2012,3301572263,1450.13,D and A Nichols
http://statistics.data.gov.uk/id/local-authority/38,Oxfordshire County Council,SCS Pooled Budgets,LD Team budget (CMPB) - City,Transport Related,33300,Transport (General),10/07/2012,3301572264,693.98,D and A Nichols
http://statistics.data.gov.uk/id/local-authority/38,Oxfordshire County Council,Education & Early Intervention,Zone 1 - North,Transport Related,33101,Home to School Trans,10/07/2012,3301572270,697.4,Tex Coaches
http://statistics.data.gov.uk/id/local-authority/38,Oxfordshire County Council,Education & Early Intervention,Zone 1 - North,Transport Related,33101,Home to School Trans,10/07/2012,3301572271,697.4,Tex Coaches
http://statistics.data.gov.uk/id/local-authority/38,Oxfordshire County Council,Education & Early Intervention,Zone 1 - North,Transport Related,33101,Home to School Trans,10/07/2012,3301572272,697.4,Tex Coaches
http://statistics.data.gov.uk/id/local-authority/38,Oxfordshire County Council,Education & Early Intervention,Zone 3 - West,Transport Related,33101,Home to School Trans,10/07/2012,3301572273,992.35,Tex Coaches
http://statistics.data.gov.uk/id/local-authority/38,Oxfordshire County Council,Education & Early Intervention,Abingdon SEN Trans,Transport Related,33101,Home to School Trans,10/07/2012,3301572277,1095.3,C V O'Sullivan
http://statistics.data.gov.uk/id/local-authority/38,Oxfordshire County Council,Education & Early Intervention,Abingdon SEN Trans,Transport Related,33101,Home to School Trans,10/07/2012,3301572279,1090.48,C V O'Sullivan
http://statistics.data.gov.uk/id/local-authority/38,Oxfordshire County Council,Education & Early Intervention,Abingdon SEN Trans,Transport Related,33101,Home to School Trans,10/07/2012,3301572281,558.08,C V O'Sullivan
http://statistics.data.gov.uk/id/local-authority/38,Oxfordshire County Council,Education & Early Intervention,Oxford Nth SEN Trans,Transport Related,33101,Home to School Trans,10/07/2012,3301572284,4020.16,Ancil Services
http://statistics.data.gov.uk/id/local-authority/38,Oxfordshire County Council,Education & Early Intervention,Oxford Nth SEN Trans,Transport Related,33101,Home to School Trans,10/07/2012,3301572285,1125,C S Comley
http://statistics.data.gov.uk/id/local-authority/38,Oxfordshire County Council,Education & Early Intervention,Oxford Nth SEN Trans,Transport Related,33300,Transport (General),10/07/2012,3301572286,435,C S Comley
http://statistics.data.gov.uk/id/local-authority/38,Oxfordshire County Council,Education & Early Intervention,Abingdon SEN Trans,Transport Related,33101,Home to School Trans,10/07/2012,3301572287,522,C S Comley
http://statistics.data.gov.uk/id/local-authority/38,Oxfordshire County Council,Education & Early Intervention,Meadowbrook Transprt,Transport Related,33101,Home to School Trans,10/07/2012,3301572288,560,C S Comley
http://statistics.data.gov.uk/id/local-authority/38,Oxfordshire County Council,Education & Early Intervention,Wantage SEN Trans,Transport Related,33101,Home to School Trans,10/07/2012,3301572289,1050,C S Comley
http://statistics.data.gov.uk/id/local-authority/38,Oxfordshire County Council,Education & Early Intervention,Oxford Nth SEN Trans,Transport Related,33101,Home to School Trans,10/07/2012,3301572297,1360,Findlay School Transport
http://statistics.data.gov.uk/id/local-authority/38,Oxfordshire County Council,Education & Early Intervention,Oxford Nth SEN Trans,Transport Related,33300,Transport (General),10/07/2012,3301572298,557.92,Findlay School Transport
http://statistics.data.gov.uk/id/local-authority/38,Oxfordshire County Council,Education & Early Intervention,Oxford Sth SEN Trans,Transport Related,33101,Home to School Trans,10/07/2012,3301572299,1701.76,Findlay School Transport
http://statistics.data.gov.uk/id/local-authority/38,Oxfordshire County Council,Education & Early Intervention,Oxford Sth SEN Trans,Transport Related,33300,Transport (General),10/07/2012,3301572300,434.4,Findlay School Transport
http://statistics.data.gov.uk/id/local-authority/38,Oxfordshire County Council,Education & Early Intervention,Abingdon SEN Trans,Transport Related,33101,Home to School Trans,10/07/2012,3301572301,1185.44,Findlay School Transport
http://statistics.data.gov.uk/id/local-authority/38,Oxfordshire County Council,Education & Early Intervention,Abingdon SEN Trans,Transport Related,33300,Transport (General),10/07/2012,3301572302,523.2,Findlay School Transport
http://statistics.data.gov.uk/id/local-authority/38,Oxfordshire County Council,Education & Early Intervention,Oxford Nth SEN Trans,Transport Related,33101,Home to School Trans,10/07/2012,3301572309,976.48,C V O'Sullivan
http://statistics.data.gov.uk/id/local-authority/38,Oxfordshire County Council,Education & Early Intervention,Out of County,Transport Related,33101,Home to School Trans,10/07/2012,3301572313,835.68,School Travel
http://statistics.data.gov.uk/id/local-authority/38,Oxfordshire County Council,Education & Early Intervention,Out of County,Transport Related,33300,Transport (General),10/07/2012,3301572314,417.92,School Travel
http://statistics.data.gov.uk/id/local-authority/38,Oxfordshire County Council,Education & Early Intervention,FE Special Trans,Transport Related,33101,Home to School Trans,10/07/2012,3301572315,1253.6,School Travel
http://statistics.data.gov.uk/id/local-authority/38,Oxfordshire County Council,Education & Early Intervention,Zone 5 - South,Transport Related,33101,Home to School Trans,10/07/2012,3301572319,2785.02,Tappins Coaches
http://statistics.data.gov.uk/id/local-authority/38,Oxfordshire County Council,Education & Early Intervention,Zone 5 - South,Transport Related,33101,Home to School Trans,10/07/2012,3301572320,2864.68,Tappins Coaches
http://statistics.data.gov.uk/id/local-authority/38,Oxfordshire County Council,Education & Early Intervention,Zone 5 - South,Transport Related,33101,Home to School Trans,10/07/2012,3301572321,3364.8,Tappins Coaches
http://statistics.data.gov.uk/id/local-authority/38,Oxfordshire County Council,Education & Early Intervention,Zone 5 - South,Transport Related,33101,Home to School Trans,10/07/2012,3301572322,3364.8,Tappins Coaches
http://statistics.data.gov.uk/id/local-authority/38,Oxfordshire County Council,Education & Early Intervention,Zone 5 - South,Transport Related,33101,Home to School Trans,10/07/2012,3301572323,3364.8,Tappins Coaches
http://statistics.data.gov.uk/id/local-authority/38,Oxfordshire County Council,Education & Early Intervention,Zone 2 - East,Transport Related,33101,Home to School Trans,10/07/2012,3301572324,1723.65,Heyfordian Travel Ltd
http://statistics.data.gov.uk/id/local-authority/38,Oxfordshire County Council,Education & Early Intervention,Zone 2 - East,Transport Related,33101,Home to School Trans,10/07/2012,3301572325,1798.05,Heyfordian Travel Ltd
http://statistics.data.gov.uk/id/local-authority/38,Oxfordshire County Council,Education & Early Intervention,Zone 5 - South,Transport Related,33101,Home to School Trans,10/07/2012,3301572326,3456.48,Heyfordian Travel Ltd
http://statistics.data.gov.uk/id/local-authority/38,Oxfordshire County Council,Education & Early Intervention,Zone 5 - South,Transport Related,33101,Home to School Trans,10/07/2012,3301572327,3456.48,Heyfordian Travel Ltd
http://statistics.data.gov.uk/id/local-authority/38,Oxfordshire County Council,Education & Early Intervention,Zone 5 - South,Transport Related,33101,Home to School Trans,10/07/2012,3301572328,3456.48,Heyfordian Travel Ltd
http://statistics.data.gov.uk/id/local-authority/38,Oxfordshire County Council,Education & Early Intervention,Zone 5 - South,Transport Related,33101,Home to School Trans,10/07/2012,3301572329,3456.48,Heyfordian Travel Ltd
http://statistics.data.gov.uk/id/local-authority/38,Oxfordshire County Council,Education & Early Intervention,Zone 5 - South,Transport Related,33101,Home to School Trans,10/07/2012,3301572330,2705.5,Heyfordian Travel Ltd
http://statistics.data.gov.uk/id/local-authority/38,Oxfordshire County Council,Education & Early Intervention,Zone 5 - South,Transport Related,33101,Home to School Trans,10/07/2012,3301572331,2859.64,Heyfordian Travel Ltd
http://statistics.data.gov.uk/id/local-authority/38,Oxfordshire County Council,Education & Early Intervention,Zone 5 - South,Transport Related,33101,Home to School Trans,10/07/2012,3301572332,4224.48,Heyfordian Travel Ltd
http://statistics.data.gov.uk/id/local-authority/38,Oxfordshire County Council,Education & Early Intervention,Zone 5 - South,Transport Related,33101,Home to School Trans,10/07/2012,3301572333,2179.52,Heyfordian Travel Ltd
http://statistics.data.gov.uk/id/local-authority/38,Oxfordshire County Council,Education & Early Intervention,Zone 5 - South,Transport Related,33101,Home to School Trans,10/07/2012,3301572334,2728.32,Heyfordian Travel Ltd
http://statistics.data.gov.uk/id/local-authority/38,Oxfordshire County Council,Education & Early Intervention,Zone 5 - South,Transport Related,33101,Home to School Trans,10/07/2012,3301572335,3359.04,Heyfordian Travel Ltd
http://statistics.data.gov.uk/id/local-authority/38,Oxfordshire County Council,Education & Early Intervention,Zone 1 - North,Transport Related,33101,Home to School Trans,10/07/2012,3301572336,2148.15,Heyfordian Travel Ltd
http://statistics.data.gov.uk/id/local-authority/38,Oxfordshire County Council,Education & Early Intervention,Zone 1 - North,Transport Related,33101,Home to School Trans,10/07/2012,3301572337,1941.6,Heyfordian Travel Ltd
http://statistics.data.gov.uk/id/local-authority/38,Oxfordshire County Council,Education & Early Intervention,Zone 1 - North,Transport Related,33101,Home to School Trans,10/07/2012,3301572338,1941.6,Heyfordian Travel Ltd
http://statistics.data.gov.uk/id/local-authority/38,Oxfordshire County Council,Education & Early Intervention,Zone 1 - North,Transport Related,33101,Home to School Trans,10/07/2012,3301572339,1941.6,Heyfordian Travel Ltd
http://statistics.data.gov.uk/id/local-authority/38,Oxfordshire County Council,Education & Early Intervention,Zone 1 - North,Transport Related,33101,Home to School Trans,10/07/2012,3301572340,1941.6,Heyfordian Travel Ltd
http://statistics.data.gov.uk/id/local-authority/38,Oxfordshire County Council,Education & Early Intervention,Zone 1 - North,Transport Related,33101,Home to School Trans,10/07/2012,3301572341,1941.6,Heyfordian Travel Ltd
http://statistics.data.gov.uk/id/local-authority/38,Oxfordshire County Council,Education & Early Intervention,Zone 1 - North,Transport Related,33101,Home to School Trans,10/07/2012,3301572342,2106.9,Heyfordian Travel Ltd
http://statistics.data.gov.uk/id/local-authority/38,Oxfordshire County Council,Education & Early Intervention,Zone 1 - North,Transport Related,33101,Home to School Trans,10/07/2012,3301572343,2247.36,Heyfordian Travel Ltd
http://statistics.data.gov.uk/id/local-authority/38,Oxfordshire County Council,Education & Early Intervention,Zone 1 - North,Transport Related,33101,Home to School Trans,10/07/2012,3301572344,1941.6,Heyfordian Travel Ltd
http://statistics.data.gov.uk/id/local-authority/38,Oxfordshire County Council,Education & Early Intervention,Zone 1 - North,Transport Related,33101,Home to School Trans,10/07/2012,3301572345,3800.55,Heyfordian Travel Ltd
http://statistics.data.gov.uk/id/local-authority/38,Oxfordshire County Council,Education & Early Intervention,Zone 1 - North,Transport Related,33101,Home to School Trans,10/07/2012,3301572346,2106.9,Heyfordian Travel Ltd
http://statistics.data.gov.uk/id/local-authority/38,Oxfordshire County Council,Education & Early Intervention,Zone 1 - North,Transport Related,33101,Home to School Trans,10/07/2012,3301572347,2106.9,Heyfordian Travel Ltd
http://statistics.data.gov.uk/id/local-authority/38,Oxfordshire County Council,Education & Early Intervention,Zone 1 - North,Transport Related,33101,Home to School Trans,10/07/2012,3301572348,4141.92,Heyfordian Travel Ltd
http://statistics.data.gov.uk/id/local-authority/38,Oxfordshire County Council,Education & Early Intervention,Zone 1 - North,Transport Related,33101,Home to School Trans,10/07/2012,3301572349,3271.8,Heyfordian Travel Ltd
http://statistics.data.gov.uk/id/local-authority/38,Oxfordshire County Council,Education & Early Intervention,Zone 1 - North,Transport Related,33101,Home to School Trans,10/07/2012,3301572350,3106.5,Heyfordian Travel Ltd
http://statistics.data.gov.uk/id/local-authority/38,Oxfordshire County Council,Education & Early Intervention,Zone 1 - North,Transport Related,33101,Home to School Trans,10/07/2012,3301572351,3883.05,Heyfordian Travel Ltd
http://statistics.data.gov.uk/id/local-authority/38,Oxfordshire County Council,Education & Early Intervention,Zone 1 - North,Transport Related,33101,Home to School Trans,10/07/2012,3301572352,4164.15,Heyfordian Travel Ltd
http://statistics.data.gov.uk/id/local-authority/38,Oxfordshire County Council,Education & Early Intervention,Zone 1 - North,Transport Related,33101,Home to School Trans,10/07/2012,3301572353,3137.28,Heyfordian Travel Ltd
http://statistics.data.gov.uk/id/local-authority/38,Oxfordshire County Council,Education & Early Intervention,Zone 1 - North,Transport Related,33101,Home to School Trans,10/07/2012,3301572354,3684.8,Heyfordian Travel Ltd
http://statistics.data.gov.uk/id/local-authority/38,Oxfordshire County Council,Education & Early Intervention,Zone 2 - East,Transport Related,33101,Home to School Trans,10/07/2012,3301572355,1743.52,Heyfordian Travel Ltd
http://statistics.data.gov.uk/id/local-authority/38,Oxfordshire County Council,Education & Early Intervention,Zone 5 - South,Transport Related,33101,Home to School Trans,10/07/2012,3301572356,3217.34,Heyfordian Travel Ltd
http://statistics.data.gov.uk/id/local-authority/38,Oxfordshire County Council,Education & Early Intervention,Zone 4 - Vale,Transport Related,33101,Home to School Trans,10/07/2012,3301572357,2960,Heyfordian Travel Ltd
http://statistics.data.gov.uk/id/local-authority/38,Oxfordshire County Council,Education & Early Intervention,Zone 4 - Vale,Transport Related,33101,Home to School Trans,10/07/2012,3301572358,2800,Heyfordian Travel Ltd
http://statistics.data.gov.uk/id/local-authority/38,Oxfordshire County Council,Education & Early Intervention,Zone 4 - Vale,Transport Related,33101,Home to School Trans,10/07/2012,3301572359,2560,Heyfordian Travel Ltd
http://statistics.data.gov.uk/id/local-authority/38,Oxfordshire County Council,Education & Early Intervention,Kilvrough Manor,Transport Related,33103,Transport to Centres,10/07/2012,3301572360,1511.25,Tappins Coaches
http://statistics.data.gov.uk/id/local-authority/38,Oxfordshire County Council,Education & Early Intervention,Kilvrough Manor,Transport Related,33103,Transport to Centres,10/07/2012,3301572361,1190,Tappins Coaches
http://statistics.data.gov.uk/id/local-authority/38,Oxfordshire County Council,Education & Early Intervention,Kilvrough Manor,Transport Related,33103,Transport to Centres,10/07/2012,3301572362,1190,Tappins Coaches
http://statistics.data.gov.uk/id/local-authority/38,Oxfordshire County Council,Education & Early Intervention,Woodlands Centre,Transport Related,33103,Transport to Centres,10/07/2012,3301572363,1260,Tappins Coaches
http://statistics.data.gov.uk/id/local-authority/38,Oxfordshire County Council,Education & Early Intervention,Woodlands Centre,Transport Related,33103,Transport to Centres,10/07/2012,3301572364,970,Tappins Coaches
http://statistics.data.gov.uk/id/local-authority/38,Oxfordshire County Council,Education & Early Intervention,Woodlands Centre,Transport Related,33103,Transport to Centres,10/07/2012,3301572365,970,Tappins Coaches
http://statistics.data.gov.uk/id/local-authority/38,Oxfordshire County Council,Education & Early Intervention,Yenworthy Lodge,Transport Related,33103,Transport to Centres,10/07/2012,3301572366,1160,Tappins Coaches
http://statistics.data.gov.uk/id/local-authority/38,Oxfordshire County Council,Education & Early Intervention,Yenworthy Lodge,Transport Related,33103,Transport to Centres,10/07/2012,3301572367,1320,Tappins Coaches
http://statistics.data.gov.uk/id/local-authority/38,Oxfordshire County Council,Education & Early Intervention,Yenworthy Lodge,Transport Related,33103,Transport to Centres,10/07/2012,3301572368,1160,Tappins Coaches
http://statistics.data.gov.uk/id/local-authority/38,Oxfordshire County Council,Education & Early Intervention,Oxford Sth SEN Trans,Transport Related,33101,Home to School Trans,10/07/2012,3301572369,1096.07,Sonia Lees
http://statistics.data.gov.uk/id/local-authority/38,Oxfordshire County Council,Education & Early Intervention,S'Common SEN Trans,Transport Related,33101,Home to School Trans,10/07/2012,3301572370,1295.34,School Travel
http://statistics.data.gov.uk/id/local-authority/38,Oxfordshire County Council,Education & Early Intervention,S'Common SEN Trans,Transport Related,33101,Home to School Trans,10/07/2012,3301572371,607.5,School Travel
http://statistics.data.gov.uk/id/local-authority/38,Oxfordshire County Council,Education & Early Intervention,Zone 2 - East,Transport Related,33101,Home to School Trans,10/07/2012,3301572372,608,T K Private Hire
http://statistics.data.gov.uk/id/local-authority/38,Oxfordshire County Council,Education & Early Intervention,Zone 2 - East,Transport Related,33101,Home to School Trans,10/07/2012,3301572373,900,T K Private Hire
http://statistics.data.gov.uk/id/local-authority/38,Oxfordshire County Council,Education & Early Intervention,Chillout Fund,Grants and Subscriptions,47100,Grants to Voluntary,10/07/2012,3301572393,1000,Pegasus Theatre Trust Ltd
http://statistics.data.gov.uk/id/local-authority/38,Oxfordshire County Council,SCS Pooled Budgets,Personal Health Budgets OP (PCT),Other Agency and Contracted Services,57401,Direct Payments,11/07/2012,3301572561,2058.88,Citibank NA London
http://statistics.data.gov.uk/id/local-authority/38,Oxfordshire County Council,SCS Pooled Budgets,Direct Payments South Team,Other Agency and Contracted Services,57401,Direct Payments,11/07/2012,3301572565,4629.92,REDACTED PERSONAL DATA
http://statistics.data.gov.uk/id/local-authority/38,Oxfordshire County Council,SCS Pooled Budgets,Community Support Budget - Banbury,Other Agency and Contracted Services,57401,Direct Payments,11/07/2012,3301572566,1683.88,REDACTED PERSONAL DATA
http://statistics.data.gov.uk/id/local-authority/38,Oxfordshire County Council,SCS Pooled Budgets,PD Comm Supp Purchasg Budget - Witney,Other Agency and Contracted Services,57401,Direct Payments,11/07/2012,3301572567,552,REDACTED PERSONAL DATA
http://statistics.data.gov.uk/id/local-authority/38,Oxfordshire County Council,SCS Pooled Budgets,Personal Health Budgets PD (PCT),Other Agency and Contracted Services,57401,Direct Payments,11/07/2012,3301572568,6628,REDACTED PERSONAL DATA
http://statistics.data.gov.uk/id/local-authority/38,Oxfordshire County Council,SCS Pooled Budgets,Personal Health Budgets PD (PCT),Other Agency and Contracted Services,57401,Direct Payments,11/07/2012,3301572570,5169.44,REDACTED PERSONAL DATA
http://statistics.data.gov.uk/id/local-authority/38,Oxfordshire County Council,SCS Pooled Budgets,PD Comm Supp Budget - Banbury,Other Agency and Contracted Services,57401,Direct Payments,11/07/2012,3301572571,1040,REDACTED PERSONAL DATA
http://statistics.data.gov.uk/id/local-authority/38,Oxfordshire County Council,SCS Pooled Budgets,Community Support Budget - Didcot,Other Agency and Contracted Services,57401,Direct Payments,11/07/2012,3301572573,617.6,REDACTED PERSONAL DATA
http://statistics.data.gov.uk/id/local-authority/38,Oxfordshire County Council,SCS Pooled Budgets,Community Support Budget - Witney,Other Agency and Contracted Services,57401,Direct Payments,11/07/2012,3301572576,857.6,REDACTED PERSONAL DATA
http://statistics.data.gov.uk/id/local-authority/38,Oxfordshire County Council,SCS Pooled Budgets,Community Support Budget - Thame,Other Agency and Contracted Services,57401,Direct Payments,11/07/2012,3301572577,507.08,REDACTED PERSONAL DATA
http://statistics.data.gov.uk/id/local-authority/38,Oxfordshire County Council,SCS Pooled Budgets,Community Support Budget - Banbury,Other Agency and Contracted Services,57401,Direct Payments,11/07/2012,3301572578,1347.08,REDACTED PERSONAL DATA
http://statistics.data.gov.uk/id/local-authority/38,Oxfordshire County Council,SCS Pooled Budgets,PD Comm Supp Budgt - Bicester/Kidlington,Other Agency and Contracted Services,57401,Direct Payments,11/07/2012,3301572579,1048.8,REDACTED PERSONAL DATA
http://statistics.data.gov.uk/id/local-authority/38,Oxfordshire County Council,SCS Pooled Budgets,Community Support Budget - Witney,Other Agency and Contracted Services,57401,Direct Payments,11/07/2012,3301572581,1520,REDACTED PERSONAL DATA
http://statistics.data.gov.uk/id/local-authority/38,Oxfordshire County Council,SCS Pooled Budgets,Community Support Budget - Didcot,Other Agency and Contracted Services,57401,Direct Payments,11/07/2012,3301572582,633.84,REDACTED PERSONAL DATA
http://statistics.data.gov.uk/id/local-authority/38,Oxfordshire County Council,SCS Pooled Budgets,Direct Payments South Team,Other Agency and Contracted Services,57401,Direct Payments,11/07/2012,3301572584,1377.24,REDACTED PERSONAL DATA
http://statistics.data.gov.uk/id/local-authority/38,Oxfordshire County Council,SCS Pooled Budgets,PD Comm Supp Purchasg Budget - City,Other Agency and Contracted Services,57401,Direct Payments,11/07/2012,3301572585,516.28,REDACTED PERSONAL DATA
http://statistics.data.gov.uk/id/local-authority/38,Oxfordshire County Council,SCS Pooled Budgets,Direct Payments City Team,Other Agency and Contracted Services,57401,Direct Payments,11/07/2012,3301572586,1183.84,REDACTED PERSONAL DATA
http://statistics.data.gov.uk/id/local-authority/38,Oxfordshire County Council,SCS Pooled Budgets,Community Support Budget - City,Other Agency and Contracted Services,57401,Direct Payments,11/07/2012,3301572588,725.28,REDACTED PERSONAL DATA
http://statistics.data.gov.uk/id/local-authority/38,Oxfordshire County Council,SCS Pooled Budgets,Community Support Budget - Abingdon,Other Agency and Contracted Services,57401,Direct Payments,11/07/2012,3301572589,1323.8,REDACTED PERSONAL DATA
http://statistics.data.gov.uk/id/local-authority/38,Oxfordshire County Council,SCS Pooled Budgets,PD Comm Supp Purchasg Budget - Witney,Other Agency and Contracted Services,57401,Direct Payments,11/07/2012,3301572590,1588,REDACTED PERSONAL DATA
http://statistics.data.gov.uk/id/local-authority/38,Oxfordshire County Council,SCS Pooled Budgets,Direct Payments North Team,Other Agency and Contracted Services,57401,Direct Payments,11/07/2012,3301572591,960,REDACTED PERSONAL DATA
http://statistics.data.gov.uk/id/local-authority/38,Oxfordshire County Council,SCS Pooled Budgets,PD Comm Supp Purchasg Budget - Abingdon,Other Agency and Contracted Services,57401,Direct Payments,11/07/2012,3301572592,1291.16,REDACTED PERSONAL DATA
http://statistics.data.gov.uk/id/local-authority/38,Oxfordshire County Council,SCS Pooled Budgets,Direct Payments South Team,Other Agency and Contracted Services,57401,Direct Payments,11/07/2012,3301572593,1014.16,REDACTED PERSONAL DATA
http://statistics.data.gov.uk/id/local-authority/38,Oxfordshire County Council,SCS Pooled Budgets,Community Support Budget - Bicester,Other Agency and Contracted Services,57401,Direct Payments,11/07/2012,3301572595,1597.6,REDACTED PERSONAL DATA
http://statistics.data.gov.uk/id/local-authority/38,Oxfordshire County Council,SCS Pooled Budgets,Community Support Budget - Witney,Other Agency and Contracted Services,57401,Direct Payments,11/07/2012,3301572596,1920,REDACTED PERSONAL DATA
http://statistics.data.gov.uk/id/local-authority/38,Oxfordshire County Council,SCS Pooled Budgets,Community Support Budget - Witney,Other Agency and Contracted Services,57401,Direct Payments,11/07/2012,3301572597,1232,REDACTED PERSONAL DATA
http://statistics.data.gov.uk/id/local-authority/38,Oxfordshire County Council,SCS Pooled Budgets,Community Support Budget - City,Other Agency and Contracted Services,57401,Direct Payments,11/07/2012,3301572598,760.62,REDACTED PERSONAL DATA
http://statistics.data.gov.uk/id/local-authority/38,Oxfordshire County Council,SCS Pooled Budgets,Community Support Budget - Didcot,Other Agency and Contracted Services,57401,Direct Payments,11/07/2012,3301572599,988.24,REDACTED PERSONAL DATA
http://statistics.data.gov.uk/id/local-authority/38,Oxfordshire County Council,SCS Pooled Budgets,Community Support Budget - Thame,Other Agency and Contracted Services,57401,Direct Payments,11/07/2012,3301572601,538.48,REDACTED PERSONAL DATA
http://statistics.data.gov.uk/id/local-authority/38,Oxfordshire County Council,SCS Pooled Budgets,Personal Health Budgets PD (PCT),Other Agency and Contracted Services,57401,Direct Payments,11/07/2012,3301572602,10422.16,REDACTED PERSONAL DATA
http://statistics.data.gov.uk/id/local-authority/38,Oxfordshire County Council,SCS Pooled Budgets,Community Support Budget - Banbury,Other Agency and Contracted Services,57401,Direct Payments,11/07/2012,3301572603,1014.44,REDACTED PERSONAL DATA
http://statistics.data.gov.uk/id/local-authority/38,Oxfordshire County Council,SCS Pooled Budgets,PD Comm Supp Purchasg Budget - Abingdon,Other Agency and Contracted Services,57401,Direct Payments,11/07/2012,3301572604,792,REDACTED PERSONAL DATA
http://statistics.data.gov.uk/id/local-authority/38,Oxfordshire County Council,SCS Pooled Budgets,PD Comm Supp Purchasg Budget - City,Other Agency and Contracted Services,57401,Direct Payments,11/07/2012,3301572605,1195.28,REDACTED PERSONAL DATA
http://statistics.data.gov.uk/id/local-authority/38,Oxfordshire County Council,SCS Pooled Budgets,Community Support Budget - Didcot,Other Agency and Contracted Services,57401,Direct Payments,11/07/2012,3301572606,1124.14,REDACTED PERSONAL DATA
http://statistics.data.gov.uk/id/local-authority/38,Oxfordshire County Council,SCS Pooled Budgets,Direct Payments South Team,Other Agency and Contracted Services,57401,Direct Payments,11/07/2012,3301572607,581.76,REDACTED PERSONAL DATA
http://statistics.data.gov.uk/id/local-authority/38,Oxfordshire County Council,SCS Pooled Budgets,Community Support Budget - Henley,Other Agency and Contracted Services,57401,Direct Payments,11/07/2012,3301572609,1404,REDACTED PERSONAL DATA
http://statistics.data.gov.uk/id/local-authority/38,Oxfordshire County Council,SCS Pooled Budgets,Community Support Budget - Henley,Other Agency and Contracted Services,57401,Direct Payments,11/07/2012,3301572610,1400,REDACTED PERSONAL DATA
http://statistics.data.gov.uk/id/local-authority/38,Oxfordshire County Council,SCS Pooled Budgets,Community Support Budget - Thame,Other Agency and Contracted Services,57401,Direct Payments,11/07/2012,3301572613,1340,REDACTED PERSONAL DATA
http://statistics.data.gov.uk/id/local-authority/38,Oxfordshire County Council,SCS Pooled Budgets,Community Support Budget - City,Other Agency and Contracted Services,57401,Direct Payments,11/07/2012,3301572614,748,REDACTED PERSONAL DATA
http://statistics.data.gov.uk/id/local-authority/38,Oxfordshire County Council,SCS Pooled Budgets,Direct Payments City Team,Other Agency and Contracted Services,57401,Direct Payments,11/07/2012,3301572616,520,REDACTED PERSONAL DATA
http://statistics.data.gov.uk/id/local-authority/38,Oxfordshire County Council,SCS Pooled Budgets,Direct Payments City Team,Other Agency and Contracted Services,57401,Direct Payments,11/07/2012,3301572617,1364,REDACTED PERSONAL DATA
http://statistics.data.gov.uk/id/local-authority/38,Oxfordshire County Council,SCS Pooled Budgets,PD Comm Supp Purchasg Budget - City,Other Agency and Contracted Services,57401,Direct Payments,11/07/2012,3301572618,1440,REDACTED PERSONAL DATA
http://statistics.data.gov.uk/id/local-authority/38,Oxfordshire County Council,SCS Pooled Budgets,Personal Health Budgets OP (PCT),Other Agency and Contracted Services,57401,Direct Payments,11/07/2012,3301572619,8075.36,REDACTED PERSONAL DATA
http://statistics.data.gov.uk/id/local-authority/38,Oxfordshire County Council,SCS Pooled Budgets,Direct Payments North Team,Other Agency and Contracted Services,57401,Direct Payments,11/07/2012,3301572620,3060,REDACTED PERSONAL DATA
http://statistics.data.gov.uk/id/local-authority/38,Oxfordshire County Council,SCS Pooled Budgets,Personal Health Budgets PD (PCT),Other Agency and Contracted Services,57401,Direct Payments,11/07/2012,3301572622,1476.32,REDACTED PERSONAL DATA
http://statistics.data.gov.uk/id/local-authority/38,Oxfordshire County Council,SCS Pooled Budgets,Personal Health Budgets PD (PCT),Other Agency and Contracted Services,57401,Direct Payments,11/07/2012,3301572623,7719.84,REDACTED PERSONAL DATA
http://statistics.data.gov.uk/id/local-authority/38,Oxfordshire County Council,SCS Pooled Budgets,PD Comm Supp Purchasg Budget - Didcot,Other Agency and Contracted Services,57401,Direct Payments,11/07/2012,3301572624,864,REDACTED PERSONAL DATA
http://statistics.data.gov.uk/id/local-authority/38,Oxfordshire County Council,SCS Pooled Budgets,Direct Payments North Team,Other Agency and Contracted Services,57401,Direct Payments,11/07/2012,3301572625,796.32,REDACTED PERSONAL DATA
http://statistics.data.gov.uk/id/local-authority/38,Oxfordshire County Council,SCS Pooled Budgets,Community Support Budget - Henley,Other Agency and Contracted Services,57401,Direct Payments,11/07/2012,3301572626,691.16,REDACTED PERSONAL DATA
http://statistics.data.gov.uk/id/local-authority/38,Oxfordshire County Council,SCS Pooled Budgets,Community Support Budget - Bicester,Other Agency and Contracted Services,57401,Direct Payments,11/07/2012,3301572627,848,REDACTED PERSONAL DATA
http://statistics.data.gov.uk/id/local-authority/38,Oxfordshire County Council,SCS Pooled Budgets,Community Support Budget - Witney,Other Agency and Contracted Services,57401,Direct Payments,11/07/2012,3301572628,508,REDACTED PERSONAL DATA
http://statistics.data.gov.uk/id/local-authority/38,Oxfordshire County Council,SCS Pooled Budgets,Direct Payments South Team,Other Agency and Contracted Services,57401,Direct Payments,11/07/2012,3301572629,2220.32,REDACTED PERSONAL DATA
http://statistics.data.gov.uk/id/local-authority/38,Oxfordshire County Council,SCS Pooled Budgets,OP Pool Continuing Care Delegated Health,Other Agency and Contracted Services,57401,Direct Payments,11/07/2012,3301572630,560.4,REDACTED PERSONAL DATA
http://statistics.data.gov.uk/id/local-authority/38,Oxfordshire County Council,SCS Pooled Budgets,Community Support Budget - Faringdon,Other Agency and Contracted Services,57401,Direct Payments,11/07/2012,3301572630,1599.6,REDACTED PERSONAL DATA
http://statistics.data.gov.uk/id/local-authority/38,Oxfordshire County Council,SCS Pooled Budgets,Community Support Budget - Thame,Other Agency and Contracted Services,57401,Direct Payments,11/07/2012,3301572631,640,REDACTED PERSONAL DATA
http://statistics.data.gov.uk/id/local-authority/38,Oxfordshire County Council,SCS Pooled Budgets,Direct Payments South Team,Other Agency and Contracted Services,57401,Direct Payments,11/07/2012,3301572633,1688,REDACTED PERSONAL DATA
http://statistics.data.gov.uk/id/local-authority/38,Oxfordshire County Council,SCS Pooled Budgets,Community Support Budget - City,Other Agency and Contracted Services,57401,Direct Payments,11/07/2012,3301572635,2808,REDACTED PERSONAL DATA
http://statistics.data.gov.uk/id/local-authority/38,Oxfordshire County Council,SCS Pooled Budgets,PD Comm Supp Purchasg Budget - City,Other Agency and Contracted Services,57401,Direct Payments,11/07/2012,3301572636,1135.04,REDACTED PERSONAL DATA
http://statistics.data.gov.uk/id/local-authority/38,Oxfordshire County Council,SCS Pooled Budgets,PD Comm Supp Purchasg Budget - City,Other Agency and Contracted Services,57401,Direct Payments,11/07/2012,3301572637,1029.32,REDACTED PERSONAL DATA
